Spender,"Spender Reg Num","Spender type","Spender sub-type","Affected Comte Name","Affected Cmte Reg Num","For /Against",Year,Date,Type,Amount,"Unpaid amount","In kind?","In kind descr",Purpose,"Vendor name","Vendor address 1","Vendor address 2","Vendor city","Vendor State","Vendor zip"
"MN DFL State Central Committee",20003,PTU,SPU,"Zupancich, Andrea Senate Committee",18863,Against,2022,10/21/2022,"Independent Expenditure",68700.00,.00,No,,"Broadcast, OTT","Canal Partners Media","25 Whitlock Pl SW",,Marietta,GA,30064
"MN DFL State Central Committee",20003,PTU,SPU,"Abeler, Jim Senate Committee",17868,Against,2022,10/21/2022,"Independent Expenditure",336920.00,.00,No,,"Broadcast, OTT","Canal Partners Media","25 Whitlock Pl SW",,Marietta,GA,30064
"MN DFL State Central Committee",20003,PTU,SPU,"Matteson, Polly House Committee",18847,Against,2022,09/27/2022,"Independent Expenditure",5719.97,.00,No,,"Design, Production, Mailhouse, Postage","Clarify LLC","870 Market St",,"San Francisco",CA,94102
"MN DFL State Central Committee",20003,PTU,SPU,"Kroetch, Gabriela House Committee",18853,Against,2022,09/27/2022,"Independent Expenditure",5724.21,.00,No,,"Design, Production, Mailhouse, Postage","Clarify LLC","870 Market St",,"San Francisco",CA,94102
"MN DFL State Central Committee",20003,PTU,SPU,"Myers, Andrew House Committee",18550,Against,2022,09/27/2022,"Independent Expenditure",6292.27,.00,No,,"Design, Production, Mailhouse, Postage","Clarify LLC","870 Market St",,"San Francisco",CA,94102
"MN DFL State Central Committee",20003,PTU,SPU,"Bahner, Kristin House Committee",18081,For,2022,09/29/2022,"Independent Expenditure",6441.61,.00,No,,"Design, Production, Mailhouse, Postage","Clarify LLC","870 Market St",,"San Francisco",CA,94102
"MN DFL State Central Committee",20003,PTU,SPU,"Raleigh, Donald House Committee",18622,Against,2022,10/04/2022,"Independent Expenditure",5773.43,.00,No,,"Design, Production, Mailhouse, Postage","Clarify LLC","870 Market St",,"San Francisco",CA,94102
"MN DFL State Central Committee",20003,PTU,SPU,"Lislegard, David House Committee",18314,For,2022,10/04/2022,"Independent Expenditure",6077.09,.00,No,,"Design, Production, Mailhouse, Postage","Clarify LLC","870 Market St",,"San Francisco",CA,94102
"MN DFL State Central Committee",20003,PTU,SPU,"Myers, Andrew House Committee",18550,Against,2022,10/04/2022,"Independent Expenditure",6292.27,.00,No,,"Design, Production, Mailhouse, Postage","Clarify LLC","870 Market St",,"San Francisco",CA,94102
"MN DFL State Central Committee",20003,PTU,SPU,"HILL, JOSIAH House Committee",18776,For,2022,10/12/2022,"Independent Expenditure",6430.93,.00,No,,"Design, Production, Mailhouse, Postage","Clarify LLC","870 Market St",,"San Francisco",CA,94102
"MN DFL State Central Committee",20003,PTU,SPU,"Ecklund, Robert House Committee",17871,For,2022,10/12/2022,"Independent Expenditure",6935.57,.00,No,,"Design, Production, Mailhouse, Postage","Clarify LLC","870 Market St",,"San Francisco",CA,94102
"MN DFL State Central Committee",20003,PTU,SPU,"Fenton, Kelly House Committee",18775,Against,2022,10/25/2022,"Independent Expenditure",5713.44,5713.44,No,,"Design, Production, Mailhouse, Postage","Clarify LLC","870 Market St",,"San Francisco",CA,94102
"MN DFL State Central Committee",20003,PTU,SPU,"Bristol, John House Committee",18852,Against,2022,10/25/2022,"Independent Expenditure",6276.63,6276.63,No,,"Design, Production, Mailhouse, Postage","Clarify LLC","870 Market St",,"San Francisco",CA,94102
"MN DFL State Central Committee",20003,PTU,SPU,"Hanson, Jessica House Committee",18463,For,2022,11/04/2022,"Independent Expenditure",5858.72,5858.72,No,,"Design, Production, Mailhouse, Postage","Clarify LLC","870 Market St",,"San Francisco",CA,94102
"MN DFL State Central Committee",20003,PTU,SPU,"Lourey, Stu Senate Committee",18407,For,2019,01/22/2019,"Independent Expenditure",9143.44,.00,No,,"Design, Production, Mailhouse, Postage","Berlin Rosen LTD","15 Maiden Ln",,"New York",NY,10038
"MN DFL State Central Committee",20003,PTU,SPU,"Lourey, Stu Senate Committee",18407,For,2019,01/28/2019,"Independent Expenditure",115000.00,.00,No,,"Broadcast, Cable & Radio","Canal Partners Media","25 Whitlock Pl SW",,Marietta,GA,30064
"MN DFL State Central Committee",20003,PTU,SPU,"Skraba, Roger Joseph House Committee",18918,Against,2022,09/27/2022,"Independent Expenditure",6309.21,.00,No,,"Design, Production, Mailhouse, Postage","Clarify LLC","870 Market St",,"San Francisco",CA,94102
"MN DFL State Central Committee",20003,PTU,SPU,"Hicks, Kimberly (Kim) House Committee",18519,For,2022,09/29/2022,"Independent Expenditure",5710.83,.00,No,,"Design, Production, Mailhouse, Postage","Clarify LLC","870 Market St",,"San Francisco",CA,94102
"MN DFL State Central Committee",20003,PTU,SPU,"Matteson, Polly House Committee",18847,Against,2022,10/12/2022,"Independent Expenditure",5728.99,.00,No,,"Design, Production, Mailhouse, Postage","Clarify LLC","870 Market St",,"San Francisco",CA,94102
"MN DFL State Central Committee",20003,PTU,SPU,"Hanson, Jessica House Committee",18463,For,2022,10/12/2022,"Independent Expenditure",5939.57,.00,No,,"Design, Production, Mailhouse, Postage","Clarify LLC","870 Market St",,"San Francisco",CA,94102
"MN DFL State Central Committee",20003,PTU,SPU,"Norris, Matt House Committee",18727,For,2022,10/12/2022,"Independent Expenditure",5986.32,.00,No,,"Design, Production, Mailhouse, Postage","Clarify LLC","870 Market St",,"San Francisco",CA,94102
"MN DFL State Central Committee",20003,PTU,SPU,"Kroetch, Gabriela House Committee",18853,Against,2022,10/25/2022,"Independent Expenditure",5627.52,5627.52,No,,"Design, Production, Mailhouse, Postage","Clarify LLC","870 Market St",,"San Francisco",CA,94102
"MN DFL State Central Committee",20003,PTU,SPU,"Skraba, Roger Joseph House Committee",18918,Against,2022,10/25/2022,"Independent Expenditure",6061.30,6061.30,No,,"Design, Production, Mailhouse, Postage","Clarify LLC","870 Market St",,"San Francisco",CA,94102
"MN DFL State Central Committee",20003,PTU,SPU,"Norris, Matt House Committee",18727,For,2022,11/04/2022,"Independent Expenditure",5888.16,5888.16,No,,"Design, Production, Mailhouse, Postage","Clarify LLC","870 Market St",,"San Francisco",CA,94102
"MN DFL State Central Committee",20003,PTU,SPU,"Wiens, Mark House Committee",18879,Against,2022,11/07/2022,"Independent Expenditure",6252.20,.00,No,,"Design, Production, Mailhouse, Postage","Clarify LLC","870 Market St",,"San Francisco",CA,94102
"MN DFL State Central Committee",20003,PTU,SPU,"Myers, Andrew House Committee",18550,Against,2022,11/14/2022,"Independent Expenditure",6301.07,.00,No,,"Design, Production, Mailhouse, Postage","Clarify LLC","870 Market St",,"San Francisco",CA,94102
"MN DFL State Central Committee",20003,PTU,SPU,"Bristol, John House Committee",18852,Against,2022,11/14/2022,"Independent Expenditure",6442.12,.00,No,,"Design, Production, Mailhouse, Postage","Clarify LLC","870 Market St",,"San Francisco",CA,94102
"MN DFL State Central Committee",20003,PTU,SPU,"Kroetch, Gabriela House Committee",18853,Against,2022,11/16/2022,"Independent Expenditure",5627.52,.00,No,,"Design, Production, Mailhouse, Postage","Clarify LLC","870 Market St",,"San Francisco",CA,94102
"MN DFL State Central Committee",20003,PTU,SPU,"Walz, Tim Gov Committee",18135,For,2022,10/28/2022,"Independent Expenditure",2500.00,.00,No,,"Production, Radio","76 Words","1121 5th St NW",,Washington,DC,20001
"MN DFL State Central Committee",20003,PTU,SPU,"Lourey, Stu Senate Committee",18407,For,2019,01/22/2019,"Independent Expenditure",3039.37,.00,No,,"Design, Production, Mailhouse, Postage","Berlin Rosen LTD","15 Maiden Ln",,"New York",NY,10038
"MN DFL State Central Committee",20003,PTU,SPU,"Lourey, Stu Senate Committee",18407,For,2019,02/12/2019,"Independent Expenditure",105.00,.00,No,,"Design, Mailhouse, Postage","Berlin Rosen LTD","15 Maiden Ln",,"New York",NY,10038
"MN DFL State Central Committee",20003,PTU,SPU,"Lourey, Stu Senate Committee",18407,For,2019,02/12/2019,"Independent Expenditure",8785.26,.00,No,,"Design, Mailhouse, Postage","Berlin Rosen LTD","15 Maiden Ln",,"New York",NY,10038
"MN DFL State Central Committee",20003,PTU,SPU,"Rarick, Jason Senate Committee",18406,Against,2019,01/18/2019,"Independent Expenditure",165225.00,.00,No,,"Broadcast, Cable & Radio","Canal Partners Media","25 Whitlock Pl SW",,Marietta,GA,30064
"MN DFL State Central Committee",20003,PTU,SPU,"Lourey, Stu Senate Committee",18407,For,2019,01/31/2019,"Independent Expenditure",82375.00,.00,No,,"Broadcast, Cable & Radio","Canal Partners Media","25 Whitlock Pl SW",,Marietta,GA,30064
"MN DFL State Central Committee",20003,PTU,SPU,"Abeler, Jim Senate Committee",17868,Against,2022,10/31/2022,"Independent Expenditure",365640.00,.00,No,,"Broadcast, OTT","Canal Partners Media","25 Whitlock Pl SW",,Marietta,GA,30064
"MN DFL State Central Committee",20003,PTU,SPU,"Raleigh, Donald House Committee",18622,Against,2022,09/27/2022,"Independent Expenditure",5773.43,.00,No,,"Design, Production, Mailhouse, Postage","Clarify LLC","870 Market St",,"San Francisco",CA,94102
"MN DFL State Central Committee",20003,PTU,SPU,"Bristol, John House Committee",18852,Against,2022,09/27/2022,"Independent Expenditure",6432.91,.00,No,,"Design, Production, Mailhouse, Postage","Clarify LLC","870 Market St",,"San Francisco",CA,94102
"MN DFL State Central Committee",20003,PTU,SPU,"Phillips, Wendy House Committee",18896,Against,2022,10/04/2022,"Independent Expenditure",5702.13,.00,No,,"Design, Production, Mailhouse, Postage","Clarify LLC","870 Market St",,"San Francisco",CA,94102
"MN DFL State Central Committee",20003,PTU,SPU,"Kroetch, Gabriela House Committee",18853,Against,2022,10/12/2022,"Independent Expenditure",5733.11,.00,No,,"Design, Production, Mailhouse, Postage","Clarify LLC","870 Market St",,"San Francisco",CA,94102
"MN DFL State Central Committee",20003,PTU,SPU,"Norris, Matt House Committee",18727,For,2022,10/25/2022,"Independent Expenditure",5969.55,5969.55,No,,"Design, Production, Mailhouse, Postage","Clarify LLC","870 Market St",,"San Francisco",CA,94102
"MN DFL State Central Committee",20003,PTU,SPU,"Skraba, Roger Joseph House Committee",18918,Against,2022,10/25/2022,"Independent Expenditure",6061.30,6061.30,No,,"Design, Production, Mailhouse, Postage","Clarify LLC","870 Market St",,"San Francisco",CA,94102
"MN DFL State Central Committee",20003,PTU,SPU,"Newton, Jerry House Committee",18813,For,2022,11/04/2022,"Independent Expenditure",5867.94,5867.94,No,,"Design, Production, Mailhouse, Postage","Clarify LLC","870 Market St",,"San Francisco",CA,94102
"MN DFL State Central Committee",20003,PTU,SPU,"Lourey, Stu Senate Committee",18407,For,2019,02/04/2019,"Independent Expenditure",8785.26,.00,No,,"Design, Mailhouse, Postage","Berlin Rosen LTD","15 Maiden Ln",,"New York",NY,10038
"MN DFL State Central Committee",20003,PTU,SPU,"Theis, Tama Lynn Senate Committee",18895,Against,2022,10/31/2022,"Independent Expenditure",364240.00,.00,No,,"Broadcast, OTT","Canal Partners Media","25 Whitlock Pl SW",,Marietta,GA,30064
"MN DFL State Central Committee",20003,PTU,SPU,"Cha, Ethan House Committee",18874,For,2022,09/29/2022,"Independent Expenditure",5895.72,.00,No,,"Design, Production, Mailhouse, Postage","Clarify LLC","870 Market St",,"San Francisco",CA,94102
"MN DFL State Central Committee",20003,PTU,SPU,"Driscoll, Patricia House Committee",18820,For,2022,09/29/2022,"Independent Expenditure",6245.98,.00,No,,"Design, Production, Mailhouse, Postage","Clarify LLC","870 Market St",,"San Francisco",CA,94102
"MN DFL State Central Committee",20003,PTU,SPU,"Bresnahan, Lauren House Committee",18779,For,2022,09/29/2022,"Independent Expenditure",6300.66,.00,No,,"Design, Production, Mailhouse, Postage","Clarify LLC","870 Market St",,"San Francisco",CA,94102
"MN DFL State Central Committee",20003,PTU,SPU,"Scanlon, Joseph House Committee",18728,Against,2022,10/12/2022,"Independent Expenditure",5706.07,.00,No,,"Design, Production, Mailhouse, Postage","Clarify LLC","870 Market St",,"San Francisco",CA,94102
"MN DFL State Central Committee",20003,PTU,SPU,"Huot, John Duffy House Committee",17962,For,2022,10/12/2022,"Independent Expenditure",5948.88,.00,No,,"Design, Production, Mailhouse, Postage","Clarify LLC","870 Market St",,"San Francisco",CA,94102
"MN DFL State Central Committee",20003,PTU,SPU,"Driscoll, Patricia House Committee",18820,For,2022,10/12/2022,"Independent Expenditure",6561.34,.00,No,,"Design, Production, Mailhouse, Postage","Clarify LLC","870 Market St",,"San Francisco",CA,94102
"MN DFL State Central Committee",20003,PTU,SPU,"Lislegard, David House Committee",18314,For,2022,10/12/2022,"Independent Expenditure",6692.89,.00,No,,"Design, Production, Mailhouse, Postage","Clarify LLC","870 Market St",,"San Francisco",CA,94102
"MN DFL State Central Committee",20003,PTU,SPU,"Matteson, Polly House Committee",18847,Against,2022,10/25/2022,"Independent Expenditure",5624.46,5624.46,No,,"Design, Production, Mailhouse, Postage","Clarify LLC","870 Market St",,"San Francisco",CA,94102
"MN DFL State Central Committee",20003,PTU,SPU,"Fenton, Kelly House Committee",18775,Against,2022,10/25/2022,"Independent Expenditure",5713.44,5713.44,No,,"Design, Production, Mailhouse, Postage","Clarify LLC","870 Market St",,"San Francisco",CA,94102
"MN DFL State Central Committee",20003,PTU,SPU,"Raleigh, Donald House Committee",18622,Against,2022,11/07/2022,"Independent Expenditure",5787.27,.00,No,,"Design, Production, Mailhouse, Postage","Clarify LLC","870 Market St",,"San Francisco",CA,94102
"MN DFL State Central Committee",20003,PTU,SPU,"Norri, Matthew R House Committee",18710,Against,2022,11/16/2022,"Independent Expenditure",5969.55,.00,No,,"Design, Production, Mailhouse, Postage","Clarify LLC","870 Market St",,"San Francisco",CA,94102
"MN DFL State Central Committee",20003,PTU,SPU,"Ellison, Keith Atty Gen Committee",18336,For,2022,10/06/2022,"Independent Expenditure",7320.00,.00,No,,"Ad Production","eStreet Group","80 M St SE",,Washington,DC,20003
"MN DFL State Central Committee",20003,PTU,SPU,"Zupancich, Andrea Senate Committee",18863,Against,2022,10/21/2022,"Independent Expenditure",98425.00,.00,No,,"Broadcast, OTT","Canal Partners Media","25 Whitlock Pl SW",,Marietta,GA,30064
"MN DFL State Central Committee",20003,PTU,SPU,"Chamberlain, Roger C Senate Committee",17021,Against,2022,10/21/2022,"Independent Expenditure",336920.00,.00,No,,"Broadcast, OTT","Canal Partners Media","25 Whitlock Pl SW",,Marietta,GA,30064
"MN DFL State Central Committee",20003,PTU,SPU,"Zupancich, Andrea Senate Committee",18863,Against,2022,10/28/2022,"Independent Expenditure",25750.00,.00,No,,"Broadcast, Radio","Canal Partners Media","25 Whitlock Pl SW",,Marietta,GA,30064
"MN DFL State Central Committee",20003,PTU,SPU,"Dippel, Tom Senate Committee",18739,Against,2022,10/31/2022,"Independent Expenditure",365640.00,.00,No,,"Broadcast, OTT","Canal Partners Media","25 Whitlock Pl SW",,Marietta,GA,30064
"MN DFL State Central Committee",20003,PTU,SPU,"Lislegard, David House Committee",18314,For,2022,09/27/2022,"Independent Expenditure",6077.09,.00,No,,"Design, Production, Mailhouse, Postage","Clarify LLC","870 Market St",,"San Francisco",CA,94102
"MN DFL State Central Committee",20003,PTU,SPU,"Wiens, Mark House Committee",18879,Against,2022,09/27/2022,"Independent Expenditure",6237.28,.00,No,,"Design, Production, Mailhouse, Postage","Clarify LLC","870 Market St",,"San Francisco",CA,94102
"MN DFL State Central Committee",20003,PTU,SPU,"Newton, Jerry House Committee",18813,For,2022,09/29/2022,"Independent Expenditure",5728.59,.00,No,,"Design, Production, Mailhouse, Postage","Clarify LLC","870 Market St",,"San Francisco",CA,94102
"MN DFL State Central Committee",20003,PTU,SPU,"Skraba, Roger Joseph House Committee",18918,Against,2022,10/04/2022,"Independent Expenditure",6309.21,.00,No,,"Design, Production, Mailhouse, Postage","Clarify LLC","870 Market St",,"San Francisco",CA,94102
"MN DFL State Central Committee",20003,PTU,SPU,"Bahner, Kristin House Committee",18081,For,2022,10/12/2022,"Independent Expenditure",6645.47,.00,No,,"Design, Production, Mailhouse, Postage","Clarify LLC","870 Market St",,"San Francisco",CA,94102
"MN DFL State Central Committee",20003,PTU,SPU,"Fenton, Kelly House Committee",18775,Against,2022,10/25/2022,"Independent Expenditure",5713.44,5713.44,No,,"Design, Production, Mailhouse, Postage","Clarify LLC","870 Market St",,"San Francisco",CA,94102
"MN DFL State Central Committee",20003,PTU,SPU,"Norris, Matt House Committee",18727,For,2022,10/25/2022,"Independent Expenditure",5969.55,5969.55,No,,"Design, Production, Mailhouse, Postage","Clarify LLC","870 Market St",,"San Francisco",CA,94102
"MN DFL State Central Committee",20003,PTU,SPU,"Cha, Ethan House Committee",18874,For,2022,11/04/2022,"Independent Expenditure",5920.79,5920.79,No,,"Design, Production, Mailhouse, Postage","Clarify LLC","870 Market St",,"San Francisco",CA,94102
"MN DFL State Central Committee",20003,PTU,SPU,"Driscoll, Patricia House Committee",18820,For,2022,11/04/2022,"Independent Expenditure",6443.93,6443.93,No,,"Design, Production, Mailhouse, Postage","Clarify LLC","870 Market St",,"San Francisco",CA,94102
"MN DFL State Central Committee",20003,PTU,SPU,"Kroetch, Gabriela House Committee",18853,Against,2022,11/07/2022,"Independent Expenditure",7233.11,.00,No,,"Design, Production, Mailhouse, Postage","Clarify LLC","870 Market St",,"San Francisco",CA,94102
"MN DFL State Central Committee",20003,PTU,SPU,"Lourey, Stu Senate Committee",18407,For,2019,01/22/2019,"Independent Expenditure",9143.44,.00,No,,"Design, Production, Mailhouse, Postage","Berlin Rosen LTD","15 Maiden Ln",,"New York",NY,10038
"MN DFL State Central Committee",20003,PTU,SPU,"Lourey, Stu Senate Committee",18407,For,2019,03/21/2019,"Independent Expenditure",6927.98,.00,No,,"Design, Mailhouse, Postage","Berlin Rosen LTD","15 Maiden Ln",,"New York",NY,10038
"MN DFL State Central Committee",20003,PTU,SPU,"Theis, Tama Lynn Senate Committee",18895,Against,2022,10/21/2022,"Independent Expenditure",335520.00,.00,No,,"Broadcast, OTT","Canal Partners Media","25 Whitlock Pl SW",,Marietta,GA,30064
"MN DFL State Central Committee",20003,PTU,SPU,"Zupancich, Andrea Senate Committee",18863,Against,2022,10/31/2022,"Independent Expenditure",63625.00,.00,No,,"Broadcast, OTT","Canal Partners Media","25 Whitlock Pl SW",,Marietta,GA,30064
"MN DFL State Central Committee",20003,PTU,SPU,"Hanson, Jessica House Committee",18463,For,2022,09/29/2022,"Independent Expenditure",5732.60,.00,No,,"Design, Production, Mailhouse, Postage","Clarify LLC","870 Market St",,"San Francisco",CA,94102
"MN DFL State Central Committee",20003,PTU,SPU,"Kroetch, Gabriela House Committee",18853,Against,2022,10/04/2022,"Independent Expenditure",5724.21,.00,No,,"Design, Production, Mailhouse, Postage","Clarify LLC","870 Market St",,"San Francisco",CA,94102
"MN DFL State Central Committee",20003,PTU,SPU,"Bishofsky, Mark House Committee",18729,Against,2022,10/04/2022,"Independent Expenditure",6056.14,.00,No,,"Design, Production, Mailhouse, Postage","Clarify LLC","870 Market St",,"San Francisco",CA,94102
"MN DFL State Central Committee",20003,PTU,SPU,"Bristol, John House Committee",18852,Against,2022,10/04/2022,"Independent Expenditure",6432.91,.00,No,,"Design, Production, Mailhouse, Postage","Clarify LLC","870 Market St",,"San Francisco",CA,94102
"MN DFL State Central Committee",20003,PTU,SPU,"Cha, Ethan House Committee",18874,For,2022,10/12/2022,"Independent Expenditure",6075.54,.00,No,,"Design, Production, Mailhouse, Postage","Clarify LLC","870 Market St",,"San Francisco",CA,94102
"MN DFL State Central Committee",20003,PTU,SPU,"Skraba, Roger Joseph House Committee",18918,Against,2022,10/12/2022,"Independent Expenditure",6255.60,.00,No,,"Design, Production, Mailhouse, Postage","Clarify LLC","870 Market St",,"San Francisco",CA,94102
"MN DFL State Central Committee",20003,PTU,SPU,"Wiens, Mark House Committee",18879,Against,2022,10/25/2022,"Independent Expenditure",6115.27,6115.27,No,,"Design, Production, Mailhouse, Postage","Clarify LLC","870 Market St",,"San Francisco",CA,94102
"MN DFL State Central Committee",20003,PTU,SPU,"Kroetch, Gabriela House Committee",18853,Against,2022,11/14/2022,"Independent Expenditure",5733.11,.00,No,,"Design, Production, Mailhouse, Postage","Clarify LLC","870 Market St",,"San Francisco",CA,94102
"MN DFL State Central Committee",20003,PTU,SPU,"Wiens, Mark House Committee",18879,Against,2022,11/14/2022,"Independent Expenditure",6252.20,.00,No,,"Design, Production, Mailhouse, Postage","Clarify LLC","870 Market St",,"San Francisco",CA,94102
"MN DFL State Central Committee",20003,PTU,SPU,"Fenton, Kelly House Committee",18775,Against,2022,11/16/2022,"Independent Expenditure",5901.60,.00,No,,"Design, Production, Mailhouse, Postage","Clarify LLC","870 Market St",,"San Francisco",CA,94102
"MN DFL State Central Committee",20003,PTU,SPU,"Rarick, Jason Senate Committee",18406,Against,2019,02/12/2019,"Independent Expenditure",8920.57,.00,No,,"Design, Mailhouse, Postage","Berlin Rosen LTD","15 Maiden Ln",,"New York",NY,10038
"MN DFL State Central Committee",20003,PTU,SPU,"Dippel, Tom Senate Committee",18739,Against,2022,10/21/2022,"Independent Expenditure",336920.00,.00,No,,"Broadcast, OTT","Canal Partners Media","25 Whitlock Pl SW",,Marietta,GA,30064
"MN DFL State Central Committee",20003,PTU,SPU,"Chamberlain, Roger C Senate Committee",17021,Against,2022,10/31/2022,"Independent Expenditure",365640.00,.00,No,,"Broadcast, OTT","Canal Partners Media","25 Whitlock Pl SW",,Marietta,GA,30064
"MN DFL State Central Committee",20003,PTU,SPU,"Phillips, Wendy House Committee",18896,Against,2022,09/27/2022,"Independent Expenditure",5702.13,.00,No,,"Design, Production, Mailhouse, Postage","Clarify LLC","870 Market St",,"San Francisco",CA,94102
"MN DFL State Central Committee",20003,PTU,SPU,"Scanlon, Joseph House Committee",18728,Against,2022,09/29/2022,"Independent Expenditure",5706.22,.00,No,,"Design, Production, Mailhouse, Postage","Clarify LLC","870 Market St",,"San Francisco",CA,94102
"MN DFL State Central Committee",20003,PTU,SPU,"Ecklund, Robert House Committee",17871,For,2022,09/29/2022,"Independent Expenditure",6317.79,.00,No,,"Design, Production, Mailhouse, Postage","Clarify LLC","870 Market St",,"San Francisco",CA,94102
"MN DFL State Central Committee",20003,PTU,SPU,"Wiens, Mark House Committee",18879,Against,2022,10/04/2022,"Independent Expenditure",6237.28,.00,No,,"Design, Production, Mailhouse, Postage","Clarify LLC","870 Market St",,"San Francisco",CA,94102
"MN DFL State Central Committee",20003,PTU,SPU,"Norri, Matthew R House Committee",18710,Against,2022,10/12/2022,"Independent Expenditure",6085.78,.00,No,,"Design, Production, Mailhouse, Postage","Clarify LLC","870 Market St",,"San Francisco",CA,94102
"MN DFL State Central Committee",20003,PTU,SPU,"Bresnahan, Lauren House Committee",18779,For,2022,10/12/2022,"Independent Expenditure",6706.04,.00,No,,"Design, Production, Mailhouse, Postage","Clarify LLC","870 Market St",,"San Francisco",CA,94102
"MN DFL State Central Committee",20003,PTU,SPU,"HILL, JOSIAH House Committee",18776,For,2022,11/04/2022,"Independent Expenditure",6011.38,6011.38,No,,"Design, Production, Mailhouse, Postage","Clarify LLC","870 Market St",,"San Francisco",CA,94102
"MN DFL State Central Committee",20003,PTU,SPU,"Bahner, Kristin House Committee",18081,For,2022,11/04/2022,"Independent Expenditure",6539.74,6539.74,No,,"Design, Production, Mailhouse, Postage","Clarify LLC","870 Market St",,"San Francisco",CA,94102
"MN DFL State Central Committee",20003,PTU,SPU,"Matteson, Polly House Committee",18847,Against,2022,11/07/2022,"Independent Expenditure",5728.99,.00,No,,"Design, Production, Mailhouse, Postage","Clarify LLC","870 Market St",,"San Francisco",CA,94102
"MN DFL State Central Committee",20003,PTU,SPU,"Bishofsky, Mark House Committee",18729,Against,2022,11/07/2022,"Independent Expenditure",6073.61,.00,No,,"Design, Production, Mailhouse, Postage","Clarify LLC","870 Market St",,"San Francisco",CA,94102
"MN DFL State Central Committee",20003,PTU,SPU,"Norri, Matthew R House Committee",18710,Against,2022,11/07/2022,"Independent Expenditure",6085.78,.00,No,,"Design, Production, Mailhouse, Postage","Clarify LLC","870 Market St",,"San Francisco",CA,94102
"MN DFL State Central Committee",20003,PTU,SPU,"Scanlon, Joseph House Committee",18728,Against,2022,11/14/2022,"Independent Expenditure",5706.07,.00,No,,"Design, Production, Mailhouse, Postage","Clarify LLC","870 Market St",,"San Francisco",CA,94102
"MN DFL State Central Committee",20003,PTU,SPU,"Hicks, Kimberly (Kim) House Committee",18519,For,2022,11/14/2022,"Independent Expenditure",5710.83,.00,No,,"Design, Production, Mailhouse, Postage","Clarify LLC","870 Market St",,"San Francisco",CA,94102
"MN DFL State Central Committee",20003,PTU,SPU,"Matteson, Polly House Committee",18847,Against,2022,11/14/2022,"Independent Expenditure",5728.99,.00,No,,"Design, Production, Mailhouse, Postage","Clarify LLC","870 Market St",,"San Francisco",CA,94102
"MN DFL State Central Committee",20003,PTU,SPU,"Ellison, Keith Atty Gen Committee",18336,For,2019,02/27/2019,"Independent Expenditure",5096.59,.00,No,,"Radio Ad Buy","E Street Group LLC","4616 15th St NW",,Washington,DC,20011
"MN DFL State Central Committee",20003,PTU,SPU,"Ellison, Keith Atty Gen Committee",18336,For,2022,10/12/2022,"Independent Expenditure",50000.00,.00,No,,"Digital Ad","eStreet Group","80 M St SE",,Washington,DC,20003
"MN DFL State Central Committee",20003,PTU,SPU,"Ellison, Keith Atty Gen Committee",18336,For,2022,10/17/2022,"Independent Expenditure",60000.00,.00,No,,"Digital Ad","eStreet Group","80 M St SE",,Washington,DC,20003
"MN DFL State Central Committee",20003,PTU,SPU,"Ellison, Keith Atty Gen Committee",18336,For,2022,11/02/2022,"Independent Expenditure",1827.91,.00,No,,"Radio Ad Production","eStreet Group","80 M St SE",,Washington,DC,20003
"MN DFL State Central Committee",20003,PTU,SPU,"Theis, Tama Lynn Senate Committee",18895,Against,2022,10/25/2022,"Independent Expenditure",26334.00,.00,No,,"Digital Ad","EYE CONTACT MEDIA LLC","851 Lincolntown Ave",,Mahtomedi,MN,55115
"MN DFL State Central Committee",20003,PTU,SPU,"Bruggenthies, Gary House Committee",18887,Against,2022,10/11/2022,"Independent Expenditure",5805.42,.00,No,,"Design, Print, Mailhouse, Postage, Postage Credit","Gumbinner  Davies","2001 S St NW",,Washington,DC,20009
"MN DFL State Central Committee",20003,PTU,SPU,"Murphy, Mary C House Committee",10601,For,2022,10/11/2022,"Independent Expenditure",6824.68,.00,No,,"Design, Print, Mailhouse, Postage","Gumbinner  Davies","2001 S St NW",,Washington,DC,20009
"MN DFL State Central Committee",20003,PTU,SPU,"Witte, Jeff House Committee",18862,Against,2022,10/11/2022,"Independent Expenditure",6851.70,.00,No,,"Design, Print, Mailhouse, Postage","Gumbinner  Davies","2001 S St NW",,Washington,DC,20009
"MN DFL State Central Committee",20003,PTU,SPU,"Engen, Elliott W House Committee",18530,Against,2022,10/11/2022,"Independent Expenditure",6911.36,.00,No,,"Design, Print, Mailhouse, Postage","Gumbinner  Davies","2001 S St NW",,Washington,DC,20009
"MN DFL State Central Committee",20003,PTU,SPU,"Engen, Elliott W House Committee",18530,Against,2022,10/11/2022,"Independent Expenditure",6933.25,.00,No,,"Design, Print, Mailhouse, Postage","Gumbinner  Davies","2001 S St NW",,Washington,DC,20009
"MN DFL State Central Committee",20003,PTU,SPU,"Swoboda, Steven House Committee",18946,Against,2022,10/11/2022,"Independent Expenditure",6967.94,.00,No,,"Design, Print, Mailhouse, Postage","Gumbinner  Davies","2001 S St NW",,Washington,DC,20009
"MN DFL State Central Committee",20003,PTU,SPU,"Bristol, John House Committee",18852,Against,2022,11/07/2022,"Independent Expenditure",6442.12,.00,No,,"Design, Production, Mailhouse, Postage","Clarify LLC","870 Market St",,"San Francisco",CA,94102
"MN DFL State Central Committee",20003,PTU,SPU,"Raleigh, Donald House Committee",18622,Against,2022,11/14/2022,"Independent Expenditure",5787.27,.00,No,,"Design, Production, Mailhouse, Postage","Clarify LLC","870 Market St",,"San Francisco",CA,94102
"MN DFL State Central Committee",20003,PTU,SPU,"Walz, Tim Gov Committee",18135,For,2022,10/12/2022,"Independent Expenditure",193693.30,.00,No,,"Design, Print, Mailhouse, Postage","Deliver Strategies","PO Box 100970",,Arlington,VA,22210
"MN DFL State Central Committee",20003,PTU,SPU,"Walz, Tim Gov Committee",18135,For,2022,10/26/2022,"Independent Expenditure",187132.82,.00,No,,"Design, Print, Mailhouse, Postage","Deliver Strategies","PO Box 100970",,Arlington,VA,22210
"MN DFL State Central Committee",20003,PTU,SPU,"Ellison, Keith Atty Gen Committee",18336,For,2022,09/21/2022,"Independent Expenditure",20000.00,.00,No,,"Broadcast, Radio","eStreet Group","80 M St SE",,Washington,DC,20003
"MN DFL State Central Committee",20003,PTU,SPU,"Ellison, Keith Atty Gen Committee",18336,For,2022,10/21/2022,"Independent Expenditure",53050.65,.00,No,,"Digital Ad","eStreet Group","80 M St SE",,Washington,DC,20003
"MN DFL State Central Committee",20003,PTU,SPU,"Ellison, Keith Atty Gen Committee",18336,For,2022,10/21/2022,"Independent Expenditure",113949.35,.00,No,,"Broadcast, Radio","eStreet Group","80 M St SE",,Washington,DC,20003
"MN DFL State Central Committee",20003,PTU,SPU,"Attia, Karen M Senate Committee",18619,Against,2022,09/23/2022,"Independent Expenditure",30200.00,.00,No,,"Digital Ad","EYE CONTACT MEDIA LLC","851 Lincolntown Ave",,Mahtomedi,MN,55115
"MN DFL State Central Committee",20003,PTU,SPU,"Dippel, Tom Senate Committee",18739,Against,2022,09/23/2022,"Independent Expenditure",46200.00,.00,No,,"Digital Ad","EYE CONTACT MEDIA LLC","851 Lincolntown Ave",,Mahtomedi,MN,55115
"MN DFL State Central Committee",20003,PTU,SPU,"Zupancich, Andrea Senate Committee",18863,Against,2022,09/23/2022,"Independent Expenditure",46200.00,.00,No,,"Digital Ad","EYE CONTACT MEDIA LLC","851 Lincolntown Ave",,Mahtomedi,MN,55115
"MN DFL State Central Committee",20003,PTU,SPU,"Abeler, Jim Senate Committee",17868,Against,2022,10/04/2022,"Independent Expenditure",13200.00,.00,No,,"Digital Ad","EYE CONTACT MEDIA LLC","851 Lincolntown Ave",,Mahtomedi,MN,55115
"MN DFL State Central Committee",20003,PTU,SPU,"Dippel, Tom Senate Committee",18739,Against,2022,10/19/2022,"Independent Expenditure",3571.42,.00,No,,"Digital Ad Production","EYE CONTACT MEDIA LLC","851 Lincolntown Ave",,Mahtomedi,MN,55115
"MN DFL State Central Committee",20003,PTU,SPU,"Bohmer, Dan Senate Committee",18945,Against,2022,10/19/2022,"Independent Expenditure",3571.43,.00,No,,"Digital Ad Production","EYE CONTACT MEDIA LLC","851 Lincolntown Ave",,Mahtomedi,MN,55115
"MN DFL State Central Committee",20003,PTU,SPU,"Bohmer, Dan Senate Committee",18945,Against,2022,10/25/2022,"Independent Expenditure",8250.00,.00,No,,"Digital Ad","EYE CONTACT MEDIA LLC","851 Lincolntown Ave",,Mahtomedi,MN,55115
"MN DFL State Central Committee",20003,PTU,SPU,"Walz, Tim Gov Committee",18135,For,2022,10/12/2022,"Independent Expenditure",193693.30,.00,No,,"Design, Print, Mailhouse, Postage","Deliver Strategies","PO Box 100970",,Arlington,VA,22210
"MN DFL State Central Committee",20003,PTU,SPU,"Walz, Tim Gov Committee",18135,For,2022,10/21/2022,"Independent Expenditure",94352.06,.00,No,,"Design, Print, Mailhouse, Postage","Deliver Strategies","PO Box 100970",,Arlington,VA,22210
"MN DFL State Central Committee",20003,PTU,SPU,"Ellison, Keith Atty Gen Committee",18336,For,2022,10/20/2022,"Independent Expenditure",5440.72,.00,No,,"Ad Production, Talent","eStreet Group","80 M St SE",,Washington,DC,20003
"MN DFL State Central Committee",20003,PTU,SPU,"Abeler, Jim Senate Committee",17868,Against,2022,10/04/2022,"Independent Expenditure",45650.00,.00,No,,"Digital Ad","EYE CONTACT MEDIA LLC","851 Lincolntown Ave",,Mahtomedi,MN,55115
"MN DFL State Central Committee",20003,PTU,SPU,"Dippel, Tom Senate Committee",18739,Against,2022,10/04/2022,"Independent Expenditure",49400.00,.00,No,,"Digital Ad","EYE CONTACT MEDIA LLC","851 Lincolntown Ave",,Mahtomedi,MN,55115
"MN DFL State Central Committee",20003,PTU,SPU,"Abeler, Jim Senate Committee",17868,Against,2022,10/19/2022,"Independent Expenditure",3571.43,.00,No,,"Digital Ad Production","EYE CONTACT MEDIA LLC","851 Lincolntown Ave",,Mahtomedi,MN,55115
"MN DFL State Central Committee",20003,PTU,SPU,"Chamberlain, Roger C Senate Committee",17021,Against,2022,10/19/2022,"Independent Expenditure",3571.43,.00,No,,"Digital Ad Production","EYE CONTACT MEDIA LLC","851 Lincolntown Ave",,Mahtomedi,MN,55115
"MN DFL State Central Committee",20003,PTU,SPU,"Bohmer, Dan Senate Committee",18945,Against,2022,11/04/2022,"Independent Expenditure",8250.00,.00,No,,"Digital Ad","EYE CONTACT MEDIA LLC","851 Lincolntown Ave",,Mahtomedi,MN,55115
"MN DFL State Central Committee",20003,PTU,SPU,"Abeler, Jim Senate Committee",17868,Against,2022,12/31/2022,"Independent Expenditure",3571.43,.00,No,,"Digital Ad Production","EYE CONTACT MEDIA LLC","851 Lincolntown Ave",,Mahtomedi,MN,55115
"MN DFL State Central Committee",20003,PTU,SPU,"Ecklund, Robert House Committee",17871,For,2022,11/16/2022,"Independent Expenditure",151.92,.00,No,,"Digital Ad",Facebook,"1 Hacker Way",,"Menlo Park",CA,94025
"MN DFL State Central Committee",20003,PTU,SPU,"Seeberger, Judy Senate Committee",18845,For,2022,11/16/2022,"Independent Expenditure",378.29,.00,No,,"Digital Ad",Facebook,"1 Hacker Way",,"Menlo Park",CA,94025
"MN DFL State Central Committee",20003,PTU,SPU,"Walz, Tim Gov Committee",18135,For,2022,10/27/2022,"Independent Expenditure",70000.00,.00,No,,"Digital Ad","Gambit Strategies","2939 Van Ness St NW",,Washington,DC,20008
"MN DFL State Central Committee",20003,PTU,SPU,"Hauschild, Grant Senate Committee",18873,For,2022,10/28/2022,"Independent Expenditure",4400.00,.00,No,,"Broadcast, Television","Gray Media Group","1 Walnut St",,Boston,MA,2108
"MN DFL State Central Committee",20003,PTU,SPU,"Wolgamott, Dan House Committee",18168,For,2022,09/23/2022,"Independent Expenditure",6619.19,.00,No,,"Design, Print, Mailhouse, Postage","Gumbinner  Davies","2001 S St NW",,Washington,DC,20009
"MN DFL State Central Committee",20003,PTU,SPU,"Sandstede, Julie House Committee",17941,For,2022,10/04/2022,"Independent Expenditure",6708.53,.00,No,,"Design, Print, Mailhouse, Postage","Gumbinner  Davies","2001 S St NW",,Washington,DC,20009
"MN DFL State Central Committee",20003,PTU,SPU,"Ellison, Keith Atty Gen Committee",18336,For,2022,10/26/2022,"Independent Expenditure",120000.00,.00,No,,"Broadcast, Radio","eStreet Group","80 M St SE",,Washington,DC,20003
"MN DFL State Central Committee",20003,PTU,SPU,"Abeler, Jim Senate Committee",17868,Against,2022,09/23/2022,"Independent Expenditure",41950.00,.00,No,,"Digital Ad","EYE CONTACT MEDIA LLC","851 Lincolntown Ave",,Mahtomedi,MN,55115
"MN DFL State Central Committee",20003,PTU,SPU,"Chamberlain, Roger C Senate Committee",17021,Against,2022,09/23/2022,"Independent Expenditure",46200.00,.00,No,,"Digital Ad","EYE CONTACT MEDIA LLC","851 Lincolntown Ave",,Mahtomedi,MN,55115
"MN DFL State Central Committee",20003,PTU,SPU,"Theis, Tama Lynn Senate Committee",18895,Against,2022,10/04/2022,"Independent Expenditure",49400.00,.00,No,,"Digital Ad","EYE CONTACT MEDIA LLC","851 Lincolntown Ave",,Mahtomedi,MN,55115
"MN DFL State Central Committee",20003,PTU,SPU,"Zupancich, Andrea Senate Committee",18863,Against,2022,10/25/2022,"Independent Expenditure",6700.00,.00,No,,"Digital Ad","EYE CONTACT MEDIA LLC","851 Lincolntown Ave",,Mahtomedi,MN,55115
"MN DFL State Central Committee",20003,PTU,SPU,"Chamberlain, Roger C Senate Committee",17021,Against,2022,10/27/2022,"Independent Expenditure",3571.43,.00,No,,"Digital Ad Production","EYE CONTACT MEDIA LLC","851 Lincolntown Ave",,Mahtomedi,MN,55115
"MN DFL State Central Committee",20003,PTU,SPU,"Bohmer, Dan Senate Committee",18945,Against,2022,12/31/2022,"Independent Expenditure",3571.43,.00,No,,"Digital Ad Production","EYE CONTACT MEDIA LLC","851 Lincolntown Ave",,Mahtomedi,MN,55115
"MN DFL State Central Committee",20003,PTU,SPU,"Dorry, Kari Senate Committee",18696,For,2022,11/16/2022,"Independent Expenditure",251.42,.00,No,,"Digital Ad",Facebook,"1 Hacker Way",,"Menlo Park",CA,94025
"MN DFL State Central Committee",20003,PTU,SPU,"Stephenson, Zachary House Committee",18129,For,2022,09/23/2022,"Independent Expenditure",6705.98,.00,No,,"Design, Print, Mailhouse, Postage","Gumbinner  Davies","2001 S St NW",,Washington,DC,20009
"MN DFL State Central Committee",20003,PTU,SPU,"Murphy, Mary C House Committee",10601,For,2022,09/23/2022,"Independent Expenditure",6789.57,.00,No,,"Design, Print, Mailhouse, Postage","Gumbinner  Davies","2001 S St NW",,Washington,DC,20009
"MN DFL State Central Committee",20003,PTU,SPU,"Bruggenthies, Gary House Committee",18887,Against,2022,10/11/2022,"Independent Expenditure",6187.48,.00,No,,"Design, Print, Mailhouse, Postage","Gumbinner  Davies","2001 S St NW",,Washington,DC,20009
"MN DFL State Central Committee",20003,PTU,SPU,"Heinrich, John House Committee",18220,Against,2022,10/11/2022,"Independent Expenditure",6782.91,.00,No,,"Design, Print, Mailhouse, Postage","Gumbinner  Davies","2001 S St NW",,Washington,DC,20009
"MN DFL State Central Committee",20003,PTU,SPU,"Henning, Aaron House Committee",18913,Against,2022,10/14/2022,"Independent Expenditure",5450.88,.00,No,,"Digital Ad","Gumbinner  Davies","2001 S St NW",,Washington,DC,20009
"MN DFL State Central Committee",20003,PTU,SPU,"Gunderson, Heidi Ann House Committee",17664,Against,2022,10/14/2022,"Independent Expenditure",7009.03,.00,No,,"Design, Print, Mailhouse, Postage","Gumbinner  Davies","2001 S St NW",,Washington,DC,20009
"MN DFL State Central Committee",20003,PTU,SPU,"Fenton, Kelly House Committee",18775,Against,2022,11/14/2022,"Independent Expenditure",5901.60,.00,No,,"Design, Production, Mailhouse, Postage","Clarify LLC","870 Market St",,"San Francisco",CA,94102
"MN DFL State Central Committee",20003,PTU,SPU,"Bishofsky, Mark House Committee",18729,Against,2022,11/14/2022,"Independent Expenditure",6073.61,.00,No,,"Design, Production, Mailhouse, Postage","Clarify LLC","870 Market St",,"San Francisco",CA,94102
"MN DFL State Central Committee",20003,PTU,SPU,"Lislegard, David House Committee",18314,For,2022,11/14/2022,"Independent Expenditure",6085.78,.00,No,,"Design, Production, Mailhouse, Postage","Clarify LLC","870 Market St",,"San Francisco",CA,94102
"MN DFL State Central Committee",20003,PTU,SPU,"Skraba, Roger Joseph House Committee",18918,Against,2022,11/14/2022,"Independent Expenditure",6255.60,.00,No,,"Design, Production, Mailhouse, Postage","Clarify LLC","870 Market St",,"San Francisco",CA,94102
"MN DFL State Central Committee",20003,PTU,SPU,"Jensen, Scott Dr Gov Committee",18690,Against,2022,09/22/2022,"Independent Expenditure",76133.48,.00,No,,"Design, Print, Mailhouse, Postage","Deliver Strategies","PO Box 100970",,Arlington,VA,22210
"MN DFL State Central Committee",20003,PTU,SPU,"Walz, Tim Gov Committee",18135,For,2022,10/20/2022,"Independent Expenditure",157172.26,.00,No,,"Design, Print, Mailhouse, Postage","Deliver Strategies","PO Box 100970",,Arlington,VA,22210
"MN DFL State Central Committee",20003,PTU,SPU,"Ellison, Keith Atty Gen Committee",18336,For,2022,10/04/2022,"Independent Expenditure",30000.00,.00,No,,"Digital Ad","eStreet Group","80 M St SE",,Washington,DC,20003
"MN DFL State Central Committee",20003,PTU,SPU,"Ellison, Keith Atty Gen Committee",18336,For,2022,10/25/2022,"Independent Expenditure",38000.00,.00,No,,"Broadcast, Radio","eStreet Group","80 M St SE",,Washington,DC,20003
"MN DFL State Central Committee",20003,PTU,SPU,"Ellison, Keith Atty Gen Committee",18336,For,2022,11/02/2022,"Independent Expenditure",2800.00,.00,No,,"Digital Ad Production","eStreet Group","80 M St SE",,Washington,DC,20003
"MN DFL State Central Committee",20003,PTU,SPU,"Zupancich, Andrea Senate Committee",18863,Against,2022,10/04/2022,"Independent Expenditure",49400.00,.00,No,,"Digital Ad","EYE CONTACT MEDIA LLC","851 Lincolntown Ave",,Mahtomedi,MN,55115
"MN DFL State Central Committee",20003,PTU,SPU,"Theis, Tama Lynn Senate Committee",18895,Against,2022,10/19/2022,"Independent Expenditure",3571.43,.00,No,,"Digital Ad Production","EYE CONTACT MEDIA LLC","851 Lincolntown Ave",,Mahtomedi,MN,55115
"MN DFL State Central Committee",20003,PTU,SPU,"Bohmer, Dan Senate Committee",18945,Against,2022,10/27/2022,"Independent Expenditure",3571.43,.00,No,,"Digital Ad Production","EYE CONTACT MEDIA LLC","851 Lincolntown Ave",,Mahtomedi,MN,55115
"MN DFL State Central Committee",20003,PTU,SPU,"Zupancich, Andrea Senate Committee",18863,Against,2022,10/27/2022,"Independent Expenditure",3571.43,.00,No,,"Digital Ad Production","EYE CONTACT MEDIA LLC","851 Lincolntown Ave",,Mahtomedi,MN,55115
"MN DFL State Central Committee",20003,PTU,SPU,"Dippel, Tom Senate Committee",18739,Against,2022,11/04/2022,"Independent Expenditure",19200.00,.00,No,,"Digital Ad","EYE CONTACT MEDIA LLC","851 Lincolntown Ave",,Mahtomedi,MN,55115
"MN DFL State Central Committee",20003,PTU,SPU,"Skraba, Roger Joseph House Committee",18918,Against,2022,11/16/2022,"Independent Expenditure",6061.30,.00,No,,"Design, Production, Mailhouse, Postage","Clarify LLC","870 Market St",,"San Francisco",CA,94102
"MN DFL State Central Committee",20003,PTU,SPU,"Walz, Tim Gov Committee",18135,For,2022,10/12/2022,"Independent Expenditure",193693.30,.00,No,,"Design, Print, Mailhouse, Postage","Deliver Strategies","PO Box 100970",,Arlington,VA,22210
"MN DFL State Central Committee",20003,PTU,SPU,"Ellison, Keith Atty Gen Committee",18336,For,2022,09/28/2022,"Independent Expenditure",1970.00,.00,No,,"Digital Ad Production","eStreet Group","80 M St SE",,Washington,DC,20003
"MN DFL State Central Committee",20003,PTU,SPU,"Ellison, Keith Atty Gen Committee",18336,For,2022,09/28/2022,"Independent Expenditure",30000.00,.00,No,,"Broadcast, Radio","eStreet Group","80 M St SE",,Washington,DC,20003
"MN DFL State Central Committee",20003,PTU,SPU,"Ellison, Keith Atty Gen Committee",18336,For,2022,09/30/2022,"Independent Expenditure",150000.00,.00,No,,"Broadcast, Radio","eStreet Group","80 M St SE",,Washington,DC,20003
"MN DFL State Central Committee",20003,PTU,SPU,"Ellison, Keith Atty Gen Committee",18336,For,2022,10/04/2022,"Independent Expenditure",35000.00,.00,No,,"Broadcast, Radio","eStreet Group","80 M St SE",,Washington,DC,20003
"MN DFL State Central Committee",20003,PTU,SPU,"Ellison, Keith Atty Gen Committee",18336,For,2022,11/02/2022,"Independent Expenditure",60000.00,.00,No,,"Broadcast, Radio","eStreet Group","80 M St SE",,Washington,DC,20003
"MN DFL State Central Committee",20003,PTU,SPU,"Attia, Karen M Senate Committee",18619,Against,2022,10/04/2022,"Independent Expenditure",16000.00,.00,No,,"Digital Ad","EYE CONTACT MEDIA LLC","851 Lincolntown Ave",,Mahtomedi,MN,55115
"MN DFL State Central Committee",20003,PTU,SPU,"Chamberlain, Roger C Senate Committee",17021,Against,2022,10/04/2022,"Independent Expenditure",49400.00,.00,No,,"Digital Ad","EYE CONTACT MEDIA LLC","851 Lincolntown Ave",,Mahtomedi,MN,55115
"MN DFL State Central Committee",20003,PTU,SPU,"Bohmer, Dan Senate Committee",18945,Against,2022,10/19/2022,"Independent Expenditure",26500.00,.00,No,,"Digital Ad","EYE CONTACT MEDIA LLC","851 Lincolntown Ave",,Mahtomedi,MN,55115
"MN DFL State Central Committee",20003,PTU,SPU,"Attia, Karen M Senate Committee",18619,Against,2022,10/25/2022,"Independent Expenditure",4866.00,.00,No,,"Digital Ad","EYE CONTACT MEDIA LLC","851 Lincolntown Ave",,Mahtomedi,MN,55115
"MN DFL State Central Committee",20003,PTU,SPU,"Dippel, Tom Senate Committee",18739,Against,2022,10/25/2022,"Independent Expenditure",19200.00,.00,No,,"Digital Ad","EYE CONTACT MEDIA LLC","851 Lincolntown Ave",,Mahtomedi,MN,55115
"MN DFL State Central Committee",20003,PTU,SPU,"Abeler, Jim Senate Committee",17868,Against,2022,10/27/2022,"Independent Expenditure",3571.43,.00,No,,"Digital Ad Production","EYE CONTACT MEDIA LLC","851 Lincolntown Ave",,Mahtomedi,MN,55115
"MN DFL State Central Committee",20003,PTU,SPU,"Theis, Tama Lynn Senate Committee",18895,Against,2022,10/27/2022,"Independent Expenditure",3571.43,.00,No,,"Digital Ad Production","EYE CONTACT MEDIA LLC","851 Lincolntown Ave",,Mahtomedi,MN,55115
"MN DFL State Central Committee",20003,PTU,SPU,"Scanlon, Joseph House Committee",18728,Against,2022,11/14/2022,"Independent Expenditure",5706.07,.00,No,,"Design, Production, Mailhouse, Postage","Clarify LLC","870 Market St",,"San Francisco",CA,94102
"MN DFL State Central Committee",20003,PTU,SPU,"Jensen, Scott Dr Gov Committee",18690,Against,2022,10/21/2022,"Independent Expenditure",118341.71,.00,No,,"Design, Print, Mailhouse, Postage","Deliver Strategies","PO Box 100970",,Arlington,VA,22210
"MN DFL State Central Committee",20003,PTU,SPU,"Ellison, Keith Atty Gen Committee",18336,For,2022,09/06/2022,"Independent Expenditure",40000.00,.00,No,,"Broadcast, Radio","eStreet Group","80 M St SE",,Washington,DC,20003
"MN DFL State Central Committee",20003,PTU,SPU,"Ellison, Keith Atty Gen Committee",18336,For,2022,09/14/2022,"Independent Expenditure",25000.00,.00,No,,"Broadcast, Radio","eStreet Group","80 M St SE",,Washington,DC,20003
"MN DFL State Central Committee",20003,PTU,SPU,"Ellison, Keith Atty Gen Committee",18336,For,2022,09/26/2022,"Independent Expenditure",50440.72,.00,No,,"Production, Broadcast, Radio","eStreet Group","80 M St SE",,Washington,DC,20003
"MN DFL State Central Committee",20003,PTU,SPU,"Ellison, Keith Atty Gen Committee",18336,For,2022,09/29/2022,"Independent Expenditure",35000.00,.00,No,,"Digital Ad","eStreet Group","80 M St SE",,Washington,DC,20003
"MN DFL State Central Committee",20003,PTU,SPU,"Ellison, Keith Atty Gen Committee",18336,For,2022,10/20/2022,"Independent Expenditure",60000.00,.00,No,,"Digital Ad","eStreet Group","80 M St SE",,Washington,DC,20003
"MN DFL State Central Committee",20003,PTU,SPU,"Abeler, Jim Senate Committee",17868,Against,2022,09/23/2022,"Independent Expenditure",11900.00,.00,No,,"Digital Ad","EYE CONTACT MEDIA LLC","851 Lincolntown Ave",,Mahtomedi,MN,55115
"MN DFL State Central Committee",20003,PTU,SPU,"Theis, Tama Lynn Senate Committee",18895,Against,2022,09/23/2022,"Independent Expenditure",46200.00,.00,No,,"Digital Ad","EYE CONTACT MEDIA LLC","851 Lincolntown Ave",,Mahtomedi,MN,55115
"MN DFL State Central Committee",20003,PTU,SPU,"Abeler, Jim Senate Committee",17868,Against,2022,10/25/2022,"Independent Expenditure",16050.00,.00,No,,"Digital Ad","EYE CONTACT MEDIA LLC","851 Lincolntown Ave",,Mahtomedi,MN,55115
"MN DFL State Central Committee",20003,PTU,SPU,"Chamberlain, Roger C Senate Committee",17021,Against,2022,10/25/2022,"Independent Expenditure",19200.00,.00,No,,"Digital Ad","EYE CONTACT MEDIA LLC","851 Lincolntown Ave",,Mahtomedi,MN,55115
"MN DFL State Central Committee",20003,PTU,SPU,"Chamberlain, Roger C Senate Committee",17021,Against,2022,11/04/2022,"Independent Expenditure",19200.00,.00,No,,"Digital Ad","EYE CONTACT MEDIA LLC","851 Lincolntown Ave",,Mahtomedi,MN,55115
"MN DFL State Central Committee",20003,PTU,SPU,"Kupec, Rob Senate Committee",18917,For,2022,11/16/2022,"Independent Expenditure",159.12,.00,No,,"Digital Ad",Facebook,"1 Hacker Way",,"Menlo Park",CA,94025
"MN DFL State Central Committee",20003,PTU,SPU,"Putnam, Aric Senate Committee",18430,For,2022,11/16/2022,"Independent Expenditure",319.00,.00,No,,"Digital Ad",Facebook,"1 Hacker Way",,"Menlo Park",CA,94025
"MN DFL State Central Committee",20003,PTU,SPU,"DeNucci, Ben Senate Committee",18866,For,2022,11/16/2022,"Independent Expenditure",474.88,.00,No,,"Digital Ad",Facebook,"1 Hacker Way",,"Menlo Park",CA,94025
"MN DFL State Central Committee",20003,PTU,SPU,"Akland, D. Susan (Susie) House Committee",18464,Against,2022,10/14/2022,"Independent Expenditure",6456.14,.00,No,,"Design, Print, Mailhouse, Postage","Gumbinner  Davies","2001 S St NW",,Washington,DC,20009
"MN DFL State Central Committee",20003,PTU,SPU,"Witte, Jeff House Committee",18862,Against,2022,10/14/2022,"Independent Expenditure",6851.70,.00,No,,"Design, Print, Mailhouse, Postage","Gumbinner  Davies","2001 S St NW",,Washington,DC,20009
"MN DFL State Central Committee",20003,PTU,SPU,"Zeleznikar, Natalie House Committee",18835,Against,2022,10/14/2022,"Independent Expenditure",6940.94,.00,No,,"Design, Print, Mailhouse, Postage","Gumbinner  Davies","2001 S St NW",,Washington,DC,20009
"MN DFL State Central Committee",20003,PTU,SPU,"Heinrich, John House Committee",18220,Against,2022,10/21/2022,"Independent Expenditure",6835.03,.00,No,,"Design, Print, Mailhouse, Postage","Gumbinner  Davies","2001 S St NW",,Washington,DC,20009
"MN DFL State Central Committee",20003,PTU,SPU,"Swoboda, Steven House Committee",18946,Against,2022,10/21/2022,"Independent Expenditure",6946.63,.00,No,,"Design, Print, Mailhouse, Postage","Gumbinner  Davies","2001 S St NW",,Washington,DC,20009
"MN DFL State Central Committee",20003,PTU,SPU,"Zeleznikar, Natalie House Committee",18835,Against,2022,11/04/2022,"Independent Expenditure",6814.15,.00,No,,"Design, Print, Mailhouse, Postage","Gumbinner  Davies","2001 S St NW",,Washington,DC,20009
"MN DFL State Central Committee",20003,PTU,SPU,"Hansen, Richard (Rick) J House Committee",16189,For,2022,11/04/2022,"Independent Expenditure",6979.85,.00,No,,"Design, Print, Mailhouse, Postage","Gumbinner  Davies","2001 S St NW",,Washington,DC,20009
"MN DFL State Central Committee",20003,PTU,SPU,"Murphy, Mary C House Committee",10601,For,2022,11/07/2022,"Independent Expenditure",7652.45,.00,No,,"Design, Print, Mailhouse, Postage","Gumbinner  Davies","2001 S St NW",,Washington,DC,20009
"MN DFL State Central Committee",20003,PTU,SPU,"Virnig, Bianca House Committee",19014,For,2023,12/15/2023,"Independent Expenditure",5101.87,.00,No,,"Design, Production, Mailhouse,
Postage","Neon Strategies LLC","4301 Nokomis Ave",,Minneapolis,MN,55406
"MN DFL State Central Committee",20003,PTU,SPU,,,For,2022,07/28/2022,"Independent Expenditure",1920.69,.00,No,,"Design, Print, Mailhouse","Smart Set Inc","1209 Tyler St NE",,Minneapolis,MN,55413
"MN DFL State Central Committee",20003,PTU,SPU,"Ellison, Keith Atty Gen Committee",18336,For,2022,10/04/2022,"Independent Expenditure",106465.01,.00,No,,"Design, Print, Mailhouse, Postage","The Baseline Agency","1835 7th St NW",,Washington,DC,20001
"MN DFL State Central Committee",20003,PTU,SPU,"Schultz, James Atty Gen Committee",18731,Against,2022,10/24/2022,"Independent Expenditure",33978.61,.00,No,,"Design, Print, Mailhouse, Postage","The Baseline Agency","1835 7th St NW",,Washington,DC,20001
"MN DFL State Central Committee",20003,PTU,SPU,"Abeler, Jim Senate Committee",17868,Against,2022,10/28/2022,"Independent Expenditure",11806.16,.00,No,,"Design, Production, Mailhouse, Postage","The Strategy Group","500 W Madison St",,Chicago,IL,60661
"MN DFL State Central Committee",20003,PTU,SPU,"Abeler, Jim Senate Committee",17868,Against,2022,10/28/2022,"Independent Expenditure",11891.16,.00,No,,"Design, Production, Mailhouse, Postage","The Strategy Group","500 W Madison St",,Chicago,IL,60661
"MN DFL State Central Committee",20003,PTU,SPU,"Attia, Karen M Senate Committee",18619,Against,2022,11/04/2022,"Independent Expenditure",4866.00,.00,No,,"Digital Ad","EYE CONTACT MEDIA LLC","851 Lincolntown Ave",,Mahtomedi,MN,55115
"MN DFL State Central Committee",20003,PTU,SPU,"Theis, Tama Lynn Senate Committee",18895,Against,2022,11/04/2022,"Independent Expenditure",26334.00,.00,No,,"Digital Ad","EYE CONTACT MEDIA LLC","851 Lincolntown Ave",,Mahtomedi,MN,55115
"MN DFL State Central Committee",20003,PTU,SPU,"Theis, Tama Lynn Senate Committee",18895,Against,2022,12/31/2022,"Independent Expenditure",3571.43,.00,No,,"Digital Ad Production","EYE CONTACT MEDIA LLC","851 Lincolntown Ave",,Mahtomedi,MN,55115
"MN DFL State Central Committee",20003,PTU,SPU,"Roy, Leonard Alan Senate Committee",18800,For,2022,11/16/2022,"Independent Expenditure",159.39,.00,No,,"Digital Ad",Facebook,"1 Hacker Way",,"Menlo Park",CA,94025
"MN DFL State Central Committee",20003,PTU,SPU,"Gustafson, Heather Senate Committee",18781,For,2022,11/16/2022,"Independent Expenditure",379.48,.00,No,,"Digital Ad",Facebook,"1 Hacker Way",,"Menlo Park",CA,94025
"MN DFL State Central Committee",20003,PTU,SPU,"Lee, Kaozouapa Elizabeth House Committee",18701,For,2022,07/25/2022,"Independent Expenditure",3567.69,.00,No,,"Design, Print, Mailhouse, Postage","Gumbinner  Davies","2001 S St NW",,Washington,DC,20009
"MN DFL State Central Committee",20003,PTU,SPU,"Lee, Kaozouapa Elizabeth House Committee",18701,For,2022,07/29/2022,"Independent Expenditure",3564.39,.00,No,,"Design, Print, Mailhouse, Postage","Gumbinner  Davies","2001 S St NW",,Washington,DC,20009
"MN DFL State Central Committee",20003,PTU,SPU,"Preese, Erin B House Committee",18452,For,2022,10/04/2022,"Independent Expenditure",6875.84,.00,No,,"Design, Print, Mailhouse, Postage","Gumbinner  Davies","2001 S St NW",,Washington,DC,20009
"MN DFL State Central Committee",20003,PTU,SPU,"Boe, Greg House Committee",18348,Against,2022,10/04/2022,"Independent Expenditure",6940.69,.00,No,,"Design, Print, Mailhouse, Postage","Gumbinner  Davies","2001 S St NW",,Washington,DC,20009
"MN DFL State Central Committee",20003,PTU,SPU,"Sandstede, Julie House Committee",17941,For,2022,10/11/2022,"Independent Expenditure",6711.38,.00,No,,"Design, Print, Mailhouse, Postage","Gumbinner  Davies","2001 S St NW",,Washington,DC,20009
"MN DFL State Central Committee",20003,PTU,SPU,"Zeleznikar, Natalie House Committee",18835,Against,2022,10/11/2022,"Independent Expenditure",6940.94,.00,No,,"Design, Print, Mailhouse, Postage","Gumbinner  Davies","2001 S St NW",,Washington,DC,20009
"MN DFL State Central Committee",20003,PTU,SPU,"Mortensen, Erik House Committee",18288,Against,2022,10/14/2022,"Independent Expenditure",6716.65,.00,No,,"Design, Print, Mailhouse, Postage","Gumbinner  Davies","2001 S St NW",,Washington,DC,20009
"MN DFL State Central Committee",20003,PTU,SPU,"Heinrich, John House Committee",18220,Against,2022,10/14/2022,"Independent Expenditure",6782.91,.00,No,,"Design, Print, Mailhouse, Postage","Gumbinner  Davies","2001 S St NW",,Washington,DC,20009
"MN DFL State Central Committee",20003,PTU,SPU,"Akland, D. Susan (Susie) House Committee",18464,Against,2022,10/21/2022,"Independent Expenditure",6440.59,.00,No,,"Design, Print, Mailhouse, Postage","Gumbinner  Davies","2001 S St NW",,Washington,DC,20009
"MN DFL State Central Committee",20003,PTU,SPU,"Lourey, Stu Senate Committee",18407,For,2019,02/12/2019,"Independent Expenditure",8879.85,.00,No,,"Design, Mailhouse, Postage","Berlin Rosen LTD","15 Maiden Ln",,"New York",NY,10038
"MN DFL State Central Committee",20003,PTU,SPU,"Fenton, Kelly House Committee",18775,Against,2022,09/27/2022,"Independent Expenditure",5886.90,.00,No,,"Design, Production, Mailhouse, Postage","Clarify LLC","870 Market St",,"San Francisco",CA,94102
"MN DFL State Central Committee",20003,PTU,SPU,"Bishofsky, Mark House Committee",18729,Against,2022,09/27/2022,"Independent Expenditure",6056.14,.00,No,,"Design, Production, Mailhouse, Postage","Clarify LLC","870 Market St",,"San Francisco",CA,94102
"MN DFL State Central Committee",20003,PTU,SPU,"Norris, Matt House Committee",18727,For,2022,09/29/2022,"Independent Expenditure",5782.13,.00,No,,"Design, Production, Mailhouse, Postage","Clarify LLC","870 Market St",,"San Francisco",CA,94102
"MN DFL State Central Committee",20003,PTU,SPU,"HILL, JOSIAH House Committee",18776,For,2022,09/29/2022,"Independent Expenditure",6064.84,.00,No,,"Design, Production, Mailhouse, Postage","Clarify LLC","870 Market St",,"San Francisco",CA,94102
"MN DFL State Central Committee",20003,PTU,SPU,"Norri, Matthew R House Committee",18710,Against,2022,09/29/2022,"Independent Expenditure",6085.78,.00,No,,"Design, Production, Mailhouse, Postage","Clarify LLC","870 Market St",,"San Francisco",CA,94102
"MN DFL State Central Committee",20003,PTU,SPU,"Matteson, Polly House Committee",18847,Against,2022,10/04/2022,"Independent Expenditure",5719.97,.00,No,,"Design, Production, Mailhouse, Postage","Clarify LLC","870 Market St",,"San Francisco",CA,94102
"MN DFL State Central Committee",20003,PTU,SPU,"Fenton, Kelly House Committee",18775,Against,2022,10/04/2022,"Independent Expenditure",5886.90,.00,No,,"Design, Production, Mailhouse, Postage","Clarify LLC","870 Market St",,"San Francisco",CA,94102
"MN DFL State Central Committee",20003,PTU,SPU,"Raleigh, Donald House Committee",18622,Against,2022,10/12/2022,"Independent Expenditure",5787.27,.00,No,,"Design, Production, Mailhouse, Postage","Clarify LLC","870 Market St",,"San Francisco",CA,94102
"MN DFL State Central Committee",20003,PTU,SPU,"Newton, Jerry House Committee",18813,For,2022,10/12/2022,"Independent Expenditure",5944.70,.00,No,,"Design, Production, Mailhouse, Postage","Clarify LLC","870 Market St",,"San Francisco",CA,94102
"MN DFL State Central Committee",20003,PTU,SPU,"Hicks, Kimberly (Kim) House Committee",18519,For,2022,10/12/2022,"Independent Expenditure",5975.18,.00,No,,"Design, Production, Mailhouse, Postage","Clarify LLC","870 Market St",,"San Francisco",CA,94102
"MN DFL State Central Committee",20003,PTU,SPU,"Bishofsky, Mark House Committee",18729,Against,2022,10/12/2022,"Independent Expenditure",6073.61,.00,No,,"Design, Production, Mailhouse, Postage","Clarify LLC","870 Market St",,"San Francisco",CA,94102
"MN DFL State Central Committee",20003,PTU,SPU,"Kroetch, Gabriela House Committee",18853,Against,2022,10/25/2022,"Independent Expenditure",5627.52,5627.52,No,,"Design, Production, Mailhouse, Postage","Clarify LLC","870 Market St",,"San Francisco",CA,94102
"MN DFL State Central Committee",20003,PTU,SPU,"Raleigh, Donald House Committee",18622,Against,2022,10/25/2022,"Independent Expenditure",5662.19,5662.19,No,,"Design, Production, Mailhouse, Postage","Clarify LLC","870 Market St",,"San Francisco",CA,94102
"MN DFL State Central Committee",20003,PTU,SPU,"Witte, Jeff House Committee",18862,Against,2022,10/21/2022,"Independent Expenditure",6858.96,.00,No,,"Design, Print, Mailhouse, Postage","Gumbinner  Davies","2001 S St NW",,Washington,DC,20009
"MN DFL State Central Committee",20003,PTU,SPU,"Gunderson, Heidi Ann House Committee",17664,Against,2022,10/21/2022,"Independent Expenditure",6999.22,.00,No,,"Design, Print, Mailhouse, Postage","Gumbinner  Davies","2001 S St NW",,Washington,DC,20009
"MN DFL State Central Committee",20003,PTU,SPU,"Pursell, Kristi House Committee",18744,For,2022,11/04/2022,"Independent Expenditure",6222.01,.00,No,,"Design, Print, Mailhouse, Postage","Gumbinner  Davies","2001 S St NW",,Washington,DC,20009
"MN DFL State Central Committee",20003,PTU,SPU,"Tabke, Brad House Committee",18332,For,2022,11/07/2022,"Independent Expenditure",6317.78,.00,No,,"Design, Print, Mailhouse, Postage","Gumbinner  Davies","2001 S St NW",,Washington,DC,20009
"MN DFL State Central Committee",20003,PTU,SPU,"Walz, Tim Gov Committee",18135,For,2022,11/08/2022,"Independent Expenditure",1150.00,.00,No,,"Radio Ad Market Intermediary","Lucky Moon Productions","10003 Monticello Ln N",,"Maple Grove",MN,55369
"MN DFL State Central Committee",20003,PTU,SPU,"Hauschild, Grant Senate Committee",18873,For,2022,10/20/2022,"Independent Expenditure",9000.00,.00,No,,"Design, Production","No Coast Workshop","3413 42nd Ave S",,Minneapolis,MN,55406
"MN DFL State Central Committee",20003,PTU,SPU,"Schultz, James Atty Gen Committee",18731,Against,2022,11/16/2022,"Independent Expenditure",53.00,.00,No,,"Domain Registration, Webhosting","Squarespace Inc","225 Varick St",,"New York",NY,10014
"MN DFL State Central Committee",20003,PTU,SPU,"Ellison, Keith Atty Gen Committee",18336,For,2022,11/01/2022,"Independent Expenditure",14991.00,.00,No,,"Print Ad","Star Tribune","425 Portland Ave S",,Minneapolis,MN,55488
"MN DFL State Central Committee",20003,PTU,SPU,"Zupancich, Andrea Senate Committee",18863,Against,2022,10/11/2022,"Independent Expenditure",15488.85,.00,No,,"Design, Production, Mailhouse, Postage","The Strategy Group","500 W Madison St",,Chicago,IL,60661
"MN DFL State Central Committee",20003,PTU,SPU,"Chamberlain, Roger C Senate Committee",17021,Against,2022,10/19/2022,"Independent Expenditure",15822.44,.00,No,,"Design, Production, Mailhouse, Postage","The Strategy Group","500 W Madison St",,Chicago,IL,60661
"MN DFL State Central Committee",20003,PTU,SPU,"Abeler, Jim Senate Committee",17868,Against,2022,10/28/2022,"Independent Expenditure",11616.02,.00,No,,"Ad Production","Three Points Media","3000 K St NW",,Washington,DC,20007
"MN DFL State Central Committee",20003,PTU,SPU,"Dippel, Tom Senate Committee",18739,Against,2022,10/28/2022,"Independent Expenditure",14463.96,.00,No,,"Ad Production","Three Points Media","3000 K St NW",,Washington,DC,20007
"MN DFL State Central Committee",20003,PTU,SPU,"Theis, Tama Lynn Senate Committee",18895,Against,2022,09/16/2022,"Independent Expenditure",14013.52,.00,No,,"Design, Production, Mailhouse, Postage","Wildfire Mail","220 SE 6th St",,"Des Moines",IA,50309
"MN DFL State Central Committee",20003,PTU,SPU,"Theis, Tama Lynn Senate Committee",18895,Against,2022,09/16/2022,"Independent Expenditure",14013.52,.00,No,,"Design, Production, Mailhouse, Postage","Wildfire Mail","220 SE 6th St",,"Des Moines",IA,50309
"MN DFL State Central Committee",20003,PTU,SPU,"Mortensen, Erik House Committee",18288,Against,2022,10/04/2022,"Independent Expenditure",6764.89,.00,No,,"Design, Print, Mailhouse, Postage","Gumbinner  Davies","2001 S St NW",,Washington,DC,20009
"MN DFL State Central Committee",20003,PTU,SPU,"Henning, Aaron House Committee",18913,Against,2022,10/11/2022,"Independent Expenditure",6559.94,.00,No,,"Design, Print, Mailhouse, Postage","Gumbinner  Davies","2001 S St NW",,Washington,DC,20009
"MN DFL State Central Committee",20003,PTU,SPU,"Gunderson, Heidi Ann House Committee",17664,Against,2022,10/11/2022,"Independent Expenditure",7002.49,.00,No,,"Design, Print, Mailhouse, Postage","Gumbinner  Davies","2001 S St NW",,Washington,DC,20009
"MN DFL State Central Committee",20003,PTU,SPU,"Engen, Elliott W House Committee",18530,Against,2022,10/14/2022,"Independent Expenditure",6933.25,.00,No,,"Design, Print, Mailhouse, Postage","Gumbinner  Davies","2001 S St NW",,Washington,DC,20009
"MN DFL State Central Committee",20003,PTU,SPU,"Swoboda, Steven House Committee",18946,Against,2022,10/14/2022,"Independent Expenditure",6967.94,.00,No,,"Design, Print, Mailhouse, Postage","Gumbinner  Davies","2001 S St NW",,Washington,DC,20009
"MN DFL State Central Committee",20003,PTU,SPU,"Bruggenthies, Gary House Committee",18887,Against,2022,10/21/2022,"Independent Expenditure",6228.60,.00,No,,"Design, Print, Mailhouse, Postage","Gumbinner  Davies","2001 S St NW",,Washington,DC,20009
"MN DFL State Central Committee",20003,PTU,SPU,"Henning, Aaron House Committee",18913,Against,2022,10/21/2022,"Independent Expenditure",6666.82,.00,No,,"Design, Print, Mailhouse, Postage","Gumbinner  Davies","2001 S St NW",,Washington,DC,20009
"MN DFL State Central Committee",20003,PTU,SPU,"Boe, Greg House Committee",18348,Against,2022,10/28/2022,"Independent Expenditure",6937.64,.00,No,,"Design, Print, Mailhouse, Postage","Gumbinner  Davies","2001 S St NW",,Washington,DC,20009
"MN DFL State Central Committee",20003,PTU,SPU,"Stephenson, Zachary House Committee",18129,For,2022,11/04/2022,"Independent Expenditure",6763.01,.00,No,,"Design, Print, Mailhouse, Postage","Gumbinner  Davies","2001 S St NW",,Washington,DC,20009
"MN DFL State Central Committee",20003,PTU,SPU,"Curran, Brion House Committee",18855,For,2022,11/04/2022,"Independent Expenditure",7002.66,.00,No,,"Design, Print, Mailhouse, Postage","Gumbinner  Davies","2001 S St NW",,Washington,DC,20009
"MN DFL State Central Committee",20003,PTU,SPU,"Walz, Tim Gov Committee",18135,For,2022,10/31/2022,"Independent Expenditure",23000.00,.00,No,,"Broadcast, Radio","Sage Media","1322 G St SE",,Washington,DC,20003
"MN DFL State Central Committee",20003,PTU,SPU,"Blaha, Julie State Aud Committee",18218,For,2022,08/15/2022,"Independent Expenditure",1107.89,.00,No,,"Design, Print","Seven Corners Printing","1099 Snelling Ave N",,"Saint Paul",MN,55108
"MN DFL State Central Committee",20003,PTU,SPU,"Crockett, Kim Sec of State Committee",18732,Against,2022,08/15/2022,"Independent Expenditure",72.61,.00,No,,"Domain Registration, Webhosting","Squarespace Inc","225 Varick St",,"New York",NY,10014
"MN DFL State Central Committee",20003,PTU,SPU,"Schultz, James Atty Gen Committee",18731,Against,2022,10/15/2022,"Independent Expenditure",137.00,.00,No,,"Domain Registration, Webhosting","Squarespace Inc","225 Varick St",,"New York",NY,10014
"MN DFL State Central Committee",20003,PTU,SPU,"Zupancich, Andrea Senate Committee",18863,Against,2022,11/04/2022,"Independent Expenditure",6700.00,.00,No,,"Digital Ad","EYE CONTACT MEDIA LLC","851 Lincolntown Ave",,Mahtomedi,MN,55115
"MN DFL State Central Committee",20003,PTU,SPU,"Abeler, Jim Senate Committee",17868,Against,2022,11/04/2022,"Independent Expenditure",16050.00,.00,No,,"Digital Ad","EYE CONTACT MEDIA LLC","851 Lincolntown Ave",,Mahtomedi,MN,55115
"MN DFL State Central Committee",20003,PTU,SPU,"Chamberlain, Roger C Senate Committee",17021,Against,2022,12/31/2022,"Independent Expenditure",3571.43,.00,No,,"Digital Ad Production","EYE CONTACT MEDIA LLC","851 Lincolntown Ave",,Mahtomedi,MN,55115
"MN DFL State Central Committee",20003,PTU,SPU,"Brand, Jeff House Committee",18242,For,2022,11/16/2022,"Independent Expenditure",237.22,.00,No,,"Digital Ad",Facebook,"1 Hacker Way",,"Menlo Park",CA,94025
"MN DFL State Central Committee",20003,PTU,SPU,"Grabau, Clarice Senate Committee",18851,For,2022,11/16/2022,"Independent Expenditure",253.47,.00,No,,"Digital Ad",Facebook,"1 Hacker Way",,"Menlo Park",CA,94025
"MN DFL State Central Committee",20003,PTU,SPU,"Alvarado, Fernando Senate Committee",18571,For,2022,11/16/2022,"Independent Expenditure",381.82,.00,No,,"Digital Ad",Facebook,"1 Hacker Way",,"Menlo Park",CA,94025
"MN DFL State Central Committee",20003,PTU,SPU,"Lee, Kaozouapa Elizabeth House Committee",18701,For,2022,08/10/2022,"Independent Expenditure",3561.65,.00,No,,"Design, Print, Mailhouse, Postage","Gumbinner  Davies","2001 S St NW",,Washington,DC,20009
"MN DFL State Central Committee",20003,PTU,SPU,"Brand, Jeff House Committee",18242,For,2022,09/23/2022,"Independent Expenditure",6405.12,.00,No,,"Design, Print, Mailhouse, Postage","Gumbinner  Davies","2001 S St NW",,Washington,DC,20009
"MN DFL State Central Committee",20003,PTU,SPU,"Tabke, Brad House Committee",18332,For,2022,09/23/2022,"Independent Expenditure",6800.82,.00,No,,"Design, Print, Mailhouse, Postage","Gumbinner  Davies","2001 S St NW",,Washington,DC,20009
"MN DFL State Central Committee",20003,PTU,SPU,"Bruggenthies, Gary House Committee",18887,Against,2022,10/04/2022,"Independent Expenditure",6244.77,.00,No,,"Design, Print, Mailhouse, Postage","Gumbinner  Davies","2001 S St NW",,Washington,DC,20009
"MN DFL State Central Committee",20003,PTU,SPU,"Akland, D. Susan (Susie) House Committee",18464,Against,2022,10/04/2022,"Independent Expenditure",6473.37,.00,No,,"Design, Print, Mailhouse, Postage","Gumbinner  Davies","2001 S St NW",,Washington,DC,20009
"MN DFL State Central Committee",20003,PTU,SPU,"Murphy, Mary C House Committee",10601,For,2022,10/04/2022,"Independent Expenditure",6861.38,.00,No,,"Design, Print, Mailhouse, Postage","Gumbinner  Davies","2001 S St NW",,Washington,DC,20009
"MN DFL State Central Committee",20003,PTU,SPU,"Hansen, Richard (Rick) J House Committee",16189,For,2022,10/04/2022,"Independent Expenditure",6994.27,.00,No,,"Design, Print, Mailhouse, Postage","Gumbinner  Davies","2001 S St NW",,Washington,DC,20009
"MN DFL State Central Committee",20003,PTU,SPU,"Akland, D. Susan (Susie) House Committee",18464,Against,2022,10/11/2022,"Independent Expenditure",6456.14,.00,No,,"Design, Print, Mailhouse, Postage","Gumbinner  Davies","2001 S St NW",,Washington,DC,20009
"MN DFL State Central Committee",20003,PTU,SPU,"Chamberlain, Roger C Senate Committee",17021,Against,2022,10/28/2022,"Independent Expenditure",13580.43,.00,No,,"Design, Production, Mailhouse, Postage","The Strategy Group","500 W Madison St",,Chicago,IL,60661
"MN DFL State Central Committee",20003,PTU,SPU,"Abeler, Jim Senate Committee",17868,Against,2022,10/28/2022,"Independent Expenditure",14506.09,.00,No,,"Design, Production, Mailhouse, Postage","The Strategy Group","500 W Madison St",,Chicago,IL,60661
"MN DFL State Central Committee",20003,PTU,SPU,"Zupancich, Andrea Senate Committee",18863,Against,2022,10/28/2022,"Independent Expenditure",11179.07,.00,No,,"Ad Production","Three Points Media","3000 K St NW",,Washington,DC,20007
"MN DFL State Central Committee",20003,PTU,SPU,"Theis, Tama Lynn Senate Committee",18895,Against,2022,10/11/2022,"Independent Expenditure",11051.58,.00,No,,"Design, Production, Mailhouse, Postage","Wildfire Mail","220 SE 6th St",,"Des Moines",IA,50309
"MN DFL State Central Committee",20003,PTU,SPU,"Kupec, Rob Senate Committee",18917,For,2022,10/12/2022,"Independent Expenditure",11481.12,.00,No,,"Design, Production, Mailhouse, Postage","Wildfire Mail","220 SE 6th St",,"Des Moines",IA,50309
"MN DFL State Central Committee",20003,PTU,SPU,"Dippel, Tom Senate Committee",18739,Against,2022,10/19/2022,"Independent Expenditure",13017.00,.00,No,,"Design, Production, Mailhouse, Postage","Wildfire Mail","220 SE 6th St",,"Des Moines",IA,50309
"DFL House Caucus",20006,PTU,CAU,"Wolgamott, Dan House Committee",18168,For,2022,10/27/2022,"Independent Expenditure",500.00,.00,No,,"Advertising Production","76 Words","1806 Vernon St NW",,"Washington ",DC,20009
"DFL House Caucus",20006,PTU,CAU,"Bruggenthies, Gary House Committee",18887,Against,2022,10/27/2022,"Independent Expenditure",1000.00,.00,No,,"Advertising Production","76 Words","1806 Vernon St NW",,"Washington ",DC,20009
"DFL House Caucus",20006,PTU,CAU,"Matteson, Polly House Committee",18847,Against,2022,10/27/2022,"Independent Expenditure",1000.00,.00,No,,"Advertising Production","76 Words","1806 Vernon St NW",,"Washington ",DC,20009
"DFL House Caucus",20006,PTU,CAU,"Stephenson, Zachary House Committee",18129,For,2022,10/27/2022,"Independent Expenditure",1000.00,.00,No,,"Advertising Production","76 Words","1806 Vernon St NW",,"Washington ",DC,20009
"DFL House Caucus",20006,PTU,CAU,"Strom, Susan Ranae House Committee",18884,For,2022,10/27/2022,"Independent Expenditure",1000.00,.00,No,,"Advertising Production","76 Words","1806 Vernon St NW",,"Washington ",DC,20009
"DFL House Caucus",20006,PTU,CAU,"Lislegard, David House Committee",18314,For,2022,10/31/2022,"Independent Expenditure",1634.61,1634.61,No,,"Advertising Production","76 Words","1806 Vernon St NW",,"Washington ",DC,20009
"DFL House Caucus",20006,PTU,CAU,"Matteson, Polly House Committee",18847,Against,2022,10/31/2022,"Independent Expenditure",1634.61,1634.61,No,,"Advertising Production","76 Words","1806 Vernon St NW",,"Washington ",DC,20009
"DFL House Caucus",20006,PTU,CAU,"Preese, Erin B House Committee",18452,For,2022,10/31/2022,"Independent Expenditure",1634.61,1634.61,No,,"Advertising Production","76 Words","1806 Vernon St NW",,"Washington ",DC,20009
"DFL House Caucus",20006,PTU,CAU,"Engen, Elliott W House Committee",18530,Against,2022,10/31/2022,"Independent Expenditure",1634.62,1634.62,No,,"Advertising Production","76 Words","1806 Vernon St NW",,"Washington ",DC,20009
"MN DFL State Central Committee",20003,PTU,SPU,"Attia, Karen M Senate Committee",18619,Against,2022,09/23/2022,"Independent Expenditure",12466.50,.00,No,,"Design, Production, Mailhouse, Postage","Wildfire Mail","220 SE 6th St",,"Des Moines",IA,50309
"MN DFL State Central Committee",20003,PTU,SPU,"Dippel, Tom Senate Committee",18739,Against,2022,09/23/2022,"Independent Expenditure",18989.88,.00,No,,"Design, Production, Mailhouse, Postage","Wildfire Mail","220 SE 6th St",,"Des Moines",IA,50309
"MN DFL State Central Committee",20003,PTU,SPU,"Theis, Tama Lynn Senate Committee",18895,Against,2022,10/03/2022,"Independent Expenditure",14013.52,.00,No,,"Design, Production, Mailhouse, Postage","Wildfire Mail","220 SE 6th St",,"Des Moines",IA,50309
"MN DFL State Central Committee",20003,PTU,SPU,"Bohmer, Dan Senate Committee",18945,Against,2022,10/11/2022,"Independent Expenditure",11481.12,.00,No,,"Design, Production, Mailhouse, Postage","Wildfire Mail","220 SE 6th St",,"Des Moines",IA,50309
"MN DFL State Central Committee",20003,PTU,SPU,"Seeberger, Judy Senate Committee",18845,For,2022,10/19/2022,"Independent Expenditure",16314.64,.00,No,,"Design, Production, Mailhouse, Postage","Wildfire Mail","220 SE 6th St",,"Des Moines",IA,50309
"MN DFL State Central Committee",20003,PTU,SPU,"Seeberger, Judy Senate Committee",18845,For,2022,10/21/2022,"Independent Expenditure",16314.64,.00,No,,"Design, Production, Mailhouse, Postage","Wildfire Mail","220 SE 6th St",,"Des Moines",IA,50309
"DFL House Caucus",20006,PTU,CAU,"Henning, Aaron House Committee",18913,Against,2022,10/27/2022,"Independent Expenditure",500.00,.00,No,,"Advertising Production","76 Words","1806 Vernon St NW",,"Washington ",DC,20009
"DFL House Caucus",20006,PTU,CAU,"Stephenson, Zachary House Committee",18129,For,2022,10/31/2022,"Independent Expenditure",1634.61,1634.61,No,,"Advertising Production","76 Words","1806 Vernon St NW",,"Washington ",DC,20009
"DFL House Caucus",20006,PTU,CAU,"Cha, Ethan House Committee",18874,For,2022,10/31/2022,"Independent Expenditure",1634.62,1634.62,No,,"Advertising Production","76 Words","1806 Vernon St NW",,"Washington ",DC,20009
"DFL House Caucus",20006,PTU,CAU,"Skraba, Roger Joseph House Committee",18918,Against,2022,10/31/2022,"Independent Expenditure",1634.62,1634.62,No,,"Advertising Production","76 Words","1806 Vernon St NW",,"Washington ",DC,20009
"DFL House Caucus",20006,PTU,CAU,"Henning, Aaron House Committee",18913,Against,2023,01/09/2023,"Independent Expenditure",1634.61,.00,No,,"Advertising Production","76 Words","1806 Vernon St NW",,"Washington ",DC,20009
"DFL House Caucus",20006,PTU,CAU,"Murphy, Mary C House Committee",10601,For,2023,01/09/2023,"Independent Expenditure",1634.61,.00,No,,"Advertising Production","76 Words","1806 Vernon St NW",,"Washington ",DC,20009
"DFL House Caucus",20006,PTU,CAU,"Ecklund, Robert House Committee",17871,For,2023,01/09/2023,"Independent Expenditure",1634.62,.00,No,,"Advertising Production","76 Words","1806 Vernon St NW",,"Washington ",DC,20009
"DFL House Caucus",20006,PTU,CAU,"Engen, Elliott W House Committee",18530,Against,2023,01/09/2023,"Independent Expenditure",1634.62,.00,No,,"Advertising Production","76 Words","1806 Vernon St NW",,"Washington ",DC,20009
"DFL House Caucus",20006,PTU,CAU,"Hanson, Jessica House Committee",18463,For,2023,01/09/2023,"Independent Expenditure",1634.62,.00,No,,"Advertising Production","76 Words","1806 Vernon St NW",,"Washington ",DC,20009
"MN DFL State Central Committee",20003,PTU,SPU,"Attia, Karen M Senate Committee",18619,Against,2022,12/31/2022,"Independent Expenditure",3571.43,.00,No,,"Digital Ad Production","EYE CONTACT MEDIA LLC","851 Lincolntown Ave",,Mahtomedi,MN,55115
"MN DFL State Central Committee",20003,PTU,SPU,"Zupancich, Andrea Senate Committee",18863,Against,2022,12/31/2022,"Independent Expenditure",3571.43,.00,No,,"Digital Ad Production","EYE CONTACT MEDIA LLC","851 Lincolntown Ave",,Mahtomedi,MN,55115
"MN DFL State Central Committee",20003,PTU,SPU,"Pursell, Kristi House Committee",18744,For,2022,11/16/2022,"Independent Expenditure",124.85,.00,No,,"Digital Ad",Facebook,"1 Hacker Way",,"Menlo Park",CA,94025
"MN DFL State Central Committee",20003,PTU,SPU,"Kupec, Rob Senate Committee",18917,For,2022,11/16/2022,"Independent Expenditure",158.23,.00,No,,"Digital Ad",Facebook,"1 Hacker Way",,"Menlo Park",CA,94025
"MN DFL State Central Committee",20003,PTU,SPU,"Pursell, Kristi House Committee",18744,For,2022,09/23/2022,"Independent Expenditure",6187.76,.00,No,,"Design, Print, Mailhouse, Postage","Gumbinner  Davies","2001 S St NW",,Washington,DC,20009
"MN DFL State Central Committee",20003,PTU,SPU,"Mortensen, Erik House Committee",18288,Against,2022,10/11/2022,"Independent Expenditure",6716.65,.00,No,,"Design, Print, Mailhouse, Postage","Gumbinner  Davies","2001 S St NW",,Washington,DC,20009
"MN DFL State Central Committee",20003,PTU,SPU,"Mortensen, Erik House Committee",18288,Against,2022,10/21/2022,"Independent Expenditure",6791.46,.00,No,,"Design, Print, Mailhouse, Postage","Gumbinner  Davies","2001 S St NW",,Washington,DC,20009
"MN DFL State Central Committee",20003,PTU,SPU,"Witte, Jeff House Committee",18862,Against,2022,10/21/2022,"Independent Expenditure",6858.96,.00,No,,"Design, Print, Mailhouse, Postage","Gumbinner  Davies","2001 S St NW",,Washington,DC,20009
"MN DFL State Central Committee",20003,PTU,SPU,"Engen, Elliott W House Committee",18530,Against,2022,10/21/2022,"Independent Expenditure",6911.82,.00,No,,"Design, Print, Mailhouse, Postage","Gumbinner  Davies","2001 S St NW",,Washington,DC,20009
"MN DFL State Central Committee",20003,PTU,SPU,"Brand, Jeff House Committee",18242,For,2022,11/04/2022,"Independent Expenditure",6308.39,.00,No,,"Design, Print, Mailhouse, Postage","Gumbinner  Davies","2001 S St NW",,Washington,DC,20009
"MN DFL State Central Committee",20003,PTU,SPU,"Rehm, Lucy House Committee",18794,For,2022,11/04/2022,"Independent Expenditure",6937.64,.00,No,,"Design, Print, Mailhouse, Postage","Gumbinner  Davies","2001 S St NW",,Washington,DC,20009
"MN DFL State Central Committee",20003,PTU,SPU,"Curran, Brion House Committee",18855,For,2022,11/07/2022,"Independent Expenditure",7196.93,.00,No,,"Design, Print, Mailhouse, Postage","Gumbinner  Davies","2001 S St NW",,Washington,DC,20009
"MN DFL State Central Committee",20003,PTU,SPU,"Abeler, Jim Senate Committee",17868,Against,2022,09/28/2022,"Independent Expenditure",14253.47,.00,No,,"Design, Production, Mailhouse, Postage","The Strategy Group","500 W Madison St",,Chicago,IL,60661
"MN DFL State Central Committee",20003,PTU,SPU,"Chamberlain, Roger C Senate Committee",17021,Against,2022,10/19/2022,"Independent Expenditure",15018.69,.00,No,,"Design, Production, Mailhouse, Postage","The Strategy Group","500 W Madison St",,Chicago,IL,60661
"MN DFL State Central Committee",20003,PTU,SPU,"Mortensen, Erik House Committee",18288,Against,2022,10/21/2022,"Independent Expenditure",6791.46,.00,No,,"Design, Print, Mailhouse, Postage","Gumbinner  Davies","2001 S St NW",,Washington,DC,20009
"MN DFL State Central Committee",20003,PTU,SPU,"Tabke, Brad House Committee",18332,For,2022,10/27/2022,"Independent Expenditure",6095.12,.00,No,,"Design, Print, Mailhouse, Postage","Gumbinner  Davies","2001 S St NW",,Washington,DC,20009
"MN DFL State Central Committee",20003,PTU,SPU,"Hansen, Richard (Rick) J House Committee",16189,For,2022,10/27/2022,"Independent Expenditure",6254.14,.00,No,,"Design, Print, Mailhouse, Postage","Gumbinner  Davies","2001 S St NW",,Washington,DC,20009
"MN DFL State Central Committee",20003,PTU,SPU,"Henning, Aaron House Committee",18913,Against,2022,10/28/2022,"Independent Expenditure",6635.79,.00,No,,"Design, Print, Mailhouse, Postage","Gumbinner  Davies","2001 S St NW",,Washington,DC,20009
"MN DFL State Central Committee",20003,PTU,SPU,"Zeleznikar, Natalie House Committee",18835,Against,2022,10/28/2022,"Independent Expenditure",6814.15,.00,No,,"Design, Print, Mailhouse, Postage","Gumbinner  Davies","2001 S St NW",,Washington,DC,20009
"MN DFL State Central Committee",20003,PTU,SPU,"Wolgamott, Dan House Committee",18168,For,2022,11/04/2022,"Independent Expenditure",6635.79,.00,No,,"Design, Print, Mailhouse, Postage","Gumbinner  Davies","2001 S St NW",,Washington,DC,20009
"MN DFL State Central Committee",20003,PTU,SPU,"Witte, Jeff House Committee",18862,Against,2022,11/04/2022,"Independent Expenditure",6880.91,.00,No,,"Design, Print, Mailhouse, Postage","Gumbinner  Davies","2001 S St NW",,Washington,DC,20009
"MN DFL State Central Committee",20003,PTU,SPU,"Boe, Greg House Committee",18348,Against,2022,11/07/2022,"Independent Expenditure",7198.75,.00,No,,"Design, Print, Mailhouse, Postage","Gumbinner  Davies","2001 S St NW",,Washington,DC,20009
"MN DFL State Central Committee",20003,PTU,SPU,"Virnig, Bianca House Committee",19014,For,2023,12/15/2023,"Independent Expenditure",5101.87,.00,No,,"Design, Production, Mailhouse,
Postage","Neon Strategies LLC","4301 Nokomis Ave",,Minneapolis,MN,55406
"MN DFL State Central Committee",20003,PTU,SPU,"Crockett, Kim Sec of State Committee",18732,Against,2022,10/15/2022,"Independent Expenditure",84.00,.00,No,,"Domain Registration, Webhosting","Squarespace Inc","225 Varick St",,"New York",NY,10014
"MN DFL State Central Committee",20003,PTU,SPU,"Abeler, Jim Senate Committee",17868,Against,2022,09/19/2022,"Independent Expenditure",14453.44,.00,No,,"Design, Production, Mailhouse, Postage","The Strategy Group","500 W Madison St",,Chicago,IL,60661
"MN DFL State Central Committee",20003,PTU,SPU,"Abeler, Jim Senate Committee",17868,Against,2022,09/19/2022,"Independent Expenditure",15221.84,.00,No,,"Design, Production, Mailhouse, Postage","The Strategy Group","500 W Madison St",,Chicago,IL,60661
"MN DFL State Central Committee",20003,PTU,SPU,"Zupancich, Andrea Senate Committee",18863,Against,2022,10/11/2022,"Independent Expenditure",15398.85,.00,No,,"Design, Production, Mailhouse, Postage","The Strategy Group","500 W Madison St",,Chicago,IL,60661
"MN DFL State Central Committee",20003,PTU,SPU,"Abeler, Jim Senate Committee",17868,Against,2022,10/19/2022,"Independent Expenditure",15184.49,.00,No,,"Design, Production, Mailhouse, Postage","The Strategy Group","500 W Madison St",,Chicago,IL,60661
"MN DFL State Central Committee",20003,PTU,SPU,"Crockett, Kim Sec of State Committee",18732,Against,2022,11/16/2022,"Independent Expenditure",53.00,.00,No,,"Domain Registration, Webhosting","Squarespace Inc","225 Varick St",,"New York",NY,10014
"MN DFL State Central Committee",20003,PTU,SPU,"Chamberlain, Roger C Senate Committee",17021,Against,2022,09/28/2022,"Independent Expenditure",15768.34,.00,No,,"Design, Production, Mailhouse, Postage","The Strategy Group","500 W Madison St",,Chicago,IL,60661
"MN DFL State Central Committee",20003,PTU,SPU,"Zupancich, Andrea Senate Committee",18863,Against,2022,09/28/2022,"Independent Expenditure",16209.35,.00,No,,"Design, Production, Mailhouse, Postage","The Strategy Group","500 W Madison St",,Chicago,IL,60661
"MN DFL State Central Committee",20003,PTU,SPU,"Chamberlain, Roger C Senate Committee",17021,Against,2022,10/03/2022,"Independent Expenditure",15105.34,.00,No,,"Design, Production, Mailhouse, Postage","The Strategy Group","500 W Madison St",,Chicago,IL,60661
"MN DFL State Central Committee",20003,PTU,SPU,"Abeler, Jim Senate Committee",17868,Against,2022,10/28/2022,"Independent Expenditure",14506.09,.00,No,,"Design, Production, Mailhouse, Postage","The Strategy Group","500 W Madison St",,Chicago,IL,60661
"MN DFL State Central Committee",20003,PTU,SPU,"Chamberlain, Roger C Senate Committee",17021,Against,2022,10/28/2022,"Independent Expenditure",15018.69,.00,No,,"Design, Production, Mailhouse, Postage","The Strategy Group","500 W Madison St",,Chicago,IL,60661
"MN DFL State Central Committee",20003,PTU,SPU,"Seeberger, Judy Senate Committee",18845,For,2022,09/16/2022,"Independent Expenditure",18989.88,.00,No,,"Design, Production, Mailhouse, Postage","Wildfire Mail","220 SE 6th St",,"Des Moines",IA,50309
"MN DFL State Central Committee",20003,PTU,SPU,"Attia, Karen M Senate Committee",18619,Against,2022,09/21/2022,"Independent Expenditure",15624.68,.00,No,,"Design, Production, Mailhouse, Postage","Wildfire Mail","220 SE 6th St",,"Des Moines",IA,50309
"MN DFL State Central Committee",20003,PTU,SPU,"Dippel, Tom Senate Committee",18739,Against,2022,10/03/2022,"Independent Expenditure",18989.88,.00,No,,"Design, Production, Mailhouse, Postage","Wildfire Mail","220 SE 6th St",,"Des Moines",IA,50309
"MN DFL State Central Committee",20003,PTU,SPU,"Theis, Tama Lynn Senate Committee",18895,Against,2022,10/11/2022,"Independent Expenditure",11051.58,.00,No,,"Design, Production, Mailhouse, Postage","Wildfire Mail","220 SE 6th St",,"Des Moines",IA,50309
"MN DFL State Central Committee",20003,PTU,SPU,"Theis, Tama Lynn Senate Committee",18895,Against,2022,10/11/2022,"Independent Expenditure",11051.58,.00,No,,"Design, Production, Mailhouse, Postage","Wildfire Mail","220 SE 6th St",,"Des Moines",IA,50309
"MN DFL State Central Committee",20003,PTU,SPU,"Bohmer, Dan Senate Committee",18945,Against,2022,10/14/2022,"Independent Expenditure",11481.12,.00,No,,"Design, Production, Mailhouse, Postage","Wildfire Mail","220 SE 6th St",,"Des Moines",IA,50309
"DFL House Caucus",20006,PTU,CAU,"Ecklund, Robert House Committee",17871,For,2022,10/27/2022,"Independent Expenditure",1000.00,.00,No,,"Advertising Production","76 Words","1806 Vernon St NW",,"Washington ",DC,20009
"DFL House Caucus",20006,PTU,CAU,"Lislegard, David House Committee",18314,For,2022,10/27/2022,"Independent Expenditure",1000.00,.00,No,,"Advertising Production","76 Words","1806 Vernon St NW",,"Washington ",DC,20009
"DFL House Caucus",20006,PTU,CAU,"HILL, JOSIAH House Committee",18776,For,2022,10/31/2022,"Independent Expenditure",1634.62,1634.62,No,,"Advertising Production","76 Words","1806 Vernon St NW",,"Washington ",DC,20009
"DFL House Caucus",20006,PTU,CAU,"Witte, Jeff House Committee",18862,Against,2022,10/31/2022,"Independent Expenditure",1634.62,1634.62,No,,"Advertising Production","76 Words","1806 Vernon St NW",,"Washington ",DC,20009
"DFL House Caucus",20006,PTU,CAU,"Bishofsky, Mark House Committee",18729,Against,2023,01/09/2023,"Independent Expenditure",1634.61,.00,No,,"Advertising Production","76 Words","1806 Vernon St NW",,"Washington ",DC,20009
"DFL House Caucus",20006,PTU,CAU,"Fenton, Kelly House Committee",18775,Against,2023,01/09/2023,"Independent Expenditure",1634.61,.00,No,,"Advertising Production","76 Words","1806 Vernon St NW",,"Washington ",DC,20009
"DFL House Caucus",20006,PTU,CAU,"Norris, Matt House Committee",18727,For,2023,01/09/2023,"Independent Expenditure",1634.61,.00,No,,"Advertising Production","76 Words","1806 Vernon St NW",,"Washington ",DC,20009
"DFL House Caucus",20006,PTU,CAU,"Zeleznikar, Natalie House Committee",18835,Against,2023,01/09/2023,"Independent Expenditure",1634.61,.00,No,,"Advertising Production","76 Words","1806 Vernon St NW",,"Washington ",DC,20009
"DFL House Caucus",20006,PTU,CAU,"Heinrich, John House Committee",18220,Against,2023,01/09/2023,"Independent Expenditure",1634.62,.00,No,,"Advertising Production","76 Words","1806 Vernon St NW",,"Washington ",DC,20009
"DFL House Caucus",20006,PTU,CAU,"HILL, JOSIAH House Committee",18776,For,2023,01/09/2023,"Independent Expenditure",1634.62,.00,No,,"Advertising Production","76 Words","1806 Vernon St NW",,"Washington ",DC,20009
"DFL House Caucus",20006,PTU,CAU,"Raleigh, Donald House Committee",18622,Against,2023,01/09/2023,"Independent Expenditure",1634.62,.00,No,,"Advertising Production","76 Words","1806 Vernon St NW",,"Washington ",DC,20009
"DFL House Caucus",20006,PTU,CAU,"Igo, Spencer House Committee",18638,Against,2022,09/06/2022,"Independent Expenditure",2843.62,.00,No,,Advertising,"Clarify Agency","870 Market St",,"San Francisco",CA,94102
"DFL House Caucus",20006,PTU,CAU,"Myers, Andrew House Committee",18550,Against,2022,09/06/2022,"Independent Expenditure",6411.41,.00,No,,Advertising,"Clarify Agency","870 Market St",,"San Francisco",CA,94102
"DFL House Caucus",20006,PTU,CAU,"Henning, Aaron House Committee",18913,Against,2022,09/15/2022,"Independent Expenditure",4167.84,.00,No,,Advertising,"Clarify Agency","870 Market St",,"San Francisco",CA,94102
"DFL House Caucus",20006,PTU,CAU,"Matteson, Polly House Committee",18847,Against,2022,09/15/2022,"Independent Expenditure",4167.84,.00,No,,Advertising,"Clarify Agency","870 Market St",,"San Francisco",CA,94102
"DFL House Caucus",20006,PTU,CAU,"Zeleznikar, Natalie House Committee",18835,Against,2022,09/15/2022,"Independent Expenditure",4167.84,.00,No,,Advertising,"Clarify Agency","870 Market St",,"San Francisco",CA,94102
"DFL House Caucus",20006,PTU,CAU,"Cha, Ethan House Committee",18874,For,2022,09/15/2022,"Independent Expenditure",7880.61,.00,No,,Advertising,"Clarify Agency","870 Market St",,"San Francisco",CA,94102
"DFL House Caucus",20006,PTU,CAU,"Hansen, Richard (Rick) J House Committee",16189,For,2022,09/15/2022,"Independent Expenditure",7880.61,.00,No,,Advertising,"Clarify Agency","870 Market St",,"San Francisco",CA,94102
"MN DFL State Central Committee",20003,PTU,SPU,"Bishofsky, Mark House Committee",18729,Against,2022,10/25/2022,"Independent Expenditure",5909.13,5909.13,No,,"Design, Production, Mailhouse, Postage","Clarify LLC","870 Market St",,"San Francisco",CA,94102
"MN DFL State Central Committee",20003,PTU,SPU,"Lislegard, David House Committee",18314,For,2022,11/04/2022,"Independent Expenditure",6484.73,6484.73,No,,"Design, Production, Mailhouse, Postage","Clarify LLC","870 Market St",,"San Francisco",CA,94102
"MN DFL State Central Committee",20003,PTU,SPU,"Ecklund, Robert House Committee",17871,For,2022,11/04/2022,"Independent Expenditure",6712.77,6712.77,No,,"Design, Production, Mailhouse, Postage","Clarify LLC","870 Market St",,"San Francisco",CA,94102
"MN DFL State Central Committee",20003,PTU,SPU,"Fenton, Kelly House Committee",18775,Against,2022,11/07/2022,"Independent Expenditure",5901.60,.00,No,,"Design, Production, Mailhouse, Postage","Clarify LLC","870 Market St",,"San Francisco",CA,94102
"MN DFL State Central Committee",20003,PTU,SPU,"Skraba, Roger Joseph House Committee",18918,Against,2022,11/07/2022,"Independent Expenditure",6255.60,.00,No,,"Design, Production, Mailhouse, Postage","Clarify LLC","870 Market St",,"San Francisco",CA,94102
"MN DFL State Central Committee",20003,PTU,SPU,"Jensen, Scott Dr Gov Committee",18690,Against,2022,09/22/2022,"Independent Expenditure",76133.48,.00,No,,"Design, Print, Mailhouse, Postage","Deliver Strategies","PO Box 100970",,Arlington,VA,22210
"MN DFL State Central Committee",20003,PTU,SPU,"Jensen, Scott Dr Gov Committee",18690,Against,2022,09/22/2022,"Independent Expenditure",76133.48,.00,No,,"Design, Print, Mailhouse, Postage","Deliver Strategies","PO Box 100970",,Arlington,VA,22210
"MN DFL State Central Committee",20003,PTU,SPU,"Jensen, Scott Dr Gov Committee",18690,Against,2022,09/30/2022,"Independent Expenditure",76133.48,.00,No,,"Design, Print, Mailhouse, Postage","Deliver Strategies","PO Box 100970",,Arlington,VA,22210
"MN DFL State Central Committee",20003,PTU,SPU,"Jensen, Scott Dr Gov Committee",18690,Against,2022,09/30/2022,"Independent Expenditure",76133.48,.00,No,,"Design, Print, Mailhouse, Postage","Deliver Strategies","PO Box 100970",,Arlington,VA,22210
"MN DFL State Central Committee",20003,PTU,SPU,"Jensen, Scott Dr Gov Committee",18690,Against,2022,09/30/2022,"Independent Expenditure",76133.48,.00,No,,"Design, Print, Mailhouse, Postage","Deliver Strategies","PO Box 100970",,Arlington,VA,22210
"MN DFL State Central Committee",20003,PTU,SPU,"Walz, Tim Gov Committee",18135,For,2022,09/30/2022,"Independent Expenditure",76133.48,.00,No,,"Design, Print, Mailhouse, Postage","Deliver Strategies","PO Box 100970",,Arlington,VA,22210
"MN DFL State Central Committee",20003,PTU,SPU,"Walz, Tim Gov Committee",18135,For,2022,10/24/2022,"Independent Expenditure",64402.93,.00,No,,"Design, Print, Mailhouse, Postage","Deliver Strategies","PO Box 100970",,Arlington,VA,22210
"MN DFL State Central Committee",20003,PTU,SPU,"Ellison, Keith Atty Gen Committee",18336,For,2022,09/22/2022,"Independent Expenditure",35000.00,.00,No,,"Broadcast, Radio","eStreet Group","80 M St SE",,Washington,DC,20003
"MN DFL State Central Committee",20003,PTU,SPU,"Ellison, Keith Atty Gen Committee",18336,For,2022,11/01/2022,"Independent Expenditure",65000.00,.00,No,,"Digital Ad","eStreet Group","80 M St SE",,Washington,DC,20003
"DFL House Caucus",20006,PTU,CAU,"Wiens, Mark House Committee",18879,Against,2022,10/27/2022,"Independent Expenditure",1000.00,.00,No,,"Advertising Production","76 Words","1806 Vernon St NW",,"Washington ",DC,20009
"DFL House Caucus",20006,PTU,CAU,"Zeleznikar, Natalie House Committee",18835,Against,2022,10/27/2022,"Independent Expenditure",1000.00,.00,No,,"Advertising Production","76 Words","1806 Vernon St NW",,"Washington ",DC,20009
"DFL House Caucus",20006,PTU,CAU,"Zeleznikar, Natalie House Committee",18835,Against,2022,10/31/2022,"Independent Expenditure",1634.61,1634.61,No,,"Advertising Production","76 Words","1806 Vernon St NW",,"Washington ",DC,20009
"DFL House Caucus",20006,PTU,CAU,"Ecklund, Robert House Committee",17871,For,2022,10/31/2022,"Independent Expenditure",1634.62,1634.62,No,,Advertising,"76 Words","1806 Vernon St NW",,"Washington ",DC,20009
"DFL House Caucus",20006,PTU,CAU,"Mortensen, Erik House Committee",18288,Against,2022,10/31/2022,"Independent Expenditure",1634.62,1634.62,No,,"Advertising Production","76 Words","1806 Vernon St NW",,"Washington ",DC,20009
"DFL House Caucus",20006,PTU,CAU,"Norri, Matthew R House Committee",18710,Against,2022,10/31/2022,"Independent Expenditure",1634.62,1634.62,No,,"Advertising Production","76 Words","1806 Vernon St NW",,"Washington ",DC,20009
"DFL House Caucus",20006,PTU,CAU,"Preese, Erin B House Committee",18452,For,2023,01/09/2023,"Independent Expenditure",1634.61,.00,No,,"Advertising Production","76 Words","1806 Vernon St NW",,"Washington ",DC,20009
"DFL House Caucus",20006,PTU,CAU,"Cha, Ethan House Committee",18874,For,2023,01/09/2023,"Independent Expenditure",1634.62,.00,No,,"Advertising Production","76 Words","1806 Vernon St NW",,"Washington ",DC,20009
"DFL House Caucus",20006,PTU,CAU,"Phillips, Wendy House Committee",18896,Against,2022,09/06/2022,"Independent Expenditure",2843.62,.00,No,,Advertising,"Clarify Agency","870 Market St",,"San Francisco",CA,94102
"DFL House Caucus",20006,PTU,CAU,"Heinrich, John House Committee",18220,Against,2022,09/06/2022,"Independent Expenditure",6411.41,.00,No,,Advertising,"Clarify Agency","870 Market St",,"San Francisco",CA,94102
"DFL House Caucus",20006,PTU,CAU,"Brand, Jeff House Committee",18242,For,2022,09/06/2022,"Independent Expenditure",17768.14,.00,No,,Advertising,"Clarify Agency","870 Market St",,"San Francisco",CA,94102
"DFL House Caucus",20006,PTU,CAU,"Brand, Jeff House Committee",18242,For,2022,09/06/2022,"Independent Expenditure",27332.83,.00,No,,Advertising,"Clarify Agency","870 Market St",,"San Francisco",CA,94102
"DFL House Caucus",20006,PTU,CAU,"Bresnahan, Lauren House Committee",18779,For,2022,09/06/2022,"Independent Expenditure",27332.83,.00,No,,Advertising,"Clarify Agency","870 Market St",,"San Francisco",CA,94102
"DFL House Caucus",20006,PTU,CAU,"Rehm, Lucy House Committee",18794,For,2022,09/06/2022,"Independent Expenditure",27332.83,.00,No,,Advertising,"Clarify Agency","870 Market St",,"San Francisco",CA,94102
"DFL House Caucus",20006,PTU,CAU,"Phillips, Wendy House Committee",18896,Against,2022,09/15/2022,"Independent Expenditure",1848.40,.00,No,,Advertising,"Clarify Agency","870 Market St",,"San Francisco",CA,94102
"DFL House Caucus",20006,PTU,CAU,"Sandstede, Julie House Committee",17941,For,2022,09/15/2022,"Independent Expenditure",7880.61,.00,No,,Advertising,"Clarify Agency","870 Market St",,"San Francisco",CA,94102
"DFL House Caucus",20006,PTU,CAU,"Kroetch, Gabriela House Committee",18853,Against,2022,09/06/2022,"Independent Expenditure",6411.41,.00,No,,Advertising,"Clarify Agency","870 Market St",,"San Francisco",CA,94102
"DFL House Caucus",20006,PTU,CAU,"Ecklund, Robert House Committee",17871,For,2022,09/06/2022,"Independent Expenditure",27332.83,.00,No,,Advertising,"Clarify Agency","870 Market St",,"San Francisco",CA,94102
"DFL House Caucus",20006,PTU,CAU,"Lislegard, David House Committee",18314,For,2022,09/06/2022,"Independent Expenditure",27332.83,.00,No,,Advertising,"Clarify Agency","870 Market St",,"San Francisco",CA,94102
"DFL House Caucus",20006,PTU,CAU,"Pursell, Kristi House Committee",18744,For,2022,09/06/2022,"Independent Expenditure",27332.83,.00,No,,Advertising,"Clarify Agency","870 Market St",,"San Francisco",CA,94102
"DFL House Caucus",20006,PTU,CAU,"Myers, Andrew House Committee",18550,Against,2022,09/15/2022,"Independent Expenditure",4167.84,.00,No,,Advertising,"Clarify Agency","870 Market St",,"San Francisco",CA,94102
"DFL House Caucus",20006,PTU,CAU,"Norri, Matthew R House Committee",18710,Against,2022,09/15/2022,"Independent Expenditure",4167.84,.00,No,,Advertising,"Clarify Agency","870 Market St",,"San Francisco",CA,94102
"DFL House Caucus",20006,PTU,CAU,"Raleigh, Donald House Committee",18622,Against,2022,09/15/2022,"Independent Expenditure",4167.84,.00,No,,Advertising,"Clarify Agency","870 Market St",,"San Francisco",CA,94102
"DFL House Caucus",20006,PTU,CAU,"Driscoll, Patricia House Committee",18820,For,2022,09/15/2022,"Independent Expenditure",17768.14,.00,No,,Advertising,"Clarify Agency","870 Market St",,"San Francisco",CA,94102
"DFL House Caucus",20006,PTU,CAU,"Bresnahan, Lauren House Committee",18779,For,2022,10/04/2022,"Independent Expenditure",2778.40,.00,No,,Advertising,"Clarify Agency","870 Market St",,"San Francisco",CA,94102
"DFL House Caucus",20006,PTU,CAU,"Cha, Ethan House Committee",18874,For,2022,10/04/2022,"Independent Expenditure",3704.53,.00,No,,Advertising,"Clarify Agency","870 Market St",,"San Francisco",CA,94102
"DFL House Caucus",20006,PTU,CAU,"Curran, Brion House Committee",18855,For,2022,10/04/2022,"Independent Expenditure",4630.66,.00,No,,Advertising,"Clarify Agency","870 Market St",,"San Francisco",CA,94102
"DFL House Caucus",20006,PTU,CAU,"Norris, Matt House Committee",18727,For,2022,10/04/2022,"Independent Expenditure",4630.66,.00,No,,Advertising,"Clarify Agency","870 Market St",,"San Francisco",CA,94102
"DFL House Caucus",20006,PTU,CAU,"Phillips, Wendy House Committee",18896,Against,2022,10/04/2022,"Independent Expenditure",6968.05,.00,No,,Advertising,"Clarify Agency","870 Market St",,"San Francisco",CA,94102
"DFL House Caucus",20006,PTU,CAU,"Bishofsky, Mark House Committee",18729,Against,2022,10/04/2022,"Independent Expenditure",13936.09,.00,No,,Advertising,"Clarify Agency","870 Market St",,"San Francisco",CA,94102
"DFL House Caucus",20006,PTU,CAU,"Bresnahan, Lauren House Committee",18779,For,2022,10/17/2022,"Independent Expenditure",4199.65,.00,No,,Advertising,"Clarify Agency","870 Market St",,"San Francisco",CA,94102
"DFL House Caucus",20006,PTU,CAU,"Hansen, Richard (Rick) J House Committee",16189,For,2022,10/17/2022,"Independent Expenditure",5599.53,.00,No,,Advertising,"Clarify Agency","870 Market St",,"San Francisco",CA,94102
"DFL House Caucus",20006,PTU,CAU,"Stephenson, Zachary House Committee",18129,For,2022,09/15/2022,"Independent Expenditure",17768.14,.00,No,,Advertising,"Clarify Agency","870 Market St",,"San Francisco",CA,94102
"DFL House Caucus",20006,PTU,CAU,"Wolgamott, Dan House Committee",18168,For,2022,09/15/2022,"Independent Expenditure",17768.14,.00,No,,Advertising,"Clarify Agency","870 Market St",,"San Francisco",CA,94102
"DFL House Caucus",20006,PTU,CAU,"Sandstede, Julie House Committee",17941,For,2022,10/04/2022,"Independent Expenditure",926.13,.00,No,,Advertising,"Clarify Agency","870 Market St",,"San Francisco",CA,94102
"DFL House Caucus",20006,PTU,CAU,"Bahner, Kristin House Committee",18081,For,2022,10/04/2022,"Independent Expenditure",3704.53,.00,No,,Advertising,"Clarify Agency","870 Market St",,"San Francisco",CA,94102
"DFL House Caucus",20006,PTU,CAU,"Ecklund, Robert House Committee",17871,For,2022,10/04/2022,"Independent Expenditure",3704.53,.00,No,,Advertising,"Clarify Agency","870 Market St",,"San Francisco",CA,94102
"DFL House Caucus",20006,PTU,CAU,"Driscoll, Patricia House Committee",18820,For,2022,10/04/2022,"Independent Expenditure",4630.66,.00,No,,Advertising,"Clarify Agency","870 Market St",,"San Francisco",CA,94102
"DFL House Caucus",20006,PTU,CAU,"Preese, Erin B House Committee",18452,For,2022,10/04/2022,"Independent Expenditure",4630.66,.00,No,,Advertising,"Clarify Agency","870 Market St",,"San Francisco",CA,94102
"DFL House Caucus",20006,PTU,CAU,"Norri, Matthew R House Committee",18710,Against,2022,10/04/2022,"Independent Expenditure",13936.09,.00,No,,Advertising,"Clarify Agency","870 Market St",,"San Francisco",CA,94102
"DFL House Caucus",20006,PTU,CAU,"Zeleznikar, Natalie House Committee",18835,Against,2022,10/04/2022,"Independent Expenditure",13936.09,.00,No,,Advertising,"Clarify Agency","870 Market St",,"San Francisco",CA,94102
"DFL House Caucus",20006,PTU,CAU,"Mortensen, Erik House Committee",18288,Against,2022,10/04/2022,"Independent Expenditure",17420.12,.00,No,,Advertising,"Clarify Agency","870 Market St",,"San Francisco",CA,94102
"DFL House Caucus",20006,PTU,CAU,"Bahner, Kristin House Committee",18081,For,2022,10/17/2022,"Independent Expenditure",5599.53,.00,No,,Advertising,"Clarify Agency","870 Market St",,"San Francisco",CA,94102
"DFL House Caucus",20006,PTU,CAU,"Norris, Matt House Committee",18727,For,2022,10/17/2022,"Independent Expenditure",6999.41,.00,No,,Advertising,"Clarify Agency","870 Market St",,"San Francisco",CA,94102
"DFL House Caucus",20006,PTU,CAU,"Tabke, Brad House Committee",18332,For,2022,10/17/2022,"Independent Expenditure",6999.41,.00,No,,Advertising,"Clarify Agency","870 Market St",,"San Francisco",CA,94102
"DFL House Caucus",20006,PTU,CAU,"Hicks, Kimberly (Kim) House Committee",18519,For,2022,12/28/2022,"Independent Expenditure",759.27,.00,No,,Advertising,"Clarify Agency","870 Market St",,"San Francisco",CA,94102
"DFL House Caucus",20006,PTU,CAU,"Pursell, Kristi House Committee",18744,For,2022,12/28/2022,"Independent Expenditure",759.27,.00,No,,Advertising,"Clarify Agency","870 Market St",,"San Francisco",CA,94102
"DFL House Caucus",20006,PTU,CAU,"Stephenson, Zachary House Committee",18129,For,2022,12/28/2022,"Independent Expenditure",759.27,.00,No,,Advertising,"Clarify Agency","870 Market St",,"San Francisco",CA,94102
"MN DFL State Central Committee",20003,PTU,SPU,"Hauschild, Grant Senate Committee",18873,For,2022,10/28/2022,"Independent Expenditure",5037.25,.00,No,,"Design, Production, Mailhouse, Postage","The Strategy Group","500 W Madison St",,Chicago,IL,60661
"MN DFL State Central Committee",20003,PTU,SPU,"Dippel, Tom Senate Committee",18739,Against,2022,09/23/2022,"Independent Expenditure",18989.88,.00,No,,"Design, Production, Mailhouse, Postage","Wildfire Mail","220 SE 6th St",,"Des Moines",IA,50309
"MN DFL State Central Committee",20003,PTU,SPU,"Theis, Tama Lynn Senate Committee",18895,Against,2022,10/19/2022,"Independent Expenditure",11051.58,.00,No,,"Design, Production, Mailhouse, Postage","Wildfire Mail","220 SE 6th St",,"Des Moines",IA,50309
"MN DFL State Central Committee",20003,PTU,SPU,"Kupec, Rob Senate Committee",18917,For,2022,10/21/2022,"Independent Expenditure",11481.12,.00,No,,"Design, Production, Mailhouse, Postage","Wildfire Mail","220 SE 6th St",,"Des Moines",IA,50309
"MN DFL State Central Committee",20003,PTU,SPU,"Dippel, Tom Senate Committee",18739,Against,2022,10/21/2022,"Independent Expenditure",16314.64,.00,No,,"Design, Production, Mailhouse, Postage","Wildfire Mail","220 SE 6th St",,"Des Moines",IA,50309
"MN DFL State Central Committee",20003,PTU,SPU,"Bohmer, Dan Senate Committee",18945,Against,2022,10/25/2022,"Independent Expenditure",11481.12,.00,No,,"Design, Production, Mailhouse, Postage","Wildfire Mail","220 SE 6th St",,"Des Moines",IA,50309
"DFL House Caucus",20006,PTU,CAU,"Akland, D. Susan (Susie) House Committee",18464,Against,2022,10/27/2022,"Independent Expenditure",500.00,.00,No,,"Advertising Production","76 Words","1806 Vernon St NW",,"Washington ",DC,20009
"DFL House Caucus",20006,PTU,CAU,"Brand, Jeff House Committee",18242,For,2022,10/27/2022,"Independent Expenditure",500.00,.00,No,,"Advertising Production","76 Words","1806 Vernon St NW",,"Washington ",DC,20009
"DFL House Caucus",20006,PTU,CAU,"Curran, Brion House Committee",18855,For,2022,10/27/2022,"Independent Expenditure",1000.00,.00,No,,"Advertising Production","76 Words","1806 Vernon St NW",,"Washington ",DC,20009
"DFL House Caucus",20006,PTU,CAU,"Engen, Elliott W House Committee",18530,Against,2022,10/27/2022,"Independent Expenditure",1000.00,.00,No,,"Advertising Production","76 Words","1806 Vernon St NW",,"Washington ",DC,20009
"DFL House Caucus",20006,PTU,CAU,"HILL, JOSIAH House Committee",18776,For,2022,10/27/2022,"Independent Expenditure",1000.00,.00,No,,"Advertising Production","76 Words","1806 Vernon St NW",,"Washington ",DC,20009
"DFL House Caucus",20006,PTU,CAU,"Skraba, Roger Joseph House Committee",18918,Against,2022,10/27/2022,"Independent Expenditure",1000.00,.00,No,,"Advertising Production","76 Words","1806 Vernon St NW",,"Washington ",DC,20009
"DFL House Caucus",20006,PTU,CAU,"Henning, Aaron House Committee",18913,Against,2022,10/31/2022,"Independent Expenditure",1634.61,1634.61,No,,"Advertising Production","76 Words","1806 Vernon St NW",,"Washington ",DC,20009
"DFL House Caucus",20006,PTU,CAU,"Strom, Susan Ranae House Committee",18884,For,2022,10/31/2022,"Independent Expenditure",1634.61,1634.61,No,,"Advertising Production","76 Words","1806 Vernon St NW",,"Washington ",DC,20009
"DFL House Caucus",20006,PTU,CAU,"Raleigh, Donald House Committee",18622,Against,2022,10/31/2022,"Independent Expenditure",1634.62,1634.62,No,,"Advertising Production","76 Words","1806 Vernon St NW",,"Washington ",DC,20009
"DFL House Caucus",20006,PTU,CAU,"Bresnahan, Lauren House Committee",18779,For,2022,09/15/2022,"Independent Expenditure",17768.14,.00,No,,Advertising,"Clarify Agency","870 Market St",,"San Francisco",CA,94102
"DFL House Caucus",20006,PTU,CAU,"Norris, Matt House Committee",18727,For,2022,09/15/2022,"Independent Expenditure",17768.14,.00,No,,Advertising,"Clarify Agency","870 Market St",,"San Francisco",CA,94102
"DFL House Caucus",20006,PTU,CAU,"Pursell, Kristi House Committee",18744,For,2022,09/15/2022,"Independent Expenditure",17768.14,.00,No,,Advertising,"Clarify Agency","870 Market St",,"San Francisco",CA,94102
"DFL House Caucus",20006,PTU,CAU,"Strom, Susan Ranae House Committee",18884,For,2022,09/15/2022,"Independent Expenditure",17768.14,.00,No,,Advertising,"Clarify Agency","870 Market St",,"San Francisco",CA,94102
"DFL House Caucus",20006,PTU,CAU,"Brand, Jeff House Committee",18242,For,2022,10/04/2022,"Independent Expenditure",4630.66,.00,No,,Advertising,"Clarify Agency","870 Market St",,"San Francisco",CA,94102
"DFL House Caucus",20006,PTU,CAU,"Strom, Susan Ranae House Committee",18884,For,2022,10/04/2022,"Independent Expenditure",4630.66,.00,No,,Advertising,"Clarify Agency","870 Market St",,"San Francisco",CA,94102
"DFL House Caucus",20006,PTU,CAU,"Akland, D. Susan (Susie) House Committee",18464,Against,2022,10/04/2022,"Independent Expenditure",17420.12,.00,No,,Advertising,"Clarify Agency","870 Market St",,"San Francisco",CA,94102
"DFL House Caucus",20006,PTU,CAU,"Engen, Elliott W House Committee",18530,Against,2022,10/04/2022,"Independent Expenditure",17420.12,.00,No,,Advertising,"Clarify Agency","870 Market St",,"San Francisco",CA,94102
"DFL House Caucus",20006,PTU,CAU,"Hicks, Kimberly (Kim) House Committee",18519,For,2022,10/17/2022,"Independent Expenditure",2799.76,.00,No,,Advertising,"Clarify Agency","870 Market St",,"San Francisco",CA,94102
"DFL House Caucus",20006,PTU,CAU,"Myers, Andrew House Committee",18550,Against,2022,10/17/2022,"Independent Expenditure",15798.67,.00,No,,Advertising,"Clarify Agency","870 Market St",,"San Francisco",CA,94102
"DFL House Caucus",20006,PTU,CAU,"Bristol, John House Committee",18852,Against,2022,10/17/2022,"Independent Expenditure",21064.89,.00,No,,Advertising,"Clarify Agency","870 Market St",,"San Francisco",CA,94102
"DFL House Caucus",20006,PTU,CAU,"Skraba, Roger Joseph House Committee",18918,Against,2022,10/17/2022,"Independent Expenditure",21064.89,.00,No,,Advertising,"Clarify Agency","870 Market St",,"San Francisco",CA,94102
"DFL House Caucus",20006,PTU,CAU,"Swoboda, Steven House Committee",18946,Against,2022,10/17/2022,"Independent Expenditure",21064.89,.00,No,,Advertising,"Clarify Agency","870 Market St",,"San Francisco",CA,94102
"DFL House Caucus",20006,PTU,CAU,"Boe, Greg House Committee",18348,Against,2022,10/17/2022,"Independent Expenditure",26331.11,.00,No,,Advertising,"Clarify Agency","870 Market St",,"San Francisco",CA,94102
"DFL House Caucus",20006,PTU,CAU,"Heinrich, John House Committee",18220,Against,2022,10/17/2022,"Independent Expenditure",26331.11,.00,No,,Advertising,"Clarify Agency","870 Market St",,"San Francisco",CA,94102
"DFL House Caucus",20006,PTU,CAU,"Raleigh, Donald House Committee",18622,Against,2022,10/17/2022,"Independent Expenditure",26331.11,.00,No,,Advertising,"Clarify Agency","870 Market St",,"San Francisco",CA,94102
"MN DFL State Central Committee",20003,PTU,SPU,"Ellison, Keith Atty Gen Committee",18336,For,2022,11/02/2022,"Independent Expenditure",3060.00,.00,No,,"Radio Ad Production","eStreet Group","80 M St SE",,Washington,DC,20003
"MN DFL State Central Committee",20003,PTU,SPU,"Ellison, Keith Atty Gen Committee",18336,For,2022,11/03/2022,"Independent Expenditure",75000.00,.00,No,,"Digital Ad","eStreet Group","80 M St SE",,Washington,DC,20003
"MN DFL State Central Committee",20003,PTU,SPU,"Ellison, Keith Atty Gen Committee",18336,For,2022,11/07/2022,"Independent Expenditure",25000.00,.00,No,,"Digital Ad","eStreet Group","80 M St SE",,Washington,DC,20003
"MN DFL State Central Committee",20003,PTU,SPU,"Attia, Karen M Senate Committee",18619,Against,2022,10/19/2022,"Independent Expenditure",3571.43,.00,No,,"Digital Ad Production","EYE CONTACT MEDIA LLC","851 Lincolntown Ave",,Mahtomedi,MN,55115
"MN DFL State Central Committee",20003,PTU,SPU,"Zupancich, Andrea Senate Committee",18863,Against,2022,10/19/2022,"Independent Expenditure",3571.43,.00,No,,"Digital Ad Production","EYE CONTACT MEDIA LLC","851 Lincolntown Ave",,Mahtomedi,MN,55115
"MN DFL State Central Committee",20003,PTU,SPU,"Dippel, Tom Senate Committee",18739,Against,2022,10/27/2022,"Independent Expenditure",3571.42,.00,No,,"Digital Ad Production","EYE CONTACT MEDIA LLC","851 Lincolntown Ave",,Mahtomedi,MN,55115
"MN DFL State Central Committee",20003,PTU,SPU,"Attia, Karen M Senate Committee",18619,Against,2022,10/27/2022,"Independent Expenditure",3571.43,.00,No,,"Digital Ad Production","EYE CONTACT MEDIA LLC","851 Lincolntown Ave",,Mahtomedi,MN,55115
"MN DFL State Central Committee",20003,PTU,SPU,"Dippel, Tom Senate Committee",18739,Against,2022,12/31/2022,"Independent Expenditure",3571.42,.00,No,,"Digital Ad Production","EYE CONTACT MEDIA LLC","851 Lincolntown Ave",,Mahtomedi,MN,55115
"MN DFL State Central Committee",20003,PTU,SPU,"Roy, Leonard Alan Senate Committee",18800,For,2022,11/16/2022,"Independent Expenditure",159.35,.00,No,,"Digital Ad",Facebook,"1 Hacker Way",,"Menlo Park",CA,94025
"MN DFL State Central Committee",20003,PTU,SPU,"Hauschild, Grant Senate Committee",18873,For,2022,11/16/2022,"Independent Expenditure",322.83,.00,No,,"Digital Ad",Facebook,"1 Hacker Way",,"Menlo Park",CA,94025
"MN DFL State Central Committee",20003,PTU,SPU,"Heinrich, John House Committee",18220,Against,2022,10/04/2022,"Independent Expenditure",6773.83,.00,No,,"Design, Print, Mailhouse, Postage","Gumbinner  Davies","2001 S St NW",,Washington,DC,20009
"MN DFL State Central Committee",20003,PTU,SPU,"Curran, Brion House Committee",18855,For,2022,10/04/2022,"Independent Expenditure",7035.65,.00,No,,"Design, Print, Mailhouse, Postage","Gumbinner  Davies","2001 S St NW",,Washington,DC,20009
"MN DFL State Central Committee",20003,PTU,SPU,"Henning, Aaron House Committee",18913,Against,2022,10/11/2022,"Independent Expenditure",6622.85,.00,No,,"Design, Print, Mailhouse, Postage","Gumbinner  Davies","2001 S St NW",,Washington,DC,20009
"MN DFL State Central Committee",20003,PTU,SPU,"Witte, Jeff House Committee",18862,Against,2022,10/11/2022,"Independent Expenditure",6846.64,.00,No,,"Design, Print, Mailhouse, Postage","Gumbinner  Davies","2001 S St NW",,Washington,DC,20009
"DFL House Caucus",20006,PTU,CAU,"Curran, Brion House Committee",18855,For,2022,10/17/2022,"Independent Expenditure",6999.41,.00,No,,Advertising,"Clarify Agency","870 Market St",,"San Francisco",CA,94102
"DFL House Caucus",20006,PTU,CAU,"Hanson, Jessica House Committee",18463,For,2022,10/17/2022,"Independent Expenditure",6999.41,.00,No,,Advertising,"Clarify Agency","870 Market St",,"San Francisco",CA,94102
"DFL House Caucus",20006,PTU,CAU,"Kroetch, Gabriela House Committee",18853,Against,2022,10/17/2022,"Independent Expenditure",26331.11,.00,No,,Advertising,"Clarify Agency","870 Market St",,"San Francisco",CA,94102
"DFL House Caucus",20006,PTU,CAU,"Wiens, Mark House Committee",18879,Against,2022,10/17/2022,"Independent Expenditure",26331.11,.00,No,,Advertising,"Clarify Agency","870 Market St",,"San Francisco",CA,94102
"DFL House Caucus",20006,PTU,CAU,"Driscoll, Patricia House Committee",18820,For,2022,12/28/2022,"Independent Expenditure",759.27,.00,No,,Advertising,"Clarify Agency","870 Market St",,"San Francisco",CA,94102
"DFL House Caucus",20006,PTU,CAU,"Gunderson, Heidi Ann House Committee",17664,Against,2022,12/28/2022,"Independent Expenditure",759.27,.00,No,,Advertising,"Clarify Agency","870 Market St",,"San Francisco",CA,94102
"DFL House Caucus",20006,PTU,CAU,"Heinrich, John House Committee",18220,Against,2022,12/28/2022,"Independent Expenditure",759.27,.00,No,,Advertising,"Clarify Agency","870 Market St",,"San Francisco",CA,94102
"DFL House Caucus",20006,PTU,CAU,"Henning, Aaron House Committee",18913,Against,2022,12/28/2022,"Independent Expenditure",759.27,.00,No,,Advertising,"Clarify Agency","870 Market St",,"San Francisco",CA,94102
"DFL House Caucus",20006,PTU,CAU,"Myers, Andrew House Committee",18550,Against,2022,12/28/2022,"Independent Expenditure",759.27,.00,No,,Advertising,"Clarify Agency","870 Market St",,"San Francisco",CA,94102
"DFL House Caucus",20006,PTU,CAU,"Lislegard, David House Committee",18314,For,2022,09/01/2022,"Independent Expenditure",5936.40,.00,No,,Advertising,"Sage Media Planning  Placement","1322 G St SE",,Washington,DC,20003
"DFL House Caucus",20006,PTU,CAU,"Lislegard, David House Committee",18314,For,2022,09/08/2022,"Independent Expenditure",5907.30,.00,No,,Advertising,"Sage Media Planning  Placement","1322 G St SE",,Washington,DC,20003
"DFL House Caucus",20006,PTU,CAU,"Bristol, John House Committee",18852,Against,2022,09/08/2022,"Independent Expenditure",9447.12,.00,No,,Advertising,"Sage Media Planning  Placement","1322 G St SE",,Washington,DC,20003
"DFL House Caucus",20006,PTU,CAU,"Bishofsky, Mark House Committee",18729,Against,2022,09/08/2022,"Independent Expenditure",10587.18,.00,No,,Advertising,"Sage Media Planning  Placement","1322 G St SE",,Washington,DC,20003
"DFL House Caucus",20006,PTU,CAU,"Hicks, Kimberly (Kim) House Committee",18519,For,2022,09/08/2022,"Independent Expenditure",13521.80,.00,No,,Advertising,"Sage Media Planning  Placement","1322 G St SE",,Washington,DC,20003
"DFL House Caucus",20006,PTU,CAU,"Gunderson, Heidi Ann House Committee",17664,Against,2022,09/08/2022,"Independent Expenditure",16217.20,.00,No,,Advertising,"Sage Media Planning  Placement","1322 G St SE",,Washington,DC,20003
"DFL House Caucus",20006,PTU,CAU,"Tabke, Brad House Committee",18332,For,2022,12/28/2022,"Independent Expenditure",759.27,.00,No,,Advertising,"Clarify Agency","870 Market St",,"San Francisco",CA,94102
"DFL House Caucus",20006,PTU,CAU,"Ecklund, Robert House Committee",17871,For,2022,09/08/2022,"Independent Expenditure",2869.67,.00,No,,Advertising,"Sage Media Planning  Placement","1322 G St SE",,Washington,DC,20003
"DFL House Caucus",20006,PTU,CAU,"Boe, Greg House Committee",18348,Against,2022,09/16/2022,"Independent Expenditure",404.01,.00,No,,Advertising,"Sage Media Planning  Placement","1322 G St SE",,Washington,DC,20003
"DFL House Caucus",20006,PTU,CAU,"Brand, Jeff House Committee",18242,For,2022,09/16/2022,"Independent Expenditure",6075.11,.00,No,,Advertising,"Sage Media Planning  Placement","1322 G St SE",,Washington,DC,20003
"DFL House Caucus",20006,PTU,CAU,"Henning, Aaron House Committee",18913,Against,2022,09/16/2022,"Independent Expenditure",7631.96,.00,No,,Advertising,"Sage Media Planning  Placement","1322 G St SE",,Washington,DC,20003
"DFL House Caucus",20006,PTU,CAU,"Phillips, Wendy House Committee",18896,Against,2022,09/16/2022,"Independent Expenditure",7869.61,.00,No,,Advertising,"Sage Media Planning  Placement","1322 G St SE",,Washington,DC,20003
"DFL House Caucus",20006,PTU,CAU,"Engen, Elliott W House Committee",18530,Against,2022,09/16/2022,"Independent Expenditure",8636.88,.00,No,,Advertising,"Sage Media Planning  Placement","1322 G St SE",,Washington,DC,20003
"DFL House Caucus",20006,PTU,CAU,"Swoboda, Steven House Committee",18946,Against,2022,09/16/2022,"Independent Expenditure",10093.65,.00,No,,Advertising,"Sage Media Planning  Placement","1322 G St SE",,Washington,DC,20003
"DFL House Caucus",20006,PTU,CAU,"Wolgamott, Dan House Committee",18168,For,2022,09/16/2022,"Independent Expenditure",10532.26,.00,No,,Advertising,"Sage Media Planning  Placement","1322 G St SE",,Washington,DC,20003
"DFL House Caucus",20006,PTU,CAU,"Fenton, Kelly House Committee",18775,Against,2022,09/16/2022,"Independent Expenditure",12541.58,.00,No,,Advertising,"Sage Media Planning  Placement","1322 G St SE",,Washington,DC,20003
"DFL House Caucus",20006,PTU,CAU,"Bruggenthies, Gary House Committee",18887,Against,2022,09/22/2022,"Independent Expenditure",150.65,.00,No,,Advertising,"Sage Media Planning  Placement","1322 G St SE",,Washington,DC,20003
"DFL House Caucus",20006,PTU,CAU,"Myers, Andrew House Committee",18550,Against,2022,09/22/2022,"Independent Expenditure",2476.80,.00,No,,Advertising,"Sage Media Planning  Placement","1322 G St SE",,Washington,DC,20003
"DFL House Caucus",20006,PTU,CAU,"Witte, Jeff House Committee",18862,Against,2022,09/22/2022,"Independent Expenditure",9730.40,.00,No,,Advertising,"Sage Media Planning  Placement","1322 G St SE",,Washington,DC,20003
"DFL House Caucus",20006,PTU,CAU,"Myers, Andrew House Committee",18550,Against,2022,09/28/2022,"Independent Expenditure",2476.80,.00,No,,Advertising,"Sage Media Planning  Placement","1322 G St SE",,Washington,DC,20003
"DFL House Caucus",20006,PTU,CAU,"Lislegard, David House Committee",18314,For,2022,09/28/2022,"Independent Expenditure",5907.30,.00,No,,Advertising,"Sage Media Planning  Placement","1322 G St SE",,Washington,DC,20003
"MN DFL State Central Committee",20003,PTU,SPU,"Henning, Aaron House Committee",18913,Against,2022,10/21/2022,"Independent Expenditure",6666.82,.00,No,,"Design, Print, Mailhouse, Postage","Gumbinner  Davies","2001 S St NW",,Washington,DC,20009
"MN DFL State Central Committee",20003,PTU,SPU,"Boe, Greg House Committee",18348,Against,2022,10/21/2022,"Independent Expenditure",6888.25,.00,No,,"Design, Print, Mailhouse, Postage","Gumbinner  Davies","2001 S St NW",,Washington,DC,20009
"MN DFL State Central Committee",20003,PTU,SPU,"Swoboda, Steven House Committee",18946,Against,2022,10/21/2022,"Independent Expenditure",6946.63,.00,No,,"Design, Print, Mailhouse, Postage","Gumbinner  Davies","2001 S St NW",,Washington,DC,20009
"MN DFL State Central Committee",20003,PTU,SPU,"Zeleznikar, Natalie House Committee",18835,Against,2022,10/21/2022,"Independent Expenditure",6955.37,.00,No,,"Design, Print, Mailhouse, Postage","Gumbinner  Davies","2001 S St NW",,Washington,DC,20009
"MN DFL State Central Committee",20003,PTU,SPU,"Bruggenthies, Gary House Committee",18887,Against,2022,10/21/2022,"Independent Expenditure",8084.57,.00,No,,"Design, Print, Mailhouse, Postage","Gumbinner  Davies","2001 S St NW",,Washington,DC,20009
"MN DFL State Central Committee",20003,PTU,SPU,"Curran, Brion House Committee",18855,For,2022,10/27/2022,"Independent Expenditure",7016.72,.00,No,,"Design, Print, Mailhouse, Postage","Gumbinner  Davies","2001 S St NW",,Washington,DC,20009
"MN DFL State Central Committee",20003,PTU,SPU,"Pursell, Kristi House Committee",18744,Against,2022,10/28/2022,"Independent Expenditure",6222.01,.00,No,,"Design, Print, Mailhouse, Postage","Gumbinner  Davies","2001 S St NW",,Washington,DC,20009
"MN DFL State Central Committee",20003,PTU,SPU,"Witte, Jeff House Committee",18862,Against,2022,10/28/2022,"Independent Expenditure",6880.91,.00,No,,"Design, Print, Mailhouse, Postage","Gumbinner  Davies","2001 S St NW",,Washington,DC,20009
"MN DFL State Central Committee",20003,PTU,SPU,"Engen, Elliott W House Committee",18530,Against,2022,10/28/2022,"Independent Expenditure",6926.99,.00,No,,"Design, Print, Mailhouse, Postage","Gumbinner  Davies","2001 S St NW",,Washington,DC,20009
"MN DFL State Central Committee",20003,PTU,SPU,"Mortensen, Erik House Committee",18288,Against,2022,11/04/2022,"Independent Expenditure",6771.76,.00,No,,"Design, Print, Mailhouse, Postage","Gumbinner  Davies","2001 S St NW",,Washington,DC,20009
"MN DFL State Central Committee",20003,PTU,SPU,"Hansen, Richard (Rick) J House Committee",16189,For,2022,11/07/2022,"Independent Expenditure",6476.21,.00,No,,"Design, Print, Mailhouse, Postage","Gumbinner  Davies","2001 S St NW",,Washington,DC,20009
"MN DFL State Central Committee",20003,PTU,SPU,"Hansen, Richard (Rick) J House Committee",16189,For,2022,11/07/2022,"Independent Expenditure",6476.43,.00,No,,"Design, Print, Mailhouse, Postage","Gumbinner  Davies","2001 S St NW",,Washington,DC,20009
"MN DFL State Central Committee",20003,PTU,SPU,"Virnig, Bianca House Committee",19014,For,2023,12/15/2023,"Independent Expenditure",5101.87,.00,No,,"Design, Production, Mailhouse,
Postage","Neon Strategies LLC","4301 Nokomis Ave",,Minneapolis,MN,55406
"MN DFL State Central Committee",20003,PTU,SPU,"Hauschild, Grant Senate Committee",18873,For,2022,11/04/2022,"Independent Expenditure",9000.00,.00,No,,"Design, Production","No Coast Workshop","3413 42nd Ave S",,Minneapolis,MN,55406
"MN DFL State Central Committee",20003,PTU,SPU,"Walz, Tim Gov Committee",18135,For,2022,11/03/2022,"Independent Expenditure",35000.00,.00,No,,"Broadcast, Radio","Sage Media","1322 G St SE",,Washington,DC,20003
"MN DFL State Central Committee",20003,PTU,SPU,"Abeler, Jim Senate Committee",17868,Against,2022,10/03/2022,"Independent Expenditure",14338.47,.00,No,,"Design, Production, Mailhouse, Postage","The Strategy Group","500 W Madison St",,Chicago,IL,60661
"MN DFL State Central Committee",20003,PTU,SPU,"Zupancich, Andrea Senate Committee",18863,Against,2022,10/28/2022,"Independent Expenditure",10813.90,.00,No,,"Design, Production, Mailhouse, Postage","The Strategy Group","500 W Madison St",,Chicago,IL,60661
"MN DFL State Central Committee",20003,PTU,SPU,"Chamberlain, Roger C Senate Committee",17021,Against,2022,10/28/2022,"Independent Expenditure",13405.43,.00,No,,"Design, Production, Mailhouse, Postage","The Strategy Group","500 W Madison St",,Chicago,IL,60661
"MN DFL State Central Committee",20003,PTU,SPU,"Abeler, Jim Senate Committee",17868,Against,2022,10/28/2022,"Independent Expenditure",14416.09,.00,No,,"Design, Production, Mailhouse, Postage","The Strategy Group","500 W Madison St",,Chicago,IL,60661
"MN DFL State Central Committee",20003,PTU,SPU,,,For,2022,07/28/2022,"Independent Expenditure",696.88,.00,No,,Postage,"US Postmaster","325 Eva St",,"Saint Paul",MN,55107
"MN DFL State Central Committee",20003,PTU,SPU,"Hauschild, Grant Senate Committee",18873,For,2022,10/27/2022,"Independent Expenditure",6150.00,.00,No,,"Broadcast, Television","WDIO-TV  WIRT-13","10 Observation RD",,Duluth,MN,55811
"MN DFL State Central Committee",20003,PTU,SPU,"Seeberger, Judy Senate Committee",18845,For,2022,09/16/2022,"Independent Expenditure",18989.88,.00,No,,"Design, Production, Mailhouse, Postage","Wildfire Mail","220 SE 6th St",,"Des Moines",IA,50309
"MN DFL State Central Committee",20003,PTU,SPU,"Dippel, Tom Senate Committee",18739,Against,2022,10/03/2022,"Independent Expenditure",18989.88,.00,No,,"Design, Production, Mailhouse, Postage","Wildfire Mail","220 SE 6th St",,"Des Moines",IA,50309
"DFL House Caucus",20006,PTU,CAU,"Lislegard, David House Committee",18314,For,2022,10/27/2022,"Independent Expenditure",500.00,.00,No,,"Advertising Production","76 Words","1806 Vernon St NW",,"Washington ",DC,20009
"DFL House Caucus",20006,PTU,CAU,"Norri, Matthew R House Committee",18710,Against,2022,10/27/2022,"Independent Expenditure",500.00,.00,No,,"Advertising Production","76 Words","1806 Vernon St NW",,"Washington ",DC,20009
"DFL House Caucus",20006,PTU,CAU,"Driscoll, Patricia House Committee",18820,For,2022,10/27/2022,"Independent Expenditure",1000.00,.00,No,,"Advertising Production","76 Words","1806 Vernon St NW",,"Washington ",DC,20009
"DFL House Caucus",20006,PTU,CAU,"Gunderson, Heidi Ann House Committee",17664,Against,2022,10/27/2022,"Independent Expenditure",1000.00,.00,No,,"Advertising Production","76 Words","1806 Vernon St NW",,"Washington ",DC,20009
"DFL House Caucus",20006,PTU,CAU,"Heinrich, John House Committee",18220,Against,2022,10/27/2022,"Independent Expenditure",1000.00,.00,No,,"Advertising Production","76 Words","1806 Vernon St NW",,"Washington ",DC,20009
"DFL House Caucus",20006,PTU,CAU,"Mortensen, Erik House Committee",18288,Against,2022,10/27/2022,"Independent Expenditure",1000.00,.00,No,,"Advertising Production","76 Words","1806 Vernon St NW",,"Washington ",DC,20009
"DFL House Caucus",20006,PTU,CAU,"Boe, Greg House Committee",18348,Against,2022,12/28/2022,"Independent Expenditure",759.27,.00,No,,Advertising,"Clarify Agency","870 Market St",,"San Francisco",CA,94102
"DFL House Caucus",20006,PTU,CAU,"Engen, Elliott W House Committee",18530,Against,2022,12/28/2022,"Independent Expenditure",759.27,.00,No,,Advertising,"Clarify Agency","870 Market St",,"San Francisco",CA,94102
"DFL House Caucus",20006,PTU,CAU,"Preese, Erin B House Committee",18452,For,2022,12/28/2022,"Independent Expenditure",759.27,.00,No,,Advertising,"Clarify Agency","870 Market St",,"San Francisco",CA,94102
"DFL House Caucus",20006,PTU,CAU,"Skraba, Roger Joseph House Committee",18918,Against,2022,12/28/2022,"Independent Expenditure",759.27,.00,No,,Advertising,"Clarify Agency","870 Market St",,"San Francisco",CA,94102
"DFL House Caucus",20006,PTU,CAU,"Wolgamott, Dan House Committee",18168,For,2022,12/28/2022,"Independent Expenditure",759.27,.00,No,,Advertising,"Clarify Agency","870 Market St",,"San Francisco",CA,94102
"DFL House Caucus",20006,PTU,CAU,"Zeleznikar, Natalie House Committee",18835,Against,2022,12/28/2022,"Independent Expenditure",759.27,.00,No,,Advertising,"Clarify Agency","870 Market St",,"San Francisco",CA,94102
"DFL House Caucus",20006,PTU,CAU,"Sandstede, Julie House Committee",17941,For,2022,12/28/2022,"Independent Expenditure",759.28,.00,No,,Advertising,"Clarify Agency","870 Market St",,"San Francisco",CA,94102
"DFL House Caucus",20006,PTU,CAU,"Wolgamott, Dan House Committee",18168,For,2022,09/01/2022,"Independent Expenditure",11133.66,.00,No,,Advertising,"Sage Media Planning  Placement","1322 G St SE",,Washington,DC,20003
"DFL House Caucus",20006,PTU,CAU,"Myers, Andrew House Committee",18550,Against,2022,09/16/2022,"Independent Expenditure",2476.80,.00,No,,Advertising,"Sage Media Planning  Placement","1322 G St SE",,Washington,DC,20003
"DFL House Caucus",20006,PTU,CAU,"Skraba, Roger Joseph House Committee",18918,Against,2022,09/16/2022,"Independent Expenditure",5903.92,.00,No,,Advertising,"Sage Media Planning  Placement","1322 G St SE",,Washington,DC,20003
"DFL House Caucus",20006,PTU,CAU,"Witte, Jeff House Committee",18862,Against,2022,09/16/2022,"Independent Expenditure",9553.86,.00,No,,Advertising,"Sage Media Planning  Placement","1322 G St SE",,Washington,DC,20003
"DFL House Caucus",20006,PTU,CAU,"Raleigh, Donald House Committee",18622,Against,2022,09/16/2022,"Independent Expenditure",12289.86,.00,No,,Advertising,"Sage Media Planning  Placement","1322 G St SE",,Washington,DC,20003
"DFL House Caucus",20006,PTU,CAU,"Matteson, Polly House Committee",18847,Against,2022,09/16/2022,"Independent Expenditure",13094.77,.00,No,,Advertising,"Sage Media Planning  Placement","1322 G St SE",,Washington,DC,20003
"DFL House Caucus",20006,PTU,CAU,"Boe, Greg House Committee",18348,Against,2022,09/22/2022,"Independent Expenditure",404.00,.00,No,,Advertising,"Sage Media Planning  Placement","1322 G St SE",,Washington,DC,20003
"DFL House Caucus",20006,PTU,CAU,"Norri, Matthew R House Committee",18710,Against,2022,09/22/2022,"Independent Expenditure",4013.86,.00,No,,Advertising,"Sage Media Planning  Placement","1322 G St SE",,Washington,DC,20003
"MN DFL State Central Committee",20003,PTU,SPU,"Abeler, Jim Senate Committee",17868,Against,2022,10/28/2022,"Independent Expenditure",11891.16,.00,No,,"Design, Production, Mailhouse, Postage","The Strategy Group","500 W Madison St",,Chicago,IL,60661
"MN DFL State Central Committee",20003,PTU,SPU,"Zupancich, Andrea Senate Committee",18863,Against,2022,10/28/2022,"Independent Expenditure",15398.85,.00,No,,"Design, Production, Mailhouse, Postage","The Strategy Group","500 W Madison St",,Chicago,IL,60661
"MN DFL State Central Committee",20003,PTU,SPU,"Chamberlain, Roger C Senate Committee",17021,Against,2022,10/28/2022,"Independent Expenditure",10427.79,.00,No,,"Ad Production","Three Points Media","3000 K St NW",,Washington,DC,20007
"MN DFL State Central Committee",20003,PTU,SPU,"Theis, Tama Lynn Senate Committee",18895,Against,2022,09/23/2022,"Independent Expenditure",13715.36,.00,No,,"Design, Production, Mailhouse, Postage","Wildfire Mail","220 SE 6th St",,"Des Moines",IA,50309
"MN DFL State Central Committee",20003,PTU,SPU,"Dippel, Tom Senate Committee",18739,Against,2022,10/03/2022,"Independent Expenditure",18585.84,.00,No,,"Design, Production, Mailhouse, Postage","Wildfire Mail","220 SE 6th St",,"Des Moines",IA,50309
"MN DFL State Central Committee",20003,PTU,SPU,"Bohmer, Dan Senate Committee",18945,Against,2022,10/11/2022,"Independent Expenditure",11481.12,.00,No,,"Design, Production, Mailhouse, Postage","Wildfire Mail","220 SE 6th St",,"Des Moines",IA,50309
"MN DFL State Central Committee",20003,PTU,SPU,"Kupec, Rob Senate Committee",18917,For,2022,10/14/2022,"Independent Expenditure",11481.12,.00,No,,"Design, Production, Mailhouse, Postage","Wildfire Mail","220 SE 6th St",,"Des Moines",IA,50309
"MN DFL State Central Committee",20003,PTU,SPU,"Theis, Tama Lynn Senate Committee",18895,Against,2022,10/19/2022,"Independent Expenditure",11051.58,.00,No,,"Design, Production, Mailhouse, Postage","Wildfire Mail","220 SE 6th St",,"Des Moines",IA,50309
"DFL House Caucus",20006,PTU,CAU,"Ecklund, Robert House Committee",17871,For,2022,10/27/2022,"Independent Expenditure",500.00,.00,No,,"Advertising Production","76 Words","1806 Vernon St NW",,"Washington ",DC,20009
"DFL House Caucus",20006,PTU,CAU,"Skraba, Roger Joseph House Committee",18918,Against,2022,10/27/2022,"Independent Expenditure",500.00,.00,No,,"Advertising Production","76 Words","1806 Vernon St NW",,"Washington ",DC,20009
"DFL House Caucus",20006,PTU,CAU,"Fenton, Kelly House Committee",18775,Against,2022,10/27/2022,"Independent Expenditure",1000.00,.00,No,,"Advertising Production","76 Words","1806 Vernon St NW",,"Washington ",DC,20009
"DFL House Caucus",20006,PTU,CAU,"Preese, Erin B House Committee",18452,For,2022,10/27/2022,"Independent Expenditure",1000.00,.00,No,,"Advertising Production","76 Words","1806 Vernon St NW",,"Washington ",DC,20009
"DFL House Caucus",20006,PTU,CAU,"Pursell, Kristi House Committee",18744,For,2022,10/27/2022,"Independent Expenditure",1000.00,.00,No,,"Advertising Production","76 Words","1806 Vernon St NW",,"Washington ",DC,20009
"DFL House Caucus",20006,PTU,CAU,"Tabke, Brad House Committee",18332,For,2022,10/27/2022,"Independent Expenditure",1000.00,.00,No,,"Advertising Production","76 Words","1806 Vernon St NW",,"Washington ",DC,20009
"MN DFL State Central Committee",20003,PTU,SPU,"Boe, Greg House Committee",18348,Against,2022,10/14/2022,"Independent Expenditure",6851.58,.00,No,,"Design, Print, Mailhouse, Postage","Gumbinner  Davies","2001 S St NW",,Washington,DC,20009
"MN DFL State Central Committee",20003,PTU,SPU,"Akland, D. Susan (Susie) House Committee",18464,Against,2022,10/21/2022,"Independent Expenditure",6440.59,.00,No,,"Design, Print, Mailhouse, Postage","Gumbinner  Davies","2001 S St NW",,Washington,DC,20009
"MN DFL State Central Committee",20003,PTU,SPU,"Heinrich, John House Committee",18220,Against,2022,10/21/2022,"Independent Expenditure",6835.03,.00,No,,"Design, Print, Mailhouse, Postage","Gumbinner  Davies","2001 S St NW",,Washington,DC,20009
"MN DFL State Central Committee",20003,PTU,SPU,"Engen, Elliott W House Committee",18530,Against,2022,10/21/2022,"Independent Expenditure",6911.82,.00,No,,"Design, Print, Mailhouse, Postage","Gumbinner  Davies","2001 S St NW",,Washington,DC,20009
"MN DFL State Central Committee",20003,PTU,SPU,"Murphy, Mary C House Committee",10601,For,2022,10/21/2022,"Independent Expenditure",6955.37,.00,No,,"Design, Print, Mailhouse, Postage","Gumbinner  Davies","2001 S St NW",,Washington,DC,20009
"MN DFL State Central Committee",20003,PTU,SPU,"Gunderson, Heidi Ann House Committee",17664,Against,2022,10/21/2022,"Independent Expenditure",6999.22,.00,No,,"Design, Print, Mailhouse, Postage","Gumbinner  Davies","2001 S St NW",,Washington,DC,20009
"MN DFL State Central Committee",20003,PTU,SPU,"Mortensen, Erik House Committee",18288,Against,2022,10/28/2022,"Independent Expenditure",6771.76,.00,No,,"Design, Print, Mailhouse, Postage","Gumbinner  Davies","2001 S St NW",,Washington,DC,20009
"MN DFL State Central Committee",20003,PTU,SPU,"Gunderson, Heidi Ann House Committee",17664,Against,2022,10/28/2022,"Independent Expenditure",7002.66,.00,No,,"Design, Print, Mailhouse, Postage","Gumbinner  Davies","2001 S St NW",,Washington,DC,20009
"MN DFL State Central Committee",20003,PTU,SPU,"Strom, Susan Ranae House Committee",18884,For,2022,11/04/2022,"Independent Expenditure",6926.99,.00,No,,"Design, Print, Mailhouse, Postage","Gumbinner  Davies","2001 S St NW",,Washington,DC,20009
"MN DFL State Central Committee",20003,PTU,SPU,"Tabke, Brad House Committee",18332,For,2022,11/07/2022,"Independent Expenditure",6320.42,.00,No,,"Design, Print, Mailhouse, Postage","Gumbinner  Davies","2001 S St NW",,Washington,DC,20009
"MN DFL State Central Committee",20003,PTU,SPU,"Walz, Tim Gov Committee",18135,For,2022,10/31/2022,"Independent Expenditure",50000.00,.00,No,,"Broadcast, Radio","Sage Media","1322 G St SE",,Washington,DC,20003
"MN DFL State Central Committee",20003,PTU,SPU,"Hauschild, Grant Senate Committee",18873,For,2022,10/27/2022,"Independent Expenditure",1088.75,.00,No,,"Video Production","Story North Productions","394 S Lake Ave",,Duluth,MN,55802
"MN DFL State Central Committee",20003,PTU,SPU,"Chamberlain, Roger C Senate Committee",17021,Against,2022,09/19/2022,"Independent Expenditure",15010.10,.00,No,,"Design, Production, Mailhouse, Postage","The Strategy Group","500 W Madison St",,Chicago,IL,60661
"MN DFL State Central Committee",20003,PTU,SPU,"Chamberlain, Roger C Senate Committee",17021,Against,2022,10/19/2022,"Independent Expenditure",14928.96,.00,No,,"Design, Production, Mailhouse, Postage","The Strategy Group","500 W Madison St",,Chicago,IL,60661
"DFL House Caucus",20006,PTU,CAU,"Mortensen, Erik House Committee",18288,Against,2022,09/28/2022,"Independent Expenditure",11006.59,.00,No,,Advertising,"Sage Media Planning  Placement","1322 G St SE",,Washington,DC,20003
"DFL House Caucus",20006,PTU,CAU,"Bruggenthies, Gary House Committee",18887,Against,2022,10/05/2022,"Independent Expenditure",150.65,.00,No,,Advertising,"Sage Media Planning  Placement","1322 G St SE",,Washington,DC,20003
"DFL House Caucus",20006,PTU,CAU,"Boe, Greg House Committee",18348,Against,2022,10/05/2022,"Independent Expenditure",404.00,.00,No,,Advertising,"Sage Media Planning  Placement","1322 G St SE",,Washington,DC,20003
"DFL House Caucus",20006,PTU,CAU,"Pursell, Kristi House Committee",18744,For,2022,10/05/2022,"Independent Expenditure",1425.90,.00,No,,Advertising,"Sage Media Planning  Placement","1322 G St SE",,Washington,DC,20003
"DFL House Caucus",20006,PTU,CAU,"Wiens, Mark House Committee",18879,Against,2022,10/05/2022,"Independent Expenditure",14095.40,.00,No,,Advertising,"Sage Media Planning  Placement","1322 G St SE",,Washington,DC,20003
"DFL House Caucus",20006,PTU,CAU,"Raleigh, Donald House Committee",18622,Against,2022,10/05/2022,"Independent Expenditure",15032.05,.00,No,,Advertising,"Sage Media Planning  Placement","1322 G St SE",,Washington,DC,20003
"DFL House Caucus",20006,PTU,CAU,"Bruggenthies, Gary House Committee",18887,Against,2022,10/12/2022,"Independent Expenditure",150.65,.00,No,,Advertising,"Sage Media Planning  Placement","1322 G St SE",,Washington,DC,20003
"DFL House Caucus",20006,PTU,CAU,"Norri, Matthew R House Committee",18710,Against,2022,10/12/2022,"Independent Expenditure",4929.54,.00,No,,Advertising,"Sage Media Planning  Placement","1322 G St SE",,Washington,DC,20003
"DFL House Caucus",20006,PTU,CAU,"Henning, Aaron House Committee",18913,Against,2022,10/12/2022,"Independent Expenditure",8928.85,.00,No,,Advertising,"Sage Media Planning  Placement","1322 G St SE",,Washington,DC,20003
"DFL House Caucus",20006,PTU,CAU,"Bishofsky, Mark House Committee",18729,Against,2022,10/12/2022,"Independent Expenditure",14974.49,.00,No,,Advertising,"Sage Media Planning  Placement","1322 G St SE",,Washington,DC,20003
"DFL House Caucus",20006,PTU,CAU,"Wiens, Mark House Committee",18879,Against,2022,10/12/2022,"Independent Expenditure",15666.80,.00,No,,Advertising,"Sage Media Planning  Placement","1322 G St SE",,Washington,DC,20003
"DFL House Caucus",20006,PTU,CAU,"Skraba, Roger Joseph House Committee",18918,Against,2022,10/20/2022,"Independent Expenditure",8857.57,.00,No,,Advertising,"Sage Media Planning  Placement","1322 G St SE",,Washington,DC,20003
"DFL House Caucus",20006,PTU,CAU,"Bishofsky, Mark House Committee",18729,Against,2022,10/20/2022,"Independent Expenditure",14270.27,.00,No,,Advertising,"Sage Media Planning  Placement","1322 G St SE",,Washington,DC,20003
"DFL House Caucus",20006,PTU,CAU,"Bruggenthies, Gary House Committee",18887,Against,2022,10/27/2022,"Independent Expenditure",1658.03,.00,No,,Advertising,"Sage Media Planning  Placement","1322 G St SE",,Washington,DC,20003
HRCC,20010,PTU,CAU,"Hanson, Jessica House Committee",18463,Against,2022,11/03/2022,"Independent Expenditure",5000.00,.00,No,,"Advertising -Radio","Acquire Digital","512 E Iris Dr",,"Berry Hill",TN,37204
"DFL House Caucus",20006,PTU,CAU,"Pursell, Kristi House Committee",18744,For,2022,09/16/2022,"Independent Expenditure",1425.90,.00,No,,Advertising,"Sage Media Planning  Placement","1322 G St SE",,Washington,DC,20003
"DFL House Caucus",20006,PTU,CAU,"Zeleznikar, Natalie House Committee",18835,Against,2022,09/16/2022,"Independent Expenditure",2495.71,.00,No,,Advertising,"Sage Media Planning  Placement","1322 G St SE",,Washington,DC,20003
"DFL House Caucus",20006,PTU,CAU,"Bristol, John House Committee",18852,Against,2022,09/16/2022,"Independent Expenditure",11742.14,.00,No,,Advertising,"Sage Media Planning  Placement","1322 G St SE",,Washington,DC,20003
"DFL House Caucus",20006,PTU,CAU,"Lislegard, David House Committee",18314,For,2022,09/22/2022,"Independent Expenditure",5907.30,.00,No,,Advertising,"Sage Media Planning  Placement","1322 G St SE",,Washington,DC,20003
"DFL House Caucus",20006,PTU,CAU,"Raleigh, Donald House Committee",18622,Against,2022,09/22/2022,"Independent Expenditure",10914.40,.00,No,,Advertising,"Sage Media Planning  Placement","1322 G St SE",,Washington,DC,20003
"DFL House Caucus",20006,PTU,CAU,"Heinrich, John House Committee",18220,Against,2022,09/22/2022,"Independent Expenditure",11976.69,.00,No,,Advertising,"Sage Media Planning  Placement","1322 G St SE",,Washington,DC,20003
"DFL House Caucus",20006,PTU,CAU,"Bruggenthies, Gary House Committee",18887,Against,2022,09/28/2022,"Independent Expenditure",150.65,.00,No,,Advertising,"Sage Media Planning  Placement","1322 G St SE",,Washington,DC,20003
"DFL House Caucus",20006,PTU,CAU,"Norri, Matthew R House Committee",18710,Against,2022,09/28/2022,"Independent Expenditure",4386.34,.00,No,,Advertising,"Sage Media Planning  Placement","1322 G St SE",,Washington,DC,20003
"DFL House Caucus",20006,PTU,CAU,"Wiens, Mark House Committee",18879,Against,2022,09/28/2022,"Independent Expenditure",10760.54,.00,No,,Advertising,"Sage Media Planning  Placement","1322 G St SE",,Washington,DC,20003
"DFL House Caucus",20006,PTU,CAU,"Witte, Jeff House Committee",18862,Against,2022,09/28/2022,"Independent Expenditure",10760.54,.00,No,,Advertising,"Sage Media Planning  Placement","1322 G St SE",,Washington,DC,20003
"DFL House Caucus",20006,PTU,CAU,"Engen, Elliott W House Committee",18530,Against,2022,09/28/2022,"Independent Expenditure",10932.87,.00,No,,Advertising,"Sage Media Planning  Placement","1322 G St SE",,Washington,DC,20003
"DFL House Caucus",20006,PTU,CAU,"Bishofsky, Mark House Committee",18729,Against,2022,09/28/2022,"Independent Expenditure",12985.02,.00,No,,Advertising,"Sage Media Planning  Placement","1322 G St SE",,Washington,DC,20003
"DFL House Caucus",20006,PTU,CAU,"Brand, Jeff House Committee",18242,For,2022,10/05/2022,"Independent Expenditure",6075.11,.00,No,,Advertising,"Sage Media Planning  Placement","1322 G St SE",,Washington,DC,20003
"DFL House Caucus",20006,PTU,CAU,"Engen, Elliott W House Committee",18530,Against,2022,10/05/2022,"Independent Expenditure",17676.31,.00,No,,Advertising,"Sage Media Planning  Placement","1322 G St SE",,Washington,DC,20003
"DFL House Caucus",20006,PTU,CAU,"Boe, Greg House Committee",18348,Against,2022,10/12/2022,"Independent Expenditure",404.00,.00,No,,Advertising,"Sage Media Planning  Placement","1322 G St SE",,Washington,DC,20003
"DFL House Caucus",20006,PTU,CAU,"Murphy, Mary C House Committee",10601,For,2022,10/27/2022,"Independent Expenditure",1000.00,.00,No,,"Advertising Production","76 Words","1806 Vernon St NW",,"Washington ",DC,20009
"DFL House Caucus",20006,PTU,CAU,"Newton, Jerry House Committee",18813,For,2022,10/27/2022,"Independent Expenditure",1000.00,.00,No,,"Advertising Production","76 Words","1806 Vernon St NW",,"Washington ",DC,20009
"DFL House Caucus",20006,PTU,CAU,"Norris, Matt House Committee",18727,For,2022,10/27/2022,"Independent Expenditure",1000.00,.00,No,,"Advertising Production","76 Words","1806 Vernon St NW",,"Washington ",DC,20009
"DFL House Caucus",20006,PTU,CAU,"Wolgamott, Dan House Committee",18168,For,2022,10/27/2022,"Independent Expenditure",1000.00,.00,No,,"Advertising Production","76 Words","1806 Vernon St NW",,"Washington ",DC,20009
"DFL House Caucus",20006,PTU,CAU,"Fenton, Kelly House Committee",18775,Against,2022,10/31/2022,"Independent Expenditure",1634.61,1634.61,No,,"Advertising Production","76 Words","1806 Vernon St NW",,"Washington ",DC,20009
"DFL House Caucus",20006,PTU,CAU,"Murphy, Mary C House Committee",10601,For,2022,10/31/2022,"Independent Expenditure",1634.61,1634.61,No,,Advertising,"76 Words","1806 Vernon St NW",,"Washington ",DC,20009
"DFL House Caucus",20006,PTU,CAU,"Tabke, Brad House Committee",18332,For,2022,10/31/2022,"Independent Expenditure",1634.61,1634.61,No,,"Advertising Production","76 Words","1806 Vernon St NW",,"Washington ",DC,20009
"DFL House Caucus",20006,PTU,CAU,"Newton, Jerry House Committee",18813,For,2022,10/31/2022,"Independent Expenditure",1634.62,1634.62,No,,"Advertising Production","76 Words","1806 Vernon St NW",,"Washington ",DC,20009
"DFL House Caucus",20006,PTU,CAU,"Fenton, Kelly House Committee",18775,Against,2022,09/06/2022,"Independent Expenditure",1848.54,.00,No,,Advertising,"Clarify Agency","870 Market St",,"San Francisco",CA,94102
"DFL House Caucus",20006,PTU,CAU,"Bristol, John House Committee",18852,Against,2022,09/06/2022,"Independent Expenditure",2843.62,.00,No,,Advertising,"Clarify Agency","870 Market St",,"San Francisco",CA,94102
"DFL House Caucus",20006,PTU,CAU,"Scanlon, Joseph House Committee",18728,Against,2022,09/06/2022,"Independent Expenditure",2843.62,.00,No,,Advertising,"Clarify Agency","870 Market St",,"San Francisco",CA,94102
"DFL House Caucus",20006,PTU,CAU,"Skraba, Roger Joseph House Committee",18918,Against,2022,09/06/2022,"Independent Expenditure",4167.84,.00,No,,Advertising,"Clarify Agency","870 Market St",,"San Francisco",CA,94102
"DFL House Caucus",20006,PTU,CAU,"Boe, Greg House Committee",18348,Against,2022,09/06/2022,"Independent Expenditure",6411.41,.00,No,,Advertising,"Clarify Agency","870 Market St",,"San Francisco",CA,94102
"DFL House Caucus",20006,PTU,CAU,"Curran, Brion House Committee",18855,For,2022,09/06/2022,"Independent Expenditure",12122.78,.00,No,,Advertising,"Clarify Agency","870 Market St",,"San Francisco",CA,94102
"DFL House Caucus",20006,PTU,CAU,"HILL, JOSIAH House Committee",18776,For,2022,09/06/2022,"Independent Expenditure",27332.83,.00,No,,Advertising,"Clarify Agency","870 Market St",,"San Francisco",CA,94102
"DFL House Caucus",20006,PTU,CAU,"Fenton, Kelly House Committee",18775,Against,2022,09/15/2022,"Independent Expenditure",2843.62,.00,No,,Advertising,"Clarify Agency","870 Market St",,"San Francisco",CA,94102
"DFL House Caucus",20006,PTU,CAU,"Witte, Jeff House Committee",18862,Against,2022,10/27/2022,"Independent Expenditure",1000.00,.00,No,,"Advertising Production","76 Words","1806 Vernon St NW",,"Washington ",DC,20009
"DFL House Caucus",20006,PTU,CAU,"Bishofsky, Mark House Committee",18729,Against,2022,10/31/2022,"Independent Expenditure",1634.61,1634.61,No,,"Advertising Production","76 Words","1806 Vernon St NW",,"Washington ",DC,20009
"DFL House Caucus",20006,PTU,CAU,"Kroetch, Gabriela House Committee",18853,Against,2022,10/31/2022,"Independent Expenditure",1634.61,1634.61,No,,"Advertising Production","76 Words","1806 Vernon St NW",,"Washington ",DC,20009
"DFL House Caucus",20006,PTU,CAU,"Strom, Susan Ranae House Committee",18884,For,2023,01/09/2023,"Independent Expenditure",1634.61,.00,No,,"Advertising Production","76 Words","1806 Vernon St NW",,"Washington ",DC,20009
"DFL House Caucus",20006,PTU,CAU,"Mortensen, Erik House Committee",18288,Against,2023,01/09/2023,"Independent Expenditure",1634.62,.00,No,,"Advertising Production","76 Words","1806 Vernon St NW",,"Washington ",DC,20009
"DFL House Caucus",20006,PTU,CAU,"Gunderson, Heidi Ann House Committee",17664,Against,2022,09/06/2022,"Independent Expenditure",2843.62,.00,No,,Advertising,"Clarify Agency","870 Market St",,"San Francisco",CA,94102
"DFL House Caucus",20006,PTU,CAU,"Kroetch, Gabriela House Committee",18853,Against,2022,09/06/2022,"Independent Expenditure",4167.84,.00,No,,Advertising,"Clarify Agency","870 Market St",,"San Francisco",CA,94102
"DFL House Caucus",20006,PTU,CAU,"Bahner, Kristin House Committee",18081,For,2022,09/06/2022,"Independent Expenditure",12122.78,.00,No,,Advertising,"Clarify Agency","870 Market St",,"San Francisco",CA,94102
"DFL House Caucus",20006,PTU,CAU,"Cha, Ethan House Committee",18874,For,2022,09/06/2022,"Independent Expenditure",12122.78,.00,No,,Advertising,"Clarify Agency","870 Market St",,"San Francisco",CA,94102
"DFL House Caucus",20006,PTU,CAU,"Sandstede, Julie House Committee",17941,For,2022,09/06/2022,"Independent Expenditure",12122.78,.00,No,,Advertising,"Clarify Agency","870 Market St",,"San Francisco",CA,94102
"DFL House Caucus",20006,PTU,CAU,"Driscoll, Patricia House Committee",18820,For,2022,09/06/2022,"Independent Expenditure",27332.83,.00,No,,Advertising,"Clarify Agency","870 Market St",,"San Francisco",CA,94102
"DFL House Caucus",20006,PTU,CAU,"Preese, Erin B House Committee",18452,For,2022,09/06/2022,"Independent Expenditure",27332.83,.00,No,,Advertising,"Clarify Agency","870 Market St",,"San Francisco",CA,94102
"DFL House Caucus",20006,PTU,CAU,"Wolgamott, Dan House Committee",18168,For,2022,09/06/2022,"Independent Expenditure",27332.83,.00,No,,Advertising,"Clarify Agency","870 Market St",,"San Francisco",CA,94102
"DFL House Caucus",20006,PTU,CAU,"Engen, Elliott W House Committee",18530,Against,2022,09/15/2022,"Independent Expenditure",4167.84,.00,No,,Advertising,"Clarify Agency","870 Market St",,"San Francisco",CA,94102
"DFL House Caucus",20006,PTU,CAU,"Bruggenthies, Gary House Committee",18887,Against,2022,09/15/2022,"Independent Expenditure",6411.41,.00,No,,Advertising,"Clarify Agency","870 Market St",,"San Francisco",CA,94102
"DFL House Caucus",20006,PTU,CAU,"Mortensen, Erik House Committee",18288,Against,2022,09/15/2022,"Independent Expenditure",6411.41,.00,No,,Advertising,"Clarify Agency","870 Market St",,"San Francisco",CA,94102
HRCC,20010,PTU,CAU,"Bahner, Kristin House Committee",18081,Against,2022,11/18/2022,"Independent Expenditure",1000.00,.00,No,,"Advertising -Radio","Acquire Digital","512 E Iris Dr",,"Berry Hill",TN,37204
HRCC,20010,PTU,CAU,"Henning, Aaron House Committee",18913,For,2022,11/18/2022,"Independent Expenditure",1333.33,.00,No,,"Advertising -Radio","Acquire Digital","512 E Iris Dr",,"Berry Hill",TN,37204
HRCC,20010,PTU,CAU,"Henning, Aaron House Committee",18913,For,2022,09/20/2022,"Independent Expenditure",3065.60,.00,No,,"Advertising - Print: Direct Mail","Targeted Creative Communication","106 S Columbus St",,Alexandria,VA,22314
HRCC,20010,PTU,CAU,"Zeleznikar, Natalie House Committee",18835,For,2022,09/20/2022,"Independent Expenditure",3488.40,.00,No,,"Advertising - Print: Direct Mail","Targeted Creative Communication","106 S Columbus St",,Alexandria,VA,22314
HRCC,20010,PTU,CAU,"Zeleznikar, Natalie House Committee",18835,For,2022,09/20/2022,"Independent Expenditure",3488.40,.00,No,,"Advertising - Print: Direct Mail","Targeted Creative Communication","106 S Columbus St",,Alexandria,VA,22314
HRCC,20010,PTU,CAU,"Pursell, Kristi House Committee",18744,Against,2022,09/20/2022,"Independent Expenditure",4375.38,.00,No,,"Advertising - Print: Direct Mail","Targeted Creative Communication","106 S Columbus St",,Alexandria,VA,22314
HRCC,20010,PTU,CAU,"Murphy, Mary C House Committee",10601,Against,2022,09/20/2022,"Independent Expenditure",4463.90,.00,No,,"Advertising - Print: Direct Mail","Targeted Creative Communication","106 S Columbus St",,Alexandria,VA,22314
HRCC,20010,PTU,CAU,"Norris, Matt House Committee",18727,Against,2022,09/20/2022,"Independent Expenditure",4719.75,.00,No,,"Advertising - Print: Direct Mail","Targeted Creative Communication","106 S Columbus St",,Alexandria,VA,22314
HRCC,20010,PTU,CAU,"Norris, Matt House Committee",18727,Against,2022,09/20/2022,"Independent Expenditure",4719.75,.00,No,,"Advertising - Print: Direct Mail","Targeted Creative Communication","106 S Columbus St",,Alexandria,VA,22314
HRCC,20010,PTU,CAU,"Rehm, Lucy House Committee",18794,Against,2022,09/20/2022,"Independent Expenditure",6352.52,.00,No,,"Advertising - Print: Direct Mail","Targeted Creative Communication","106 S Columbus St",,Alexandria,VA,22314
HRCC,20010,PTU,CAU,"Brand, Jeff House Committee",18242,Against,2022,09/28/2022,"Independent Expenditure",3541.16,.00,No,,"Advertising - Print: Direct Mail","Targeted Creative Communication","106 S Columbus St",,Alexandria,VA,22314
HRCC,20010,PTU,CAU,"Wolgamott, Dan House Committee",18168,Against,2022,09/28/2022,"Independent Expenditure",4006.99,.00,No,,"Advertising - Print: Direct Mail","Targeted Creative Communication","106 S Columbus St",,Alexandria,VA,22314
HRCC,20010,PTU,CAU,"Hansen, Richard (Rick) J House Committee",16189,Against,2022,10/03/2022,"Independent Expenditure",3129.49,.00,No,,"Advertising - Print: Direct Mail","Targeted Creative Communication","106 S Columbus St",,Alexandria,VA,22314
HRCC,20010,PTU,CAU,"Ecklund, Robert House Committee",17871,Against,2022,10/03/2022,"Independent Expenditure",3400.48,.00,No,,"Advertising - Print: Direct Mail","Targeted Creative Communication","106 S Columbus St",,Alexandria,VA,22314
HRCC,20010,PTU,CAU,"Calhoun, Tami House Committee",18560,Against,2022,10/03/2022,"Independent Expenditure",3654.08,.00,No,,"Advertising - Print: Direct Mail","Targeted Creative Communication","106 S Columbus St",,Alexandria,VA,22314
"DFL House Caucus",20006,PTU,CAU,"Lislegard, David House Committee",18314,For,2022,10/12/2022,"Independent Expenditure",5907.30,.00,No,,Advertising,"Sage Media Planning  Placement","1322 G St SE",,Washington,DC,20003
"DFL House Caucus",20006,PTU,CAU,"Gunderson, Heidi Ann House Committee",17664,Against,2022,10/12/2022,"Independent Expenditure",18855.83,.00,No,,Advertising,"Sage Media Planning  Placement","1322 G St SE",,Washington,DC,20003
"DFL House Caucus",20006,PTU,CAU,"Zeleznikar, Natalie House Committee",18835,Against,2022,10/12/2022,"Independent Expenditure",19015.78,.00,No,,Advertising,"Sage Media Planning  Placement","1322 G St SE",,Washington,DC,20003
"DFL House Caucus",20006,PTU,CAU,"Mortensen, Erik House Committee",18288,Against,2022,10/12/2022,"Independent Expenditure",22237.25,.00,No,,Advertising,"Sage Media Planning  Placement","1322 G St SE",,Washington,DC,20003
"DFL House Caucus",20006,PTU,CAU,"Heinrich, John House Committee",18220,Against,2022,10/12/2022,"Independent Expenditure",25775.90,.00,No,,Advertising,"Sage Media Planning  Placement","1322 G St SE",,Washington,DC,20003
"DFL House Caucus",20006,PTU,CAU,"Fenton, Kelly House Committee",18775,Against,2022,10/20/2022,"Independent Expenditure",13565.90,.00,No,,Advertising,"Sage Media Planning  Placement","1322 G St SE",,Washington,DC,20003
"DFL House Caucus",20006,PTU,CAU,"Kroetch, Gabriela House Committee",18853,Against,2022,10/27/2022,"Independent Expenditure",11732.15,.00,No,,Advertising,"Sage Media Planning  Placement","1322 G St SE",,Washington,DC,20003
"Republican Party of Minn",20008,PTU,SPU,"Nelson, Nathan D House Committee",18412,For,2019,02/25/2019,"Independent Expenditure",5910.20,.00,No,,"Mailing / Voter List Rent/Purchase","Targeted Creative Communications","106 S Columbus St",,Alexandria,VA,22314
HRCC,20010,PTU,CAU,"Bahner, Kristin House Committee",18081,Against,2022,11/03/2022,"Independent Expenditure",5000.00,.00,No,,"Advertising -Radio","Acquire Digital","512 E Iris Dr",,"Berry Hill",TN,37204
HRCC,20010,PTU,CAU,"Klevorn, Virginia (Ginny) House Committee",17950,Against,2022,11/03/2022,"Independent Expenditure",5000.00,.00,No,,"Advertising -Radio","Acquire Digital","512 E Iris Dr",,"Berry Hill",TN,37204
HRCC,20010,PTU,CAU,"Stephenson, Zachary House Committee",18129,Against,2022,11/03/2022,"Independent Expenditure",5000.00,.00,No,,"Advertising -Radio","Acquire Digital","512 E Iris Dr",,"Berry Hill",TN,37204
HRCC,20010,PTU,CAU,"Berg, Kaela Jo House Committee",18449,Against,2022,11/18/2022,"Independent Expenditure",1000.00,.00,No,,"Advertising -Radio","Acquire Digital","512 E Iris Dr",,"Berry Hill",TN,37204
HRCC,20010,PTU,CAU,"Cha, Ethan House Committee",18874,Against,2022,11/18/2022,"Independent Expenditure",1000.00,.00,No,,"Advertising -Radio","Acquire Digital","512 E Iris Dr",,"Berry Hill",TN,37204
HRCC,20010,PTU,CAU,"Scanlon, Joseph House Committee",18728,For,2022,11/18/2022,"Independent Expenditure",1333.34,.00,No,,"Advertising -Radio","Acquire Digital","512 E Iris Dr",,"Berry Hill",TN,37204
HRCC,20010,PTU,CAU,"Farnsworth, Robert Senate Committee",18821,For,2022,10/21/2022,"Independent Expenditure",880.00,.00,No,,"Newspaper Ads","APG Media","PO Box",,Ashland,WI,54806
"MN DFL State Central Committee",20003,PTU,SPU,"Abeler, Jim Senate Committee",17868,Against,2022,10/28/2022,"Independent Expenditure",11891.16,.00,No,,"Design, Production, Mailhouse, Postage","The Strategy Group","500 W Madison St",,Chicago,IL,60661
"MN DFL State Central Committee",20003,PTU,SPU,"Chamberlain, Roger C Senate Committee",17021,Against,2022,10/28/2022,"Independent Expenditure",13405.43,.00,No,,"Design, Production, Mailhouse, Postage","The Strategy Group","500 W Madison St",,Chicago,IL,60661
"MN DFL State Central Committee",20003,PTU,SPU,"Rarick, Jason Senate Committee",18406,Against,2019,02/01/2019,"Independent Expenditure",15926.14,.00,No,,"Ad Production Fee","Three Points Media","3000 K St NW",,Washington,DC,20007
"MN DFL State Central Committee",20003,PTU,SPU,"Theis, Tama Lynn Senate Committee",18895,Against,2022,10/28/2022,"Independent Expenditure",9328.87,.00,No,,"Ad Production","Three Points Media","3000 K St NW",,Washington,DC,20007
"MN DFL State Central Committee",20003,PTU,SPU,"Theis, Tama Lynn Senate Committee",18895,Against,2022,11/04/2022,"Independent Expenditure",987.50,.00,No,,"Ad Production","Three Points Media","3000 K St NW",,Washington,DC,20007
"MN DFL State Central Committee",20003,PTU,SPU,"Theis, Tama Lynn Senate Committee",18895,Against,2022,10/03/2022,"Independent Expenditure",14013.52,.00,No,,"Design, Production, Mailhouse, Postage","Wildfire Mail","220 SE 6th St",,"Des Moines",IA,50309
"DFL House Caucus",20006,PTU,CAU,"Murphy, Mary C House Committee",10601,For,2022,10/27/2022,"Independent Expenditure",500.00,.00,No,,"Advertising Production","76 Words","1806 Vernon St NW",,"Washington ",DC,20009
"DFL House Caucus",20006,PTU,CAU,"Cha, Ethan House Committee",18874,For,2022,10/27/2022,"Independent Expenditure",1000.00,.00,No,,"Advertising Production","76 Words","1806 Vernon St NW",,"Washington ",DC,20009
"DFL House Caucus",20006,PTU,CAU,"Henning, Aaron House Committee",18913,Against,2022,10/27/2022,"Independent Expenditure",1000.00,.00,No,,"Advertising Production","76 Words","1806 Vernon St NW",,"Washington ",DC,20009
"DFL House Caucus",20006,PTU,CAU,"Norri, Matthew R House Committee",18710,Against,2022,10/27/2022,"Independent Expenditure",1000.00,.00,No,,"Advertising Production","76 Words","1806 Vernon St NW",,"Washington ",DC,20009
"DFL House Caucus",20006,PTU,CAU,"Raleigh, Donald House Committee",18622,Against,2022,10/27/2022,"Independent Expenditure",1000.00,.00,No,,"Advertising Production","76 Words","1806 Vernon St NW",,"Washington ",DC,20009
"DFL House Caucus",20006,PTU,CAU,"Hanson, Jessica House Committee",18463,For,2022,10/31/2022,"Independent Expenditure",1634.62,1634.62,No,,"Advertising Production","76 Words","1806 Vernon St NW",,"Washington ",DC,20009
"DFL House Caucus",20006,PTU,CAU,"Kroetch, Gabriela House Committee",18853,Against,2023,01/09/2023,"Independent Expenditure",1634.61,.00,No,,"Advertising Production","76 Words","1806 Vernon St NW",,"Washington ",DC,20009
"DFL House Caucus",20006,PTU,CAU,"Stephenson, Zachary House Committee",18129,For,2023,01/09/2023,"Independent Expenditure",1634.61,.00,No,,"Advertising Production","76 Words","1806 Vernon St NW",,"Washington ",DC,20009
"DFL House Caucus",20006,PTU,CAU,"Newton, Jerry House Committee",18813,For,2023,01/09/2023,"Independent Expenditure",1634.62,.00,No,,"Advertising Production","76 Words","1806 Vernon St NW",,"Washington ",DC,20009
HRCC,20010,PTU,CAU,"Huot, John Duffy House Committee",17962,Against,2022,10/03/2022,"Independent Expenditure",3726.74,.00,No,,"Advertising - Print: Direct Mail","Targeted Creative Communication","106 S Columbus St",,Alexandria,VA,22314
HRCC,20010,PTU,CAU,"Stephenson, Zachary House Committee",18129,Against,2022,10/03/2022,"Independent Expenditure",4173.43,.00,No,,"Advertising - Print: Direct Mail","Targeted Creative Communication","106 S Columbus St",,Alexandria,VA,22314
HRCC,20010,PTU,CAU,"Stephenson, Zachary House Committee",18129,Against,2022,10/03/2022,"Independent Expenditure",4173.43,.00,No,,"Advertising - Print: Direct Mail","Targeted Creative Communication","106 S Columbus St",,Alexandria,VA,22314
HRCC,20010,PTU,CAU,"Bresnahan, Lauren House Committee",18779,Against,2022,10/03/2022,"Independent Expenditure",4249.78,.00,No,,"Advertising - Print: Direct Mail","Targeted Creative Communication","106 S Columbus St",,Alexandria,VA,22314
HRCC,20010,PTU,CAU,"Pursell, Kristi House Committee",18744,Against,2022,10/11/2022,"Independent Expenditure",3222.74,.00,No,,"Advertising - Print: Direct Mail","Targeted Creative Communication","106 S Columbus St",,Alexandria,VA,22314
HRCC,20010,PTU,CAU,"Folch, Tina House Committee",18198,Against,2022,10/11/2022,"Independent Expenditure",3684.30,.00,No,,"Advertising - Print: Direct Mail","Targeted Creative Communication","106 S Columbus St",,Alexandria,VA,22314
HRCC,20010,PTU,CAU,"Newton, Jerry House Committee",18813,Against,2022,10/11/2022,"Independent Expenditure",3732.67,.00,No,,"Advertising - Print: Direct Mail","Targeted Creative Communication","106 S Columbus St",,Alexandria,VA,22314
HRCC,20010,PTU,CAU,"Wolgamott, Dan House Committee",18168,Against,2022,10/11/2022,"Independent Expenditure",4001.28,.00,No,,"Advertising - Print: Direct Mail","Targeted Creative Communication","106 S Columbus St",,Alexandria,VA,22314
HRCC,20010,PTU,CAU,"Rehm, Lucy House Committee",18794,Against,2022,10/11/2022,"Independent Expenditure",4251.87,.00,No,,"Advertising - Print: Direct Mail","Targeted Creative Communication","106 S Columbus St",,Alexandria,VA,22314
HRCC,20010,PTU,CAU,"Preese, Erin B House Committee",18452,Against,2022,10/11/2022,"Independent Expenditure",4614.13,.00,No,,"Advertising - Print: Direct Mail","Targeted Creative Communication","106 S Columbus St",,Alexandria,VA,22314
HRCC,20010,PTU,CAU,"Calhoun, Tami House Committee",18560,Against,2022,10/18/2022,"Independent Expenditure",3648.80,.00,No,,"Advertising - Print: Direct Mail","Targeted Creative Communication","106 S Columbus St",,Alexandria,VA,22314
HRCC,20010,PTU,CAU,"Cha, Ethan House Committee",18874,Against,2022,10/18/2022,"Independent Expenditure",3676.58,.00,No,,"Advertising - Print: Direct Mail","Targeted Creative Communication","106 S Columbus St",,Alexandria,VA,22314
HRCC,20010,PTU,CAU,"Huot, John Duffy House Committee",17962,Against,2022,10/18/2022,"Independent Expenditure",3721.35,.00,No,,"Advertising - Print: Direct Mail","Targeted Creative Communication","106 S Columbus St",,Alexandria,VA,22314
HRCC,20010,PTU,CAU,"Hanson, Jessica House Committee",18463,Against,2022,10/18/2022,"Independent Expenditure",3745.54,.00,No,,"Advertising - Print: Direct Mail","Targeted Creative Communication","106 S Columbus St",,Alexandria,VA,22314
"DFL House Caucus",20006,PTU,CAU,"Skraba, Roger Joseph House Committee",18918,Against,2022,09/15/2022,"Independent Expenditure",6411.41,.00,No,,Advertising,"Clarify Agency","870 Market St",,"San Francisco",CA,94102
"DFL House Caucus",20006,PTU,CAU,"Ecklund, Robert House Committee",17871,For,2022,09/15/2022,"Independent Expenditure",17768.14,.00,No,,Advertising,"Clarify Agency","870 Market St",,"San Francisco",CA,94102
"DFL House Caucus",20006,PTU,CAU,"Murphy, Mary C House Committee",10601,For,2022,10/04/2022,"Independent Expenditure",3704.53,.00,No,,Advertising,"Clarify Agency","870 Market St",,"San Francisco",CA,94102
"DFL House Caucus",20006,PTU,CAU,"Pursell, Kristi House Committee",18744,For,2022,10/04/2022,"Independent Expenditure",4630.66,.00,No,,Advertising,"Clarify Agency","870 Market St",,"San Francisco",CA,94102
"DFL House Caucus",20006,PTU,CAU,"Huot, John Duffy House Committee",17962,For,2022,10/17/2022,"Independent Expenditure",2799.76,.00,No,,Advertising,"Clarify Agency","870 Market St",,"San Francisco",CA,94102
"DFL House Caucus",20006,PTU,CAU,"Preese, Erin B House Committee",18452,For,2022,10/17/2022,"Independent Expenditure",6999.41,.00,No,,Advertising,"Clarify Agency","870 Market St",,"San Francisco",CA,94102
"DFL House Caucus",20006,PTU,CAU,"Strom, Susan Ranae House Committee",18884,For,2022,10/17/2022,"Independent Expenditure",6999.41,.00,No,,Advertising,"Clarify Agency","870 Market St",,"San Francisco",CA,94102
"DFL House Caucus",20006,PTU,CAU,"Zeleznikar, Natalie House Committee",18835,Against,2022,10/17/2022,"Independent Expenditure",21064.89,.00,No,,Advertising,"Clarify Agency","870 Market St",,"San Francisco",CA,94102
"DFL House Caucus",20006,PTU,CAU,"Engen, Elliott W House Committee",18530,Against,2022,10/17/2022,"Independent Expenditure",26331.11,.00,No,,Advertising,"Clarify Agency","870 Market St",,"San Francisco",CA,94102
"DFL House Caucus",20006,PTU,CAU,"Brand, Jeff House Committee",18242,For,2022,12/28/2022,"Independent Expenditure",759.27,.00,No,,Advertising,"Clarify Agency","870 Market St",,"San Francisco",CA,94102
"DFL House Caucus",20006,PTU,CAU,"Bresnahan, Lauren House Committee",18779,For,2022,12/28/2022,"Independent Expenditure",759.27,.00,No,,Advertising,"Clarify Agency","870 Market St",,"San Francisco",CA,94102
"DFL House Caucus",20006,PTU,CAU,"Cha, Ethan House Committee",18874,For,2022,12/28/2022,"Independent Expenditure",759.27,.00,No,,Advertising,"Clarify Agency","870 Market St",,"San Francisco",CA,94102
"DFL House Caucus",20006,PTU,CAU,"Curran, Brion House Committee",18855,For,2022,12/28/2022,"Independent Expenditure",759.27,.00,No,,Advertising,"Clarify Agency","870 Market St",,"San Francisco",CA,94102
"DFL House Caucus",20006,PTU,CAU,"Fenton, Kelly House Committee",18775,Against,2022,12/28/2022,"Independent Expenditure",759.27,.00,No,,Advertising,"Clarify Agency","870 Market St",,"San Francisco",CA,94102
"DFL House Caucus",20006,PTU,CAU,"Hansen, Richard (Rick) J House Committee",16189,For,2022,12/28/2022,"Independent Expenditure",759.27,.00,No,,Advertising,"Clarify Agency","870 Market St",,"San Francisco",CA,94102
"DFL House Caucus",20006,PTU,CAU,"Hanson, Jessica House Committee",18463,For,2022,12/28/2022,"Independent Expenditure",759.27,.00,No,,Advertising,"Clarify Agency","870 Market St",,"San Francisco",CA,94102
"DFL House Caucus",20006,PTU,CAU,"Norri, Matthew R House Committee",18710,Against,2023,01/09/2023,"Independent Expenditure",1634.62,.00,No,,"Advertising Production","76 Words","1806 Vernon St NW",,"Washington ",DC,20009
"DFL House Caucus",20006,PTU,CAU,"Skraba, Roger Joseph House Committee",18918,Against,2023,01/09/2023,"Independent Expenditure",1634.62,.00,No,,"Advertising Production","76 Words","1806 Vernon St NW",,"Washington ",DC,20009
"DFL House Caucus",20006,PTU,CAU,"Witte, Jeff House Committee",18862,Against,2023,01/09/2023,"Independent Expenditure",1634.62,.00,No,,"Advertising Production","76 Words","1806 Vernon St NW",,"Washington ",DC,20009
"DFL House Caucus",20006,PTU,CAU,"Gunderson, Heidi Ann House Committee",17664,Against,2022,09/06/2022,"Independent Expenditure",1848.54,.00,No,,Advertising,"Clarify Agency","870 Market St",,"San Francisco",CA,94102
"DFL House Caucus",20006,PTU,CAU,"Swoboda, Steven House Committee",18946,Against,2022,09/06/2022,"Independent Expenditure",2843.62,.00,No,,Advertising,"Clarify Agency","870 Market St",,"San Francisco",CA,94102
"DFL House Caucus",20006,PTU,CAU,"Witte, Jeff House Committee",18862,Against,2022,09/06/2022,"Independent Expenditure",4167.84,.00,No,,Advertising,"Clarify Agency","870 Market St",,"San Francisco",CA,94102
"DFL House Caucus",20006,PTU,CAU,"Bishofsky, Mark House Committee",18729,Against,2022,09/06/2022,"Independent Expenditure",6411.41,.00,No,,Advertising,"Clarify Agency","870 Market St",,"San Francisco",CA,94102
"DFL House Caucus",20006,PTU,CAU,"Engen, Elliott W House Committee",18530,Against,2022,09/06/2022,"Independent Expenditure",6411.41,.00,No,,Advertising,"Clarify Agency","870 Market St",,"San Francisco",CA,94102
"DFL House Caucus",20006,PTU,CAU,"Matteson, Polly House Committee",18847,Against,2022,09/06/2022,"Independent Expenditure",6411.41,.00,No,,Advertising,"Clarify Agency","870 Market St",,"San Francisco",CA,94102
"DFL House Caucus",20006,PTU,CAU,"Norri, Matthew R House Committee",18710,Against,2022,09/06/2022,"Independent Expenditure",6411.41,.00,No,,Advertising,"Clarify Agency","870 Market St",,"San Francisco",CA,94102
"DFL House Caucus",20006,PTU,CAU,"Wiens, Mark House Committee",18879,Against,2022,09/06/2022,"Independent Expenditure",6411.41,.00,No,,Advertising,"Clarify Agency","870 Market St",,"San Francisco",CA,94102
"DFL House Caucus",20006,PTU,CAU,"Hicks, Kimberly (Kim) House Committee",18519,For,2022,09/06/2022,"Independent Expenditure",7880.61,.00,No,,Advertising,"Clarify Agency","870 Market St",,"San Francisco",CA,94102
"DFL House Caucus",20006,PTU,CAU,"Hansen, Richard (Rick) J House Committee",16189,For,2022,09/06/2022,"Independent Expenditure",12122.78,.00,No,,Advertising,"Clarify Agency","870 Market St",,"San Francisco",CA,94102
"DFL House Caucus",20006,PTU,CAU,"Hicks, Kimberly (Kim) House Committee",18519,For,2022,09/06/2022,"Independent Expenditure",12122.78,.00,No,,Advertising,"Clarify Agency","870 Market St",,"San Francisco",CA,94102
"DFL House Caucus",20006,PTU,CAU,"Hanson, Jessica House Committee",18463,For,2022,09/06/2022,"Independent Expenditure",27332.83,.00,No,,Advertising,"Clarify Agency","870 Market St",,"San Francisco",CA,94102
"DFL House Caucus",20006,PTU,CAU,"Norris, Matt House Committee",18727,For,2022,09/06/2022,"Independent Expenditure",27332.83,.00,No,,Advertising,"Clarify Agency","870 Market St",,"San Francisco",CA,94102
"DFL House Caucus",20006,PTU,CAU,"Lislegard, David House Committee",18314,For,2023,01/09/2023,"Independent Expenditure",1634.61,.00,No,,"Advertising Production","76 Words","1806 Vernon St NW",,"Washington ",DC,20009
"DFL House Caucus",20006,PTU,CAU,"Tabke, Brad House Committee",18332,For,2023,01/09/2023,"Independent Expenditure",1634.61,.00,No,,"Advertising Production","76 Words","1806 Vernon St NW",,"Washington ",DC,20009
"DFL House Caucus",20006,PTU,CAU,"Wolgamott, Dan House Committee",18168,For,2023,01/09/2023,"Independent Expenditure",1634.62,.00,No,,"Advertising Production","76 Words","1806 Vernon St NW",,"Washington ",DC,20009
"DFL House Caucus",20006,PTU,CAU,"Bruggenthies, Gary House Committee",18887,Against,2022,09/06/2022,"Independent Expenditure",4167.84,.00,No,,Advertising,"Clarify Agency","870 Market St",,"San Francisco",CA,94102
"DFL House Caucus",20006,PTU,CAU,"Mortensen, Erik House Committee",18288,Against,2022,09/06/2022,"Independent Expenditure",4167.84,.00,No,,Advertising,"Clarify Agency","870 Market St",,"San Francisco",CA,94102
"DFL House Caucus",20006,PTU,CAU,"Raleigh, Donald House Committee",18622,Against,2022,09/06/2022,"Independent Expenditure",6411.41,.00,No,,Advertising,"Clarify Agency","870 Market St",,"San Francisco",CA,94102
"DFL House Caucus",20006,PTU,CAU,"Zeleznikar, Natalie House Committee",18835,Against,2022,09/06/2022,"Independent Expenditure",6411.41,.00,No,,Advertising,"Clarify Agency","870 Market St",,"San Francisco",CA,94102
"DFL House Caucus",20006,PTU,CAU,"Huot, John Duffy House Committee",17962,For,2022,09/06/2022,"Independent Expenditure",12122.78,.00,No,,Advertising,"Clarify Agency","870 Market St",,"San Francisco",CA,94102
"DFL House Caucus",20006,PTU,CAU,"Strom, Susan Ranae House Committee",18884,For,2022,09/06/2022,"Independent Expenditure",27332.83,.00,No,,Advertising,"Clarify Agency","870 Market St",,"San Francisco",CA,94102
"DFL House Caucus",20006,PTU,CAU,"Scanlon, Joseph House Committee",18728,Against,2022,09/15/2022,"Independent Expenditure",1848.54,.00,No,,Advertising,"Clarify Agency","870 Market St",,"San Francisco",CA,94102
"DFL House Caucus",20006,PTU,CAU,"Swoboda, Steven House Committee",18946,Against,2022,09/15/2022,"Independent Expenditure",1848.54,.00,No,,Advertising,"Clarify Agency","870 Market St",,"San Francisco",CA,94102
"DFL House Caucus",20006,PTU,CAU,"Wiens, Mark House Committee",18879,Against,2022,09/15/2022,"Independent Expenditure",4167.84,.00,No,,Advertising,"Clarify Agency","870 Market St",,"San Francisco",CA,94102
"DFL House Caucus",20006,PTU,CAU,"Huot, John Duffy House Committee",17962,For,2022,09/15/2022,"Independent Expenditure",7880.61,.00,No,,Advertising,"Clarify Agency","870 Market St",,"San Francisco",CA,94102
"DFL House Caucus",20006,PTU,CAU,"HILL, JOSIAH House Committee",18776,For,2022,09/15/2022,"Independent Expenditure",17768.14,.00,No,,Advertising,"Clarify Agency","870 Market St",,"San Francisco",CA,94102
"DFL House Caucus",20006,PTU,CAU,"Newton, Jerry House Committee",18813,For,2022,09/15/2022,"Independent Expenditure",17768.14,.00,No,,Advertising,"Clarify Agency","870 Market St",,"San Francisco",CA,94102
"DFL House Caucus",20006,PTU,CAU,"Hicks, Kimberly (Kim) House Committee",18519,For,2022,10/04/2022,"Independent Expenditure",1852.27,.00,No,,Advertising,"Clarify Agency","870 Market St",,"San Francisco",CA,94102
"DFL House Caucus",20006,PTU,CAU,"Henning, Aaron House Committee",18913,Against,2022,09/22/2022,"Independent Expenditure",6788.06,.00,No,,Advertising,"Sage Media Planning  Placement","1322 G St SE",,Washington,DC,20003
"DFL House Caucus",20006,PTU,CAU,"Mortensen, Erik House Committee",18288,Against,2022,09/22/2022,"Independent Expenditure",9697.09,.00,No,,Advertising,"Sage Media Planning  Placement","1322 G St SE",,Washington,DC,20003
"DFL House Caucus",20006,PTU,CAU,"Skraba, Roger Joseph House Committee",18918,Against,2022,09/28/2022,"Independent Expenditure",5903.92,.00,No,,Advertising,"Sage Media Planning  Placement","1322 G St SE",,Washington,DC,20003
"DFL House Caucus",20006,PTU,CAU,"Brand, Jeff House Committee",18242,For,2022,09/28/2022,"Independent Expenditure",6075.11,.00,No,,Advertising,"Sage Media Planning  Placement","1322 G St SE",,Washington,DC,20003
"DFL House Caucus",20006,PTU,CAU,"Matteson, Polly House Committee",18847,Against,2022,09/28/2022,"Independent Expenditure",13320.78,.00,No,,Advertising,"Sage Media Planning  Placement","1322 G St SE",,Washington,DC,20003
"DFL House Caucus",20006,PTU,CAU,"Zeleznikar, Natalie House Committee",18835,Against,2022,10/05/2022,"Independent Expenditure",2495.71,.00,No,,Advertising,"Sage Media Planning  Placement","1322 G St SE",,Washington,DC,20003
"DFL House Caucus",20006,PTU,CAU,"Wolgamott, Dan House Committee",18168,For,2022,10/05/2022,"Independent Expenditure",11182.16,.00,No,,Advertising,"Sage Media Planning  Placement","1322 G St SE",,Washington,DC,20003
"DFL House Caucus",20006,PTU,CAU,"Ecklund, Robert House Committee",17871,For,2022,10/12/2022,"Independent Expenditure",2928.43,.00,No,,Advertising,"Sage Media Planning  Placement","1322 G St SE",,Washington,DC,20003
"DFL House Caucus",20006,PTU,CAU,"Brand, Jeff House Committee",18242,For,2022,10/12/2022,"Independent Expenditure",6075.11,.00,No,,Advertising,"Sage Media Planning  Placement","1322 G St SE",,Washington,DC,20003
"DFL House Caucus",20006,PTU,CAU,"Murphy, Mary C House Committee",10601,For,2022,10/12/2022,"Independent Expenditure",12154.10,.00,No,,Advertising,"Sage Media Planning  Placement","1322 G St SE",,Washington,DC,20003
"DFL House Caucus",20006,PTU,CAU,"Akland, D. Susan (Susie) House Committee",18464,Against,2022,10/20/2022,"Independent Expenditure",2768.50,.00,No,,Advertising,"Sage Media Planning  Placement","1322 G St SE",,Washington,DC,20003
"DFL House Caucus",20006,PTU,CAU,"Raleigh, Donald House Committee",18622,Against,2022,10/20/2022,"Independent Expenditure",15756.64,.00,No,,Advertising,"Sage Media Planning  Placement","1322 G St SE",,Washington,DC,20003
"DFL House Caucus",20006,PTU,CAU,"Skraba, Roger Joseph House Committee",18918,Against,2022,10/27/2022,"Independent Expenditure",12198.97,.00,No,,Advertising,"Sage Media Planning  Placement","1322 G St SE",,Washington,DC,20003
HRCC,20010,PTU,CAU,"Cha, Ethan House Committee",18874,Against,2022,11/03/2022,"Independent Expenditure",5000.00,.00,No,,"Advertising -Radio","Acquire Digital","512 E Iris Dr",,"Berry Hill",TN,37204
HRCC,20010,PTU,CAU,"Curran, Brion House Committee",18855,Against,2022,11/03/2022,"Independent Expenditure",5000.00,.00,No,,"Advertising -Radio","Acquire Digital","512 E Iris Dr",,"Berry Hill",TN,37204
HRCC,20010,PTU,CAU,"Rehm, Lucy House Committee",18794,Against,2022,10/18/2022,"Independent Expenditure",4251.87,.00,No,,"Advertising - Print: Direct Mail","Targeted Creative Communication","106 S Columbus St",,Alexandria,VA,22314
HRCC,20010,PTU,CAU,"Brand, Jeff House Committee",18242,Against,2022,10/19/2022,"Independent Expenditure",3536.11,.00,No,,"Advertising - Print: Direct Mail","Targeted Creative Communication","106 S Columbus St",,Alexandria,VA,22314
HRCC,20010,PTU,CAU,"Curran, Brion House Committee",18855,Against,2022,10/19/2022,"Independent Expenditure",3538.17,.00,No,,"Advertising - Print: Direct Mail","Targeted Creative Communication","106 S Columbus St",,Alexandria,VA,22314
HRCC,20010,PTU,CAU,"Newton, Jerry House Committee",18813,Against,2022,10/19/2022,"Independent Expenditure",3732.67,.00,No,,"Advertising - Print: Direct Mail","Targeted Creative Communication","106 S Columbus St",,Alexandria,VA,22314
HRCC,20010,PTU,CAU,"Ecklund, Robert House Committee",17871,Against,2022,10/26/2022,"Independent Expenditure",4006.31,.00,No,,"Advertising - Print: Direct Mail","Targeted Creative Communication","106 S Columbus St",,Alexandria,VA,22314
HRCC,20010,PTU,CAU,"Norris, Matt House Committee",18727,Against,2022,10/26/2022,"Independent Expenditure",4026.88,.00,No,,"Advertising - Print: Direct Mail","Targeted Creative Communication","106 S Columbus St",,Alexandria,VA,22314
HRCC,20010,PTU,CAU,"Cha, Ethan House Committee",18874,Against,2022,10/26/2022,"Independent Expenditure",4337.79,.00,No,,"Advertising - Print: Direct Mail","Targeted Creative Communication","106 S Columbus St",,Alexandria,VA,22314
HRCC,20010,PTU,CAU,"Lislegard, David House Committee",18314,Against,2022,10/27/2022,"Independent Expenditure",2914.58,.00,No,,"Advertising - Print: Direct Mail","Targeted Creative Communication","106 S Columbus St",,Alexandria,VA,22314
HRCC,20010,PTU,CAU,"Rehm, Lucy House Committee",18794,Against,2022,10/27/2022,"Independent Expenditure",2914.58,.00,No,,"Advertising - Print: Direct Mail","Targeted Creative Communication","106 S Columbus St",,Alexandria,VA,22314
HRCC,20010,PTU,CAU,"Stephenson, Zachary House Committee",18129,Against,2022,10/27/2022,"Independent Expenditure",2914.58,.00,No,,"Advertising - Print: Direct Mail","Targeted Creative Communication","106 S Columbus St",,Alexandria,VA,22314
HRCC,20010,PTU,CAU,"Berg, Kaela Jo House Committee",18449,Against,2022,10/27/2022,"Independent Expenditure",2914.59,.00,No,,"Advertising - Print: Direct Mail","Targeted Creative Communication","106 S Columbus St",,Alexandria,VA,22314
HRCC,20010,PTU,CAU,"Bierman, Robert House Committee",18385,Against,2022,10/27/2022,"Independent Expenditure",2914.59,.00,No,,"Advertising - Print: Direct Mail","Targeted Creative Communication","106 S Columbus St",,Alexandria,VA,22314
HRCC,20010,PTU,CAU,"Radosevich, Pete House Committee",18904,Against,2022,10/27/2022,"Independent Expenditure",3731.70,.00,No,,"Advertising - Print: Direct Mail","Targeted Creative Communication","106 S Columbus St",,Alexandria,VA,22314
HRCC,20010,PTU,CAU,"Rehm, Lucy House Committee",18794,Against,2022,11/01/2022,"Independent Expenditure",4243.06,.00,No,,"Advertising-Print: Direct Mail","Targeted Creative Communication","106 S Columbus St",,Alexandria,VA,22314
"DFL House Caucus",20006,PTU,CAU,"Igo, Spencer House Committee",18638,Against,2022,09/15/2022,"Independent Expenditure",1848.54,.00,No,,Advertising,"Clarify Agency","870 Market St",,"San Francisco",CA,94102
"DFL House Caucus",20006,PTU,CAU,"Boe, Greg House Committee",18348,Against,2022,09/15/2022,"Independent Expenditure",4167.84,.00,No,,Advertising,"Clarify Agency","870 Market St",,"San Francisco",CA,94102
"DFL House Caucus",20006,PTU,CAU,"Bahner, Kristin House Committee",18081,For,2022,09/15/2022,"Independent Expenditure",7880.61,.00,No,,Advertising,"Clarify Agency","870 Market St",,"San Francisco",CA,94102
"DFL House Caucus",20006,PTU,CAU,"Murphy, Mary C House Committee",10601,For,2022,09/15/2022,"Independent Expenditure",17768.14,.00,No,,Advertising,"Clarify Agency","870 Market St",,"San Francisco",CA,94102
"DFL House Caucus",20006,PTU,CAU,"Huot, John Duffy House Committee",17962,For,2022,10/04/2022,"Independent Expenditure",1852.27,.00,No,,Advertising,"Clarify Agency","870 Market St",,"San Francisco",CA,94102
"DFL House Caucus",20006,PTU,CAU,"Newton, Jerry House Committee",18813,For,2022,10/04/2022,"Independent Expenditure",4630.66,.00,No,,Advertising,"Clarify Agency","870 Market St",,"San Francisco",CA,94102
"DFL House Caucus",20006,PTU,CAU,"Tabke, Brad House Committee",18332,For,2022,10/04/2022,"Independent Expenditure",4630.66,.00,No,,Advertising,"Clarify Agency","870 Market St",,"San Francisco",CA,94102
"DFL House Caucus",20006,PTU,CAU,"Gunderson, Heidi Ann House Committee",17664,Against,2022,10/04/2022,"Independent Expenditure",17420.12,.00,No,,Advertising,"Clarify Agency","870 Market St",,"San Francisco",CA,94102
"DFL House Caucus",20006,PTU,CAU,"Kroetch, Gabriela House Committee",18853,Against,2022,10/04/2022,"Independent Expenditure",17420.12,.00,No,,Advertising,"Clarify Agency","870 Market St",,"San Francisco",CA,94102
"DFL House Caucus",20006,PTU,CAU,"Matteson, Polly House Committee",18847,Against,2022,10/04/2022,"Independent Expenditure",17420.12,.00,No,,Advertising,"Clarify Agency","870 Market St",,"San Francisco",CA,94102
"DFL House Caucus",20006,PTU,CAU,"Raleigh, Donald House Committee",18622,Against,2022,10/04/2022,"Independent Expenditure",17420.12,.00,No,,Advertising,"Clarify Agency","870 Market St",,"San Francisco",CA,94102
"DFL House Caucus",20006,PTU,CAU,"Igo, Spencer House Committee",18638,Against,2022,10/17/2022,"Independent Expenditure",5266.22,.00,No,,Advertising,"Clarify Agency","870 Market St",,"San Francisco",CA,94102
"DFL House Caucus",20006,PTU,CAU,"Cha, Ethan House Committee",18874,For,2022,10/17/2022,"Independent Expenditure",5599.53,.00,No,,Advertising,"Clarify Agency","870 Market St",,"San Francisco",CA,94102
"DFL House Caucus",20006,PTU,CAU,"Ecklund, Robert House Committee",17871,For,2022,10/17/2022,"Independent Expenditure",5599.53,.00,No,,Advertising,"Clarify Agency","870 Market St",,"San Francisco",CA,94102
"DFL House Caucus",20006,PTU,CAU,"HILL, JOSIAH House Committee",18776,For,2022,10/17/2022,"Independent Expenditure",5599.53,.00,No,,Advertising,"Clarify Agency","870 Market St",,"San Francisco",CA,94102
"DFL House Caucus",20006,PTU,CAU,"Murphy, Mary C House Committee",10601,For,2022,10/17/2022,"Independent Expenditure",5599.53,.00,No,,Advertising,"Clarify Agency","870 Market St",,"San Francisco",CA,94102
HRCC,20010,PTU,CAU,"Wolgamott, Dan House Committee",18168,Against,2022,09/20/2022,"Independent Expenditure",3923.06,.00,No,,"Advertising - Print: Direct Mail","Targeted Creative Communication","106 S Columbus St",,Alexandria,VA,22314
HRCC,20010,PTU,CAU,"Wolgamott, Dan House Committee",18168,Against,2022,09/20/2022,"Independent Expenditure",3923.06,.00,No,,"Advertising - Print: Direct Mail","Targeted Creative Communication","106 S Columbus St",,Alexandria,VA,22314
HRCC,20010,PTU,CAU,"Radosevich, Pete House Committee",18904,Against,2022,09/20/2022,"Independent Expenditure",4188.62,.00,No,,"Advertising - Print: Direct Mail","Targeted Creative Communication","106 S Columbus St",,Alexandria,VA,22314
HRCC,20010,PTU,CAU,"Brand, Jeff House Committee",18242,Against,2022,09/20/2022,"Independent Expenditure",4237.23,.00,No,,"Advertising - Print: Direct Mail","Targeted Creative Communication","106 S Columbus St",,Alexandria,VA,22314
HRCC,20010,PTU,CAU,"Brand, Jeff House Committee",18242,Against,2022,09/20/2022,"Independent Expenditure",4237.23,.00,No,,"Advertising - Print: Direct Mail","Targeted Creative Communication","106 S Columbus St",,Alexandria,VA,22314
HRCC,20010,PTU,CAU,"Hanson, Jessica House Committee",18463,Against,2022,09/20/2022,"Independent Expenditure",4539.63,.00,No,,"Advertising - Print: Direct Mail","Targeted Creative Communication","106 S Columbus St",,Alexandria,VA,22314
HRCC,20010,PTU,CAU,"Stephenson, Zachary House Committee",18129,Against,2022,09/20/2022,"Independent Expenditure",4661.93,.00,No,,"Advertising - Print: Direct Mail","Targeted Creative Communication","106 S Columbus St",,Alexandria,VA,22314
HRCC,20010,PTU,CAU,"Stephenson, Zachary House Committee",18129,Against,2022,09/20/2022,"Independent Expenditure",4661.93,.00,No,,"Advertising - Print: Direct Mail","Targeted Creative Communication","106 S Columbus St",,Alexandria,VA,22314
HRCC,20010,PTU,CAU,"Raleigh, Donald House Committee",18622,For,2022,09/20/2022,"Independent Expenditure",4711.98,.00,No,,"Advertising - Print: Direct Mail","Targeted Creative Communication","106 S Columbus St",,Alexandria,VA,22314
HRCC,20010,PTU,CAU,"Ecklund, Robert House Committee",17871,Against,2022,09/20/2022,"Independent Expenditure",5343.48,.00,No,,"Advertising - Print: Direct Mail","Targeted Creative Communication","106 S Columbus St",,Alexandria,VA,22314
HRCC,20010,PTU,CAU,"Cha, Ethan House Committee",18874,Against,2022,09/20/2022,"Independent Expenditure",5938.06,.00,No,,"Advertising - Print: Direct Mail","Targeted Creative Communication","106 S Columbus St",,Alexandria,VA,22314
HRCC,20010,PTU,CAU,"Rehm, Lucy House Committee",18794,Against,2022,09/20/2022,"Independent Expenditure",6352.52,.00,No,,"Advertising - Print: Direct Mail","Targeted Creative Communication","106 S Columbus St",,Alexandria,VA,22314
HRCC,20010,PTU,CAU,"Pursell, Kristi House Committee",18744,Against,2022,09/28/2022,"Independent Expenditure",3227.34,.00,No,,"Advertising - Print: Direct Mail","Targeted Creative Communication","106 S Columbus St",,Alexandria,VA,22314
HRCC,20010,PTU,CAU,"Brand, Jeff House Committee",18242,Against,2022,09/28/2022,"Independent Expenditure",3541.16,.00,No,,"Advertising - Print: Direct Mail","Targeted Creative Communication","106 S Columbus St",,Alexandria,VA,22314
HRCC,20010,PTU,CAU,"Wolgamott, Dan House Committee",18168,Against,2022,11/03/2022,"Independent Expenditure",5000.00,.00,No,,"Advertising - Radio","Acquire Digital","512 E Iris Dr",,"Berry Hill",TN,37204
HRCC,20010,PTU,CAU,"Huot, John Duffy House Committee",17962,Against,2022,11/18/2022,"Independent Expenditure",1000.00,.00,No,,"Advertising -Radio","Acquire Digital","512 E Iris Dr",,"Berry Hill",TN,37204
HRCC,20010,PTU,CAU,"Norri, Matthew R House Committee",18710,For,2022,11/18/2022,"Independent Expenditure",1333.33,.00,No,,"Advertising -Radio","Acquire Digital","512 E Iris Dr",,"Berry Hill",TN,37204
HRCC,20010,PTU,CAU,"Virnig, Bianca House Committee",19014,Against,2023,12/29/2023,"Independent Expenditure",10000.00,.00,No,,"Advertising - Digital","Acquire Digital","512 E Iris Dr",,"Berry Hill",TN,37204
HRCC,20010,PTU,CAU,"Zupancich, Andrea Senate Committee",18863,For,2022,10/21/2022,"Independent Expenditure",880.00,.00,No,,"Newspaper Ads","APG Media","PO Box",,Ashland,WI,54806
HRCC,20010,PTU,CAU,"Fogelman, Marj House Committee",18826,For,2022,08/02/2022,"Independent Expenditure",5102.84,.00,No,,"Advertising - Print: Direct Mail","Targeted Creative Communication","106 S Columbus St",,Alexandria,VA,22314
HRCC,20010,PTU,CAU,"Lislegard, David House Committee",18314,Against,2022,09/20/2022,"Independent Expenditure",4152.80,.00,No,,"Advertising - Print: Direct Mail","Targeted Creative Communication","106 S Columbus St",,Alexandria,VA,22314
HRCC,20010,PTU,CAU,"Radosevich, Pete House Committee",18904,Against,2022,09/20/2022,"Independent Expenditure",4188.62,.00,No,,"Advertising - Print: Direct Mail","Targeted Creative Communication","106 S Columbus St",,Alexandria,VA,22314
HRCC,20010,PTU,CAU,"Curran, Brion House Committee",18855,Against,2022,09/20/2022,"Independent Expenditure",5101.97,.00,No,,"Advertising - Print: Direct Mail","Targeted Creative Communication","106 S Columbus St",,Alexandria,VA,22314
HRCC,20010,PTU,CAU,"Fenton, Kelly House Committee",17663,For,2022,09/20/2022,"Independent Expenditure",5928.28,.00,No,,"Advertising - Print: Direct Mail","Targeted Creative Communication","106 S Columbus St",,Alexandria,VA,22314
HRCC,20010,PTU,CAU,"Cha, Ethan House Committee",18874,Against,2022,09/20/2022,"Independent Expenditure",5938.06,.00,No,,"Advertising - Print: Direct Mail","Targeted Creative Communication","106 S Columbus St",,Alexandria,VA,22314
HRCC,20010,PTU,CAU,"Ecklund, Robert House Committee",17871,Against,2022,09/28/2022,"Independent Expenditure",3400.48,.00,No,,"Advertising - Print: Direct Mail","Targeted Creative Communication","106 S Columbus St",,Alexandria,VA,22314
HRCC,20010,PTU,CAU,"Murphy, Mary C House Committee",10601,Against,2022,09/28/2022,"Independent Expenditure",3526.21,.00,No,,"Advertising - Print: Direct Mail","Targeted Creative Communication","106 S Columbus St",,Alexandria,VA,22314
HRCC,20010,PTU,CAU,"Curran, Brion House Committee",18855,Against,2022,09/28/2022,"Independent Expenditure",3543.22,.00,No,,"Advertising - Print: Direct Mail","Targeted Creative Communication","106 S Columbus St",,Alexandria,VA,22314
HRCC,20010,PTU,CAU,"Lislegard, David House Committee",18314,Against,2022,09/28/2022,"Independent Expenditure",3572.59,.00,No,,"Advertising - Print: Direct Mail","Targeted Creative Communication","106 S Columbus St",,Alexandria,VA,22314
"DFL House Caucus",20006,PTU,CAU,"Hanson, Jessica House Committee",18463,For,2022,10/04/2022,"Independent Expenditure",4630.66,.00,No,,Advertising,"Clarify Agency","870 Market St",,"San Francisco",CA,94102
"DFL House Caucus",20006,PTU,CAU,"Bruggenthies, Gary House Committee",18887,Against,2022,10/04/2022,"Independent Expenditure",17420.12,.00,No,,Advertising,"Clarify Agency","870 Market St",,"San Francisco",CA,94102
"DFL House Caucus",20006,PTU,CAU,"Lislegard, David House Committee",18314,For,2022,10/17/2022,"Independent Expenditure",5599.53,.00,No,,Advertising,"Clarify Agency","870 Market St",,"San Francisco",CA,94102
"DFL House Caucus",20006,PTU,CAU,"Brand, Jeff House Committee",18242,For,2022,10/17/2022,"Independent Expenditure",6999.41,.00,No,,Advertising,"Clarify Agency","870 Market St",,"San Francisco",CA,94102
"DFL House Caucus",20006,PTU,CAU,"Bishofsky, Mark House Committee",18729,Against,2022,10/17/2022,"Independent Expenditure",21064.89,.00,No,,Advertising,"Clarify Agency","870 Market St",,"San Francisco",CA,94102
"DFL House Caucus",20006,PTU,CAU,"Fenton, Kelly House Committee",18775,Against,2022,10/17/2022,"Independent Expenditure",21064.89,.00,No,,Advertising,"Clarify Agency","870 Market St",,"San Francisco",CA,94102
"DFL House Caucus",20006,PTU,CAU,"Akland, D. Susan (Susie) House Committee",18464,Against,2022,10/17/2022,"Independent Expenditure",26331.11,.00,No,,Advertising,"Clarify Agency","870 Market St",,"San Francisco",CA,94102
"DFL House Caucus",20006,PTU,CAU,"Bishofsky, Mark House Committee",18729,Against,2022,12/28/2022,"Independent Expenditure",759.27,.00,No,,Advertising,"Clarify Agency","870 Market St",,"San Francisco",CA,94102
"DFL House Caucus",20006,PTU,CAU,"Bruggenthies, Gary House Committee",18887,Against,2022,12/28/2022,"Independent Expenditure",759.27,.00,No,,Advertising,"Clarify Agency","870 Market St",,"San Francisco",CA,94102
"DFL House Caucus",20006,PTU,CAU,"Kroetch, Gabriela House Committee",18853,Against,2022,12/28/2022,"Independent Expenditure",759.27,.00,No,,Advertising,"Clarify Agency","870 Market St",,"San Francisco",CA,94102
"DFL House Caucus",20006,PTU,CAU,"Newton, Jerry House Committee",18813,For,2022,12/28/2022,"Independent Expenditure",759.27,.00,No,,Advertising,"Clarify Agency","870 Market St",,"San Francisco",CA,94102
"DFL House Caucus",20006,PTU,CAU,"Raleigh, Donald House Committee",18622,Against,2022,12/28/2022,"Independent Expenditure",759.27,.00,No,,Advertising,"Clarify Agency","870 Market St",,"San Francisco",CA,94102
"DFL House Caucus",20006,PTU,CAU,"Scanlon, Joseph House Committee",18728,Against,2022,12/28/2022,"Independent Expenditure",759.27,.00,No,,Advertising,"Clarify Agency","870 Market St",,"San Francisco",CA,94102
"DFL House Caucus",20006,PTU,CAU,"Witte, Jeff House Committee",18862,Against,2022,12/28/2022,"Independent Expenditure",759.27,.00,No,,Advertising,"Clarify Agency","870 Market St",,"San Francisco",CA,94102
"DFL House Caucus",20006,PTU,CAU,"Pursell, Kristi House Committee",18744,For,2022,09/01/2022,"Independent Expenditure",1466.64,.00,No,,Advertising,"Sage Media Planning  Placement","1322 G St SE",,Washington,DC,20003
"DFL House Caucus",20006,PTU,CAU,"Mortensen, Erik House Committee",18288,Against,2022,09/08/2022,"Independent Expenditure",8471.98,.00,No,,Advertising,"Sage Media Planning  Placement","1322 G St SE",,Washington,DC,20003
HRCC,20010,PTU,CAU,"Cha, Ethan House Committee",18874,Against,2022,11/01/2022,"Independent Expenditure",4337.79,.00,No,,"Advertising - Print: Direct Mail","Targeted Creative Communication","106 S Columbus St",,Alexandria,VA,22314
HRCC,20010,PTU,CAU,"Preese, Erin B House Committee",18452,Against,2022,11/01/2022,"Independent Expenditure",4604.57,.00,No,,"Advertising-Print: Direct Mail","Targeted Creative Communication","106 S Columbus St",,Alexandria,VA,22314
HRCC,20010,PTU,CAU,"Wolgamott, Dan House Committee",18168,Against,2022,11/01/2022,"Independent Expenditure",4720.87,.00,No,,"Advertising - Print: Direct Mail","Targeted Creative Communication","106 S Columbus St",,Alexandria,VA,22314
HRCC,20010,PTU,CAU,"Bruggenthies, Gary House Committee",18887,For,2022,10/18/2022,"Independent Expenditure",1457.65,.00,No,,"Radio Ads","TKO Productions Ltd","10100 Viking Dr",,"Eden Prairie",MN,55344
"Senate Victory Fund (SVF)",20013,PTU,CAU,"Putnam, Aric Senate Committee",18430,Against,2022,10/10/2022,"Independent Expenditure",21729.00,.00,No,,"Advertising - general: digital ads","FP1 Digital LLC","3001 Washington Blvd 7th Floor",,Arlington,VA,22201
"Senate Victory Fund (SVF)",20013,PTU,CAU,"Hauschild, Grant Senate Committee",18873,Against,2022,10/24/2022,"Independent Expenditure",24305.00,.00,No,,"Advertising - general: digitial ads","FP1 Digital LLC","3001 Washington Blvd 7th Floor",,Arlington,VA,22201
"Senate Victory Fund (SVF)",20013,PTU,CAU,"Hoffman, John A Senate Committee",17319,Against,2022,10/27/2022,"Independent Expenditure",9000.00,.00,No,,"Advertising - general: digital production/ads ","FP1 Digital LLC","3001 Washington Blvd 7th Floor",,Arlington,VA,22201
"Senate Victory Fund (SVF)",20013,PTU,CAU,"Eichorn, Justin Senate Committee",18077,For,2019,03/14/2019,"Independent Expenditure",85.71,.00,No,,"Advertising - general: social media",Nativ3,"323 Washington Ave N #200",,Minneapolis,MN,55401
"Senate Victory Fund (SVF)",20013,PTU,CAU,"Goggin, Michael P Senate Committee",17869,For,2019,03/14/2019,"Independent Expenditure",85.72,.00,No,,"Advertising - general: social media",Nativ3,"323 Washington Ave N #200",,Minneapolis,MN,55401
"Senate Victory Fund (SVF)",20013,PTU,CAU,"Relph, Jerry O Senate Committee",17930,For,2019,03/14/2019,"Independent Expenditure",94.29,.00,No,,"Advertising - general: social media",Nativ3,"323 Washington Ave N #200",,Minneapolis,MN,55401
"Senate Victory Fund (SVF)",20013,PTU,CAU,"Abeler, Jim Senate Committee",17868,For,2022,09/14/2022,"Independent Expenditure",5039.79,.00,No,,"Mailing / Voter List Rent/Purchase: direct mail",Storytellers,"PO Box 1832",,Gallatin,TN,37066
"Senate Victory Fund (SVF)",20013,PTU,CAU,"Kupec, Rob Senate Committee",18917,Against,2022,09/27/2022,"Independent Expenditure",2602.86,.00,No,,"Mailing / Voter List Rent/Purchase: direct mail",Storytellers,"PO Box 1832",,Gallatin,TN,37066
"Senate Victory Fund (SVF)",20013,PTU,CAU,"DeNucci, Ben Senate Committee",18866,Against,2022,09/27/2022,"Independent Expenditure",3675.22,.00,No,,"Mailing / Voter List Rent/Purchase: direct mail",Storytellers,"PO Box 1832",,Gallatin,TN,37066
"Senate Victory Fund (SVF)",20013,PTU,CAU,"Hauschild, Grant Senate Committee",18873,Against,2022,10/03/2022,"Independent Expenditure",4047.63,.00,No,,"Mailing / Voter List Rent/Purchase: direct mail",Storytellers,"PO Box 1832",,Gallatin,TN,37066
"DFL House Caucus",20006,PTU,CAU,"Akland, D. Susan (Susie) House Committee",18464,Against,2022,09/15/2022,"Independent Expenditure",4167.84,.00,No,,Advertising,"Clarify Agency","870 Market St",,"San Francisco",CA,94102
"DFL House Caucus",20006,PTU,CAU,"Heinrich, John House Committee",18220,Against,2022,09/15/2022,"Independent Expenditure",4167.84,.00,No,,Advertising,"Clarify Agency","870 Market St",,"San Francisco",CA,94102
"DFL House Caucus",20006,PTU,CAU,"Henning, Aaron House Committee",18913,Against,2022,09/15/2022,"Independent Expenditure",6411.41,.00,No,,Advertising,"Clarify Agency","870 Market St",,"San Francisco",CA,94102
"DFL House Caucus",20006,PTU,CAU,"Curran, Brion House Committee",18855,For,2022,09/15/2022,"Independent Expenditure",7880.61,.00,No,,Advertising,"Clarify Agency","870 Market St",,"San Francisco",CA,94102
"DFL House Caucus",20006,PTU,CAU,"Hanson, Jessica House Committee",18463,For,2022,09/15/2022,"Independent Expenditure",17768.14,.00,No,,Advertising,"Clarify Agency","870 Market St",,"San Francisco",CA,94102
"DFL House Caucus",20006,PTU,CAU,"Lislegard, David House Committee",18314,For,2022,09/15/2022,"Independent Expenditure",17768.14,.00,No,,Advertising,"Clarify Agency","870 Market St",,"San Francisco",CA,94102
"DFL House Caucus",20006,PTU,CAU,"Rehm, Lucy House Committee",18794,For,2022,09/15/2022,"Independent Expenditure",17768.14,.00,No,,Advertising,"Clarify Agency","870 Market St",,"San Francisco",CA,94102
"DFL House Caucus",20006,PTU,CAU,"Tabke, Brad House Committee",18332,For,2022,09/15/2022,"Independent Expenditure",17768.14,.00,No,,Advertising,"Clarify Agency","870 Market St",,"San Francisco",CA,94102
"DFL House Caucus",20006,PTU,CAU,"Stephenson, Zachary House Committee",18129,For,2022,10/04/2022,"Independent Expenditure",4630.66,.00,No,,Advertising,"Clarify Agency","870 Market St",,"San Francisco",CA,94102
"DFL House Caucus",20006,PTU,CAU,"Scanlon, Joseph House Committee",18728,Against,2022,10/04/2022,"Independent Expenditure",6968.05,.00,No,,Advertising,"Clarify Agency","870 Market St",,"San Francisco",CA,94102
"DFL House Caucus",20006,PTU,CAU,"Bristol, John House Committee",18852,Against,2022,10/04/2022,"Independent Expenditure",13936.09,.00,No,,Advertising,"Clarify Agency","870 Market St",,"San Francisco",CA,94102
"DFL House Caucus",20006,PTU,CAU,"Fenton, Kelly House Committee",18775,Against,2022,10/04/2022,"Independent Expenditure",13936.09,.00,No,,Advertising,"Clarify Agency","870 Market St",,"San Francisco",CA,94102
"DFL House Caucus",20006,PTU,CAU,"Skraba, Roger Joseph House Committee",18918,Against,2022,10/04/2022,"Independent Expenditure",13936.09,.00,No,,Advertising,"Clarify Agency","870 Market St",,"San Francisco",CA,94102
"DFL House Caucus",20006,PTU,CAU,"Boe, Greg House Committee",18348,Against,2022,10/04/2022,"Independent Expenditure",17420.12,.00,No,,Advertising,"Clarify Agency","870 Market St",,"San Francisco",CA,94102
"DFL House Caucus",20006,PTU,CAU,"Heinrich, John House Committee",18220,Against,2022,10/04/2022,"Independent Expenditure",17420.12,.00,No,,Advertising,"Clarify Agency","870 Market St",,"San Francisco",CA,94102
"DFL House Caucus",20006,PTU,CAU,"Wiens, Mark House Committee",18879,Against,2022,10/04/2022,"Independent Expenditure",17420.12,.00,No,,Advertising,"Clarify Agency","870 Market St",,"San Francisco",CA,94102
HRCC,20010,PTU,CAU,"Curran, Brion House Committee",18855,Against,2022,09/28/2022,"Independent Expenditure",3543.22,.00,No,,"Advertising - Print: Direct Mail","Targeted Creative Communication","106 S Columbus St",,Alexandria,VA,22314
HRCC,20010,PTU,CAU,"Lislegard, David House Committee",18314,Against,2022,09/28/2022,"Independent Expenditure",3572.59,.00,No,,"Advertising - Print: Direct Mail","Targeted Creative Communication","106 S Columbus St",,Alexandria,VA,22314
HRCC,20010,PTU,CAU,"Driscoll, Patricia House Committee",18820,Against,2022,09/28/2022,"Independent Expenditure",3660.20,.00,No,,"Advertising - Print: Direct Mail","Targeted Creative Communication","106 S Columbus St",,Alexandria,VA,22314
HRCC,20010,PTU,CAU,"Norris, Matt House Committee",18727,Against,2022,09/28/2022,"Independent Expenditure",4041.00,.00,No,,"Advertising - Print: Direct Mail","Targeted Creative Communication","106 S Columbus St",,Alexandria,VA,22314
HRCC,20010,PTU,CAU,"Norris, Matt House Committee",18727,Against,2022,09/28/2022,"Independent Expenditure",4041.00,.00,No,,"Advertising - Print: Direct Mail","Targeted Creative Communication","106 S Columbus St",,Alexandria,VA,22314
HRCC,20010,PTU,CAU,"Wolgamott, Dan House Committee",18168,Against,2022,10/03/2022,"Independent Expenditure",4006.99,.00,No,,"Advertising - Print: Direct Mail","Targeted Creative Communication","106 S Columbus St",,Alexandria,VA,22314
